Workbook

Sheet Main
A2: Monthly Report
F4: * Please sheet(s) to print | H4: * For pivot table listing control
F5: Sheet | G5: YES/NO | H5: Start Row | I5: Last Col
B6: Company : | C6: BIMB Investment Management Berhad | D6: =VLOOKUP(FundCode,InFund!A2:G75,7,0) -> BI | F6: FundSummary | G6: YES | H6: 1
B7: Fund : | C7: THE | D7: =VLOOKUP(FundCode,InFund!A2:G76,6,0) -> 2021-08-30 | F7: Performance | G7: YES | H7: 1
B8: Fund Name : | C8: =VLOOKUP(FundCode,InFund!A2:G75,2,0) -> THE | F8: PL | G8: YES | H8: 1
B9: End Date: | C9: 2021-10-29 | F9: HoldingSector | G9: YES | H9: 11 | I9: 6
B10: LIBOR 3M(%) : | C10: 0 | D10: =VLOOKUP(FundCode,InFund!A:I,9,0) -> USD | F10: HoldingCountry | G10: YES | H10: 11 | I10: 6
D11: =VLOOKUP(FundCode,InFund!A:J,10,0) -> Ahmad Rizal Ujang | F11: HoldingCurrency | G11: YES | H11: 11 | I11: 6
F12: HoldingAll | G12: YES | H12: 9 | I12: 16
F13: HoldingNoShariah | G13: YES | H13: 9 | I13: 11
D14: =VLOOKUP(FundCode,InFund!A2:H75,8,0) -> 1 | F14: Purchase | G14: YES | H14: 9 | I14: 13
D15: =IF(EOYFlag=1,IF(MONTH(LstYearEnd)=MONTH(StartDate-1),1,0),0) -> 0 | F15: Sale | G15: YES | H15: 9 | I15: 13
D16: =IF(ISERROR(DATEVALUE(TEXT(EndDate,"mm/dd/yyyy"))),IF(D11>366,DATEVALUE(DAY(FinYrEnd) &"/" & MONTH(FinYrEnd) & "/" &YEAR(EndDate)),DATEVALUE(DAY(FinYrEnd) &"/" & MONTH(FinYrEnd) & "/" &YEAR(EndDate)-1)),IF(D11>366,DATEVALUE(MONTH(FinYrEnd) &"/" & DAY(FinYrEnd) & "/" &YEAR(EndDate)),DATEVALUE(MONTH(FinYrEnd) &"/" & DAY(FinYrEnd) & "/" &YEAR(EndDate)-1))) -> 2021-08-30
D17: =EOMONTH(EndDate,-1) -> 2021-09-30

Sheet InTB (hidden)
A1: qFundCode | B1: TBDate | C1: qAssetRptGrp | D1: qCurrencyCode | E1: GLCode | F1: qAssetAccType | G1: ShortGL | H1: CreditAmt | I1: DebitAmt | J1: ExRate | K1: ValuationGL | L1: TBType | M1: SumDrCr
A2: THE | B2: 2021-10-29 | C2: O-EQT | D2: USD | E2: THE-USD015-100000 | F2: 15 | G2: 100000 | H2: -316919.23 | I2: 10286700.65 | J2: 1 | K2: FALSE | L2: BS | M2: 9969781.42
A3: THE | B3: 2021-10-29 | C3: O-EQT | D3: USD | E3: THE-USD015-189000 | F3: 15 | G3: 189000 | H3: -76390.92 | I3: 153302.73 | J3: 1 | K3: TRUE | L3: BS | M3: 76911.81
A4: THE | B4: 2021-10-29 | C4: O-EQT | D4: USD | E4: THE-USD015-199000 | F4: 15 | G4: 199000 | H4: -13821.11 | I4: 6588.88 | J4: 1 | K4: TRUE | L4: BS | M4: -7232.23
A5: THE | B5: 2021-10-29 | C5: O-EQT | D5: EUR | E5: THE-EUR015-299000 | F5: 15 | G5: 299000 | H5: 0 | I5: 336.23 | J5: 0.8648 | K5: FALSE | L5: BS | M5: 388.7950971
A6: THE | B6: 2021-10-29 | C6: O-EQT | D6: GBP | E6: THE-GBP015-300000 | F6: 15 | G6: 300000 | H6: -320601.4 | I6: 144256.14 | J6: 0.7301 | K6: FALSE | L6: BS | M6: -241535.7622
A7: THE | B7: 2021-10-29 | C7: O-EQT | D7: USD | E7: THE-USD015-300000 | F7: 15 | G7: 300000 | H7: -5214334.07 | I7: 5163373.07 | J7: 1 | K7: FALSE | L7: BS | M7: -50961
A8: THE | B8: 2021-10-29 | C8: CSH | D8: JPY | E8: THE-JPY000-500000 | F8: 0 | G8: 500000 | H8: -136958098 | I8: 125744102 | J8: 113.82 | K8: FALSE | L8: BS | M8: -98523.9501
A9: THE | B9: 2021-10-29 | C9: CSH | D9: CHF | E9: THE-CHF000-500000 | F9: 0 | G9: 500000 | H9: -830852.33 | I9: 777774.39 | J9: 0.9148 | K9: FALSE | L9: BS | M9: -58021.35986
A10: THE | B10: 2021-10-29 | C10: CSH | D10: EUR | E10: THE-EUR000-500000 | F10: 0 | G10: 500000 | H10: -1394048.92 | I10: 1308913.6 | J10: 0.8648 | K10: FALSE | L10: BS | M10: -98445.09713
A11: THE | B11: 2021-10-29 | C11: CSH | D11: SEK | E11: THE-SEK000-500000 | F11: 0 | G11: 500000 | H11: -2570287.95 | I11: 1764811.54 | J11: 8.5812 | K11: FALSE | L11: BS | M11: -93865.24146
A12: THE | B12: 2021-10-29 | C12: CSH | D12: USD | E12: THE-USD000-500000 | F12: 0 | G12: 500000 | H12: -9723593.11 | I12: 10558885.53 | J12: 1 | K12: FALSE | L12: BS | M12: 835292.42
A13: THE | B13: 2021-10-29 | C13: O-EQT | D13: USD | E13: THE-USD015-600000 | F13: 15 | G13: 600000 | H13: -1482.3 | I13: 1797.89 | J13: 1 | K13: FALSE | L13: PLR | M13: 315.59
A14: THE | B14: 2021-10-29 | C14: O-EQT | D14: USD | E14: THE-USD015-635000 | F14: 15 | G14: 635000 | H14: -460.7 | I14: 0 | J14: 1 | K14: FALSE | L14: PLR | M14: -460.7
A15: THE | B15: 2021-10-29 | C15: O-EQT | D15: USD | E15: THE-USD015-650000 | F15: 15 | G15: 650000 | H15: -8705.57 | I15: 9501.23 | J15: 1 | K15: FALSE | L15: PLR | M15: 795.66
A16: THE | B16: 2021-10-29 | C16: O-EQT | D16: USD | E16: THE-USD015-689000 | F16: 15 | G16: 689000 | H16: -153302.73 | I16: 76390.92 | J16: 1 | K16: TRUE | L16: PLU | M16: -76911.81
A17: THE | B17: 2021-10-29 | C17: O-EQT | D17: USD | E17: THE-USD015-699000 | F17: 15 | G17: 699000 | H17: -6588.88 | I17: 13821.11 | J17: 1 | K17: TRUE | L17: PLU | M17: 7232.23
A18: THE | B18: 2021-10-29 | C18: O-EQT | D18: USD | E18: THE-USD015-799020 | F18: 15 | G18: 799020 | H18: 0 | I18: 69.1 | J18: 1 | K18: FALSE | L18: PLR | M18: 69.1
A19: THE | B19: 2021-10-29 | C19: CSH | D19: USD | E19: THE-USD000-800000 | F19: 0 | G19: 800000 | H19: -10000000 | I19: 0 | J19: 1 | K19: FALSE | L19: BS | M19: -10000000
A20: THE | B20: 2021-10-29 | C20: CSH | D20: USD | E20: THE-USD000-999999 | F20: 0 | G20: 999999 | H20: -17025022.25 | I20: 16270189.76 | J20: 1 | K20: FALSE | L20: BS | M20: -754832.49
A21: THE | B21: 2021-10-29 | C21: CSH | D21: SEK | E21: THE-SEK000-999999 | F21: 0 | G21: 999999 | H21: -1764811.54 | I21: 2570287.95 | J21: 8.5812 | K21: FALSE | L21: BS | M21: 93865.24146
A22: THE | B22: 2021-10-29 | C22: CSH | D22: EUR | E22: THE-EUR000-999999 | F22: 0 | G22: 999999 | H22: -1309249.83 | I22: 1394048.92 | J22: 0.8648 | K22: FALSE | L22: BS | M22: 98056.30204
A23: THE | B23: 2021-10-29 | C23: CSH | D23: CHF | E23: THE-CHF000-999999 | F23: 0 | G23: 999999 | H23: -777774.39 | I23: 830852.33 | J23: 0.9148 | K23: FALSE | L23: BS | M23: 58021.35986
A24: THE | B24: 2021-10-29 | C24: CSH | D24: JPY | E24: THE-JPY000-999999 | F24: 0 | G24: 999999 | H24: -377232306 | I24: 388446302 | J24: 113.82 | K24: FALSE | L24: BS | M24: 98523.9501
A25: THE | B25: 2021-10-29 | C25: CSH | D25: GBP | E25: THE-GBP000-999999 | F25: 0 | G25: 999999 | H25: -432768.42 | I25: 609113.68 | J25: 0.7301 | K25: FALSE | L25: BS | M25: 241535.7622

Sheet InRiskMeasure (hidden)
A1: Item | B1: qFundCode | C1: StartDate | D1: ValueDate | E1: VaRReturn | F1: CVaRReturn | G1: Volatility | H1: IndexVolatility | I1: TrackingError | J1: NAV | K1: Beta | L1: IndexBenchmark | M1: PeriodFundRtn | N1: PeriodIndexRtn | O1: RSquare | P1: Alpha | Q1: Correlation | R1: FundMaxDrawndown | S1: IndexMaxDrawdown
A2: Mth3 | B2: THE | C2: 2021-08-01 | D2: 2021-10-29 | E2: 0 | F2: 0 | G2: 0 | J2: 10064008.12 | L2: FBMKLCI | M2: 0 | O2: 0 | Q2: 0 | R2: -0.4945
A3: Mth6 | B3: THE | C3: 2021-05-01 | D3: 2021-10-29 | E3: 0 | F3: 0 | G3: 0 | J3: 10064008.12 | L3: FBMKLCI | M3: 0 | O3: 0 | Q3: 0 | R3: -0.4945
A4: YTD | B4: THE | C4: 2021-10-04 | D4: 2021-10-29 | E4: 0 | F4: 0 | G4: 0 | J4: 10064008.12 | L4: FBMKLCI | M4: 0 | O4: 0 | Q4: 0 | R4: -0.4945
A5: Yr1 | B5: THE | C5: 2020-11-01 | D5: 2021-10-29 | E5: 0 | F5: 0 | G5: 0 | J5: 10064008.12 | L5: FBMKLCI | M5: 0 | O5: 0 | Q5: 0 | R5: -0.4945
A6: Yr3 | B6: THE | C6: 2018-11-01 | D6: 2021-10-29 | E6: 0 | F6: 0 | G6: 0 | J6: 10064008.12 | L6: FBMKLCI | M6: 0 | O6: 0 | Q6: 0 | R6: -0.4945
A7: Yr5 | B7: THE | C7: 2016-11-01 | D7: 2021-10-29 | E7: 0 | F7: 0 | G7: 0 | J7: 10064008.12 | L7: FBMKLCI | M7: 0 | O7: 0 | Q7: 0 | R7: -0.4945

Sheet InTop (hidden)
A1: qStockCode | B1: StockName | C1: qFundCode | D1: twrr | E1: benchmark | F1: Excess | G1: PercNAV | H1: Stype
A2: AU000000GMG2 | C2: THE | D2: 0 | E2: 0 | F2: 0 | G2: 0.9411898209 | H2: Top10
A3: AU000000MGR9 | C3: THE | D3: 0 | E3: 0 | F3: 0 | G3: 0.5239238619 | H3: Top10
A4: AU000000SGP0 | C4: THE | D4: 0 | E4: 0 | F4: 0 | G4: 0.294234858 | H4: Top10
A5: CA13321L1085 | C5: THE | D5: 0 | E5: 0 | F5: 0 | G5: 0.1896986744 | H5: Top10
A6: CA1363751027 | C6: THE | D6: 0 | E6: 0 | F6: 0 | G6: 1.082518503 | H6: Top10
A7: CA1363851017 | C7: THE | D7: 0 | E7: 0 | F7: 0 | G7: 0.9976032293 | H7: Top10
A8: CA5503721063 | C8: THE | D8: 0 | E8: 0 | F8: 0 | G8: 0.361672701 | H8: Top10
A9: CH0010570759 | C9: THE | D9: 0 | E9: 0 | F9: 0 | G9: 1.193714756 | H9: Top10
A10: CH0012032048 | B10: Roche Holding Ltd Genusssch. | C10: THE | D10: 0 | E10: 0 | F10: 0 | G10: 1.107541336 | H10: Top10
A11: CH0012142631 | C11: THE | D11: 0 | E11: 0 | F11: 0 | G11: 0.7399361081 | H11: Top10
A12: CH0012221716 | C12: THE | D12: 0 | E12: 0 | F12: 0 | G12: 1.075187427 | H12: Top10
A13: CH0012255151 | C13: THE | D13: 0 | E13: 0 | F13: 0 | G13: 1.031369498 | H13: Top10
A14: CH0013841017 | C14: THE | D14: 0 | E14: 0 | F14: 0 | G14: 1.157709916 | H14: Top10
A15: CH0030170408 | C15: THE | D15: 0 | E15: 0 | F15: 0 | G15: 1.125784863 | H15: Top10
A16: CH0038863350 | C16: THE | D16: 0 | E16: 0 | F16: 0 | G16: 1.118101642 | H16: Top10
A17: CH0102993182 | B17: TE Connectivity Ltd. | C17: THE | D17: 0 | E17: 0 | F17: 0 | G17: 1.146064258 | H17: Top10
A18: DE0005200000 | C18: THE | D18: 0 | E18: 0 | F18: 0 | G18: 0.7233015826 | H18: Top10
A19: DE0006048432 | C19: THE | D19: 0 | E19: 0 | F19: 0 | G19: 1.016221259 | H19: Top10
A20: DE0006452907 | C20: THE | D20: 0 | E20: 0 | F20: 0 | G20: 1.129532376 | H20: Top10
A21: DE0006969603 | C21: THE | D21: 0 | E21: 0 | F21: 0 | G21: 1.193406529 | H21: Top10
A22: DE0007164600 | C22: THE | D22: 0 | E22: 0 | F22: 0 | G22: 1.131765084 | H22: Top10
A23: DE000A1DAHH0 | C23: THE | D23: 0 | E23: 0 | F23: 0 | G23: 0.3212738863 | H23: Top10
A24: DK0060079531 | C24: THE | D24: 0 | E24: 0 | F24: 0 | G24: 0.9562880798 | H24: Top10
A25: DK0060534915 | C25: THE | D25: 0 | E25: 0 | F25: 0 | G25: 1.096529123 | H25: Top10
A26: FI0009005961 | C26: THE | D26: 0 | E26: 0 | F26: 0 | G26: 0.5239242593 | H26: Top10
A27: FI0009005987 | B27: UPM-Kymmene Oyj | C27: THE | D27: 0 | E27: 0 | F27: 0 | G27: 0.8921029169 | H27: Top10
A28: FR0000120321 | B28: LOreal SA | C28: THE | D28: 0 | E28: 0 | F28: 0 | G28: 1.161703852 | H28: Top10
A29: FR0000121972 | B29: Schneider Electric SE | C29: THE | D29: 0 | E29: 0 | F29: 0 | G29: 1.168500051 | H29: Top10
A30: GB0004052071 | C30: THE | D30: 0 | E30: 0 | F30: 0 | G30: 1.156947397 | H30: Top10
A31: GB0006731235 | C31: THE | D31: 0 | E31: 0 | F31: 0 | G31: 0.2701077908 | H31: Top10
A32: GB0006776081 | C32: THE | D32: 0 | E32: 0 | F32: 0 | G32: 0.06886699531 | H32: Top10
A33: GB0006825383 | C33: THE | D33: 0 | E33: 0 | F33: 0 | G33: 0.2184878007 | H33: Top10
A34: GB0033195214 | C34: THE | D34: 0 | E34: 0 | F34: 0 | G34: 0.3551639622 | H34: Top10
A35: GB00B1CRLC47 | B35: Mondi plc | C35: THE | D35: 0 | E35: 0 | F35: 0 | G35: 1.00741284 | H35: Top10
A36: GB00B1WY2338 | C36: THE | D36: 0 | E36: 0 | F36: 0 | G36: 0.3339064277 | H36: Top10
A37: GB00BLJNXL82 | C37: THE | D37: 0 | E37: 0 | F37: 0 | G37: 0.9483197834 | H37: Top10
A38: HK0066009694 | B38: MTR Corporation Limited | C38: THE | D38: 0 | E38: 0 | F38: 0 | G38: 0.4962437371 | H38: Top10
A39: HK0101000591 | B39: HK0101000591 | C39: THE | D39: 0 | E39: 0 | F39: 0 | G39: 0.1615285859 | H39: Top10
A40: IE00BZ12WP82 | C40: THE | D40: 0 | E40: 0 | F40: 0 | G40: 1.148154876 | H40: Top10
A41: JP3188220002 | B41: Otsuka Holdings Co., Ltd. | C41: THE | D41: 0 | E41: 0 | F41: 0 | G41: 0.5072733387 | H41: Top10
A42: JP3197600004 | B42: ONO Pharmaceutical Co., Ltd. | C42: THE | D42: 0 | E42: 0 | F42: 0 | G42: 0.2790581016 | H42: Top10
A43: JP3205800000 | B43: Kao Corp. | C43: THE | D43: 0 | E43: 0 | F43: 0 | G43: 1.001014296 | H43: Top10
A44: JP3249600002 | C44: THE | D44: 0 | E44: 0 | F44: 0 | G44: 0.9719735798 | H44: Top10
A45: JP3351600006 | C45: THE | D45: 0 | E45: 0 | F45: 0 | G45: 0.9840020876 | H45: Top10
A46: JP3419400001 | B46: SEKISUI CHEMICAL CO.,LTD. | C46: THE | D46: 0 | E46: 0 | F46: 0 | G46: 0.6619979754 | H46: Top10
A47: JP3505000004 | B47: Daiwa House Industry Co., Ltd. | C47: THE | D47: 0 | E47: 0 | F47: 0 | G47: 0.6270848478 | H47: Top10
A48: JP3571400005 | B48: Tokyo Electron Ltd. | C48: THE | D48: 0 | E48: 0 | F48: 0 | G48: 1.0288695 | H48: Top10
A49: JP3695200000 | C49: THE | D49: 0 | E49: 0 | F49: 0 | G49: 0.3445449327 | H49: Top10
A50: JP3734800000 | B50: Nidec Corporation | C50: THE | D50: 0 | E50: 0 | F50: 0 | G50: 0.987616254 | H50: Top10
A51: JP3749400002 | B51: NIPPON PAINT HOLDINGS CO.LTD. | C51: THE | D51: 0 | E51: 0 | F51: 0 | G51: 0.3831039238 | H51: Top10
A52: JP3756100008 | B52: Nitori Holdings Co., Ltd. | C52: THE | D52: 0 | E52: 0 | F52: 0 | G52: 0.6590664396 | H52: Top10
A53: JP3786200000 | C53: THE | D53: 0 | E53: 0 | F53: 0 | G53: 1.033791396 | H53: Top10
A54: JP3814000000 | B54: Fujifilm Holdings Ord Shs | C54: THE | D54: 0 | E54: 0 | F54: 0 | G54: 1.092551881 | H54: Top10
A55: JP3914400001 | B55: Murata Manufacturing Co., Ltd. | C55: THE | D55: 0 | E55: 0 | F55: 0 | G55: 1.006193147 | H55: Top10
A56: JP3918000005 | B56: Meiji Holdings Co., Ltd. | C56: THE | D56: 0 | E56: 0 | F56: 0 | G56: 0.5272524562 | H56: Top10
A57: JP3942400007 | B57: Astellas Pharma Inc. | C57: THE | D57: 0 | E57: 0 | F57: 0 | G57: 0.9453750321 | H57: Top10
A58: NL0000009538 | C58: THE | D58: 0 | E58: 0 | F58: 0 | G58: 0.9536272115 | H58: Top10
A59: NL0000009827 | C59: THE | D59: 0 | E59: 0 | F59: 0 | G59: 1.214232427 | H59: Top10
A60: NL0000226223 | C60: THE | D60: 0 | E60: 0 | F60: 0 | G60: 1.053977886 | H60: Top10
A61: NL0013267909 | C61: THE | D61: 0 | E61: 0 | F61: 0 | G61: 1.026944024 | H61: Top10
A62: NO0003733800 | C62: THE | D62: 0 | E62: 0 | F62: 0 | G62: 0.3310490175 | H62: Top10
A63: NO0010208051 | C63: THE | D63: 0 | E63: 0 | F63: 0 | G63: 0.3368243507 | H63: Top10
A64: SE0000112724 | C64: THE | D64: 0 | E64: 0 | F64: 0 | G64: 0.556616403 | H64: Top10
A65: SE0007100581 | C65: THE | D65: 0 | E65: 0 | F65: 0 | G65: 1.00033564 | H65: Top10
A66: SE0015811559 | C66: THE | D66: 0 | E66: 0 | F66: 0 | G66: 0.735493246 | H66: Top10
A67: US0028241000 | C67: THE | D67: 0 | E67: 0 | F67: 0 | G67: 1.097562012 | H67: Top10
A68: US00724F1012 | C68: THE | D68: 0 | E68: 0 | F68: 0 | G68: 1.008108885 | H68: Top10
A69: US00751Y1064 | C69: THE | D69: 0 | E69: 0 | F69: 0 | G69: 0.7372418535 | H69: Top10
A70: US00846U1016 | C70: THE | D70: 0 | E70: 0 | F70: 0 | G70: 1.065685647 | H70: Top10
A71: US0126531013 | C71: THE | D71: 0 | E71: 0 | F71: 0 | G71: 1.119946433 | H71: Top10
A72: US0326541051 | C72: THE | D72: 0 | E72: 0 | F72: 0 | G72: 1.101550284 | H72: Top10
A73: US0394831020 | C73: THE | D73: 0 | E73: 0 | F73: 0 | G73: 0.1053218546 | H73: Top10
A74: US05722G1004 | C74: THE | D74: 0 | E74: 0 | F74: 0 | G74: 1.26172434 | H74: Top10
A75: US0865161014 | C75: THE | D75: 0 | E75: 0 | F75: 0 | G75: 1.102879873 | H75: Top10
A76: US0905722072 | C76: THE | D76: 0 | E76: 0 | F76: 0 | G76: 1.129164828 | H76: Top10
A77: US09073M1045 | C77: THE | D77: 0 | E77: 0 | F77: 0 | G77: 1.040639065 | H77: Top10
A78: US14149Y1082 | C78: THE | D78: 0 | E78: 0 | F78: 0 | G78: 0.7662705463 | H78: Top10
A79: US1567821046 | C79: THE | D79: 0 | E79: 0 | F79: 0 | G79: 1.033445112 | H79: Top10
A80: US1713401024 | C80: THE | D80: 0 | E80: 0 | F80: 0 | G80: 1.080714549 | H80: Top10
A81: US17275R1023 | C81: THE | D81: 0 | E81: 0 | F81: 0 | G81: 1.01996122 | H81: Top10
A82: US24906P1093 | C82: THE | D82: 0 | E82: 0 | F82: 0 | G82: 0.1136922771 | H82: Top10
A83: US28176E1082 | C83: THE | D83: 0 | E83: 0 | F83: 0 | G83: 1.179864112 | H83: Top10
A84: US30161N1019 | C84: THE | D84: 0 | E84: 0 | F84: 0 | G84: 1.141068336 | H84: Top10
A85: US3119001044 | C85: THE | D85: 0 | E85: 0 | F85: 0 | G85: 1.077622342 | H85: Top10
A86: US34959J1088 | C86: THE | D86: 0 | E86: 0 | F86: 0 | G86: 1.007309303 | H86: Top10
A87: US35671D8570 | C87: THE | D87: 0 | E87: 0 | F87: 0 | G87: 0.9370024236 | H87: Top10
A88: US3724601055 | C88: THE | D88: 0 | E88: 0 | F88: 0 | G88: 1.078686332 | H88: Top10
A89: US4456581077 | C89: THE | D89: 0 | E89: 0 | F89: 0 | G89: 1.142306014 | H89: Top10
A90: US45167R1041 | C90: THE | D90: 0 | E90: 0 | F90: 0 | G90: 1.00846421 | H90: Top10
A91: US4581401001 | B91: Intel Corporation | C91: THE | D91: 0 | E91: 0 | F91: 0 | G91: 1.028784941 | H91: Top10
A92: US4601461035 | C92: THE | D92: 0 | E92: 0 | F92: 0 | G92: 0.9298311258 | H92: Top10
A93: US4781601046 | B93: Johnson & Johnson | C93: THE | D93: 0 | E93: 0 | F93: 0 | G93: 1.005051653 | H93: Top10
A94: US48203R1041 | C94: THE | D94: 0 | E94: 0 | F94: 0 | G94: 1.009616038 | H94: Top10
A95: US49271V1008 | C95: THE | D95: 0 | E95: 0 | F95: 0 | G95: 1.134625078 | H95: Top10
A96: US4990491049 | C96: THE | D96: 0 | E96: 0 | F96: 0 | G96: 1.066879704 | H96: Top10
A97: US5500211090 | C97: THE | D97: 0 | E97: 0 | F97: 0 | G97: 1.194659012 | H97: Top10
A98: US5951121038 | C98: THE | D98: 0 | E98: 0 | F98: 0 | G98: 0.9749793405 | H98: Top10
A99: US6081901042 | C99: THE | D99: 0 | E99: 0 | F99: 0 | G99: 0.9138703875 | H99: Top10
A100: US6516391066 | C100: THE | D100: 0 | E100: 0 | F100: 0 | G100: 1.006596962 | H100: Top10
A101: US6795801009 | C101: THE | D101: 0 | E101: 0 | F101: 0 | G101: 1.238003274 | H101: Top10
A102: US7427181091 | B102: Procter & Gamble Company | C102: THE | D102: 0 | E102: 0 | F102: 0 | G102: 1.103966021 | H102: Top10
A103: US74340W1036 | C103: THE | D103: 0 | E103: 0 | F103: 0 | G103: 1.227204097 | H103: Top10
A104: US7458671010 | C104: THE | D104: 0 | E104: 0 | F104: 0 | G104: 0.9077099195 | H104: Top10
A105: US74736K1016 | C105: THE | D105: 0 | E105: 0 | F105: 0 | G105: 0.9862442361 | H105: Top10
A106: US7611521078 | B106: ResMed Inc. | C106: THE | D106: 0 | E106: 0 | F106: 0 | G106: 1.091974278 | H106: Top10
A107: US7739031091 | C107: THE | D107: 0 | E107: 0 | F107: 0 | G107: 1.002884723 | H107: Top10
A108: US8064071025 | C108: THE | D108: 0 | E108: 0 | F108: 0 | G108: 1.062101687 | H108: Top10
A109: US83088M1027 | C109: THE | D109: 0 | E109: 0 | F109: 0 | G109: 0.9964022167 | H109: Top10
A110: US8716071076 | C110: THE | D110: 0 | E110: 0 | F110: 0 | G110: 1.026288918 | H110: Top10
A111: US87612E1064 | B111: Target Corporation | C111: THE | D111: 0 | E111: 0 | F111: 0 | G111: 1.142801741 | H111: Top10
A112: US8835561023 | C112: THE | D112: 0 | E112: 0 | F112: 0 | G112: 1.11340719 | H112: Top10
A113: US9297401088 | C113: THE | D113: 0 | E113: 0 | F113: 0 | G113: 1.098964435 | H113: Top10
A114: ZAE000026480 | B114: ZAE000026480 | C114: THE | D114: 0 | E114: 0 | F114: 0 | G114: 0.1890627449 | H114: Top10
A115: ZAE000071080 | C115: THE | D115: 0 | E115: 0 | F115: 0 | G115: 0.1321384069 | H115: Top10
A116: AU000000GMG2 | C116: THE | D116: -0.02406246726 | G116: 0 | H116: OverUnder
A117: AU000000MGR9 | C117: THE | D117: -0.04327625804 | G117: 0 | H117: OverUnder
A118: AU000000SGP0 | C118: THE | D118: -0.04443695968 | G118: 0 | H118: OverUnder
A119: CA13321L1085 | C119: THE | D119: -0.09852102281 | G119: 0 | H119: OverUnder
A120: CA1363751027 | C120: THE | D120: -0.0002608884696 | G120: 0 | H120: OverUnder
A121: CA1363851017 | C121: THE | D121: -0.002213474368 | G121: 0 | H121: OverUnder
A122: CA5503721063 | C122: THE | D122: 0.0312836112 | G122: 0 | H122: OverUnder
A123: CH0010570759 | C123: THE | D123: -0.01088428408 | G123: 0 | H123: OverUnder
A124: CH0012142631 | C124: THE | D124: 0.08225313006 | G124: 0 | H124: OverUnder
A125: CH0012221716 | C125: THE | D125: 0.004393548997 | G125: 0 | H125: OverUnder
A126: CH0012255151 | C126: THE | D126: 0.02937372106 | G126: 0 | H126: OverUnder
A127: CH0013841017 | C127: THE | D127: -0.0016005705 | G127: 0 | H127: OverUnder
A128: CH0030170408 | C128: THE | D128: 0.003501463322 | G128: 0 | H128: OverUnder
A129: CH0038863350 | C129: THE | D129: 0.03635821144 | G129: 0 | H129: OverUnder
A130: DE0005200000 | C130: THE | D130: -0.04654211904 | G130: 0 | H130: OverUnder
A131: DE0006048432 | C131: THE | D131: -0.00358071398 | G131: 0 | H131: OverUnder
A132: DE0006452907 | C132: THE | D132: -0.0001328836132 | G132: 0 | H132: OverUnder
A133: DE0006969603 | C133: THE | D133: 0.04708033303 | G133: 0 | H133: OverUnder
A134: DE0007164600 | C134: THE | D134: 0.02909000883 | G134: 0 | H134: OverUnder
A135: DE000A1DAHH0 | C135: THE | D135: -0.005184317156 | G135: 0 | H135: OverUnder
A136: DK0060079531 | C136: THE | D136: -0.0223731935 | G136: 0 | H136: OverUnder
A137: DK0060534915 | C137: THE | D137: 0.04840784027 | G137: 0 | H137: OverUnder
A138: FI0009005961 | C138: THE | D138: -0.0178496301 | G138: 0 | H138: OverUnder
A139: GB0004052071 | C139: THE | D139: -0.9918074082 | G139: 0 | H139: OverUnder
A140: GB0006731235 | C140: THE | D140: -0.9919400878 | G140: 0 | H140: OverUnder
A141: GB0006776081 | C141: THE | D141: -0.9928595624 | G141: 0 | H141: OverUnder
A142: GB0006825383 | C142: THE | D142: -0.9915312276 | G142: 0 | H142: OverUnder
A143: GB0033195214 | C143: THE | D143: -0.9922870552 | G143: 0 | H143: OverUnder
A144: GB00B1WY2338 | C144: THE | D144: -0.9923681281 | G144: 0 | H144: OverUnder
A145: GB00BLJNXL82 | C145: THE | D145: -0.00769388 | G145: 0 | H145: OverUnder
A146: IE00BZ12WP82 | C146: THE | D146: 0.01575606376 | G146: 0 | H146: OverUnder
A147: JP3249600002 | C147: THE | D147: -0.01804487622 | G147: 0 | H147: OverUnder
A148: JP3351600006 | C148: THE | D148: 0.0026016 | G148: 0 | H148: OverUnder
A149: JP3695200000 | C149: THE | D149: -0.0261221231 | G149: 0 | H149: OverUnder
A150: JP3786200000 | C150: THE | D150: -0.00598944512 | G150: 0 | H150: OverUnder
A151: LU0156801721 | C151: THE | D151: 0.01332608 | G151: 0 | H151: OverUnder
A152: NL0000009538 | C152: THE | D152: -0.01138017709 | G152: 0 | H152: OverUnder
A153: NL0000009827 | C153: THE | D153: 0.01280551263 | G153: 0 | H153: OverUnder
A154: NL0000226223 | C154: THE | D154: 0.07414905063 | G154: 0 | H154: OverUnder
A155: NL0013267909 | C155: THE | D155: 0.04901884093 | G155: 0 | H155: OverUnder
A156: NO0003733800 | C156: THE | D156: 0.04161359469 | G156: 0 | H156: OverUnder
A157: NO0010208051 | C157: THE | D157: 0.02736439791 | G157: 0 | H157: OverUnder
A158: SE0000112724 | C158: THE | D158: -0.0332878555 | G158: 0 | H158: OverUnder
A159: SE0007100581 | C159: THE | D159: 0.01063716882 | G159: 0 | H159: OverUnder
A160: SE0015811559 | C160: THE | D160: 0.01429650372 | G160: 0 | H160: OverUnder
A161: US0028241000 | C161: THE | D161: 0.01804220672 | G161: 0 | H161: OverUnder
A162: US00724F1012 | C162: THE | D162: 0.01221813889 | G162: 0 | H162: OverUnder
A163: US00751Y1064 | C163: THE | D163: -0.03035220774 | G163: 0 | H163: OverUnder
A164: US00846U1016 | C164: THE | D164: -0.005524814464 | G164: 0 | H164: OverUnder
A165: US0126531013 | C165: THE | D165: 0.04594121798 | G165: 0 | H165: OverUnder
A166: US0326541051 | C166: THE | D166: -0.03575859407 | G166: 0 | H166: OverUnder
A167: US0394831020 | C167: THE | D167: -0.0174859415 | G167: 0 | H167: OverUnder
A168: US05722G1004 | C168: THE | D168: 0.01650225533 | G168: 0 | H168: OverUnder
A169: US0865161014 | C169: THE | D169: 0.01423459083 | G169: 0 | H169: OverUnder
A170: US0905722072 | C170: THE | D170: 0.02780226776 | G170: 0 | H170: OverUnder
A171: US09073M1045 | C171: THE | D171: 0.009301575266 | G171: 0 | H171: OverUnder
A172: US14149Y1082 | C172: THE | D172: -0.01889294037 | G172: 0 | H172: OverUnder
A173: US1567821046 | C173: THE | D173: 0.03204513872 | G173: 0 | H173: OverUnder
A174: US1713401024 | C174: THE | D174: 0.04242118638 | G174: 0 | H174: OverUnder
A175: US17275R1023 | C175: THE | D175: 0.0021723712 | G175: 0 | H175: OverUnder
A176: US24906P1093 | C176: THE | D176: 0.00508252139 | G176: 0 | H176: OverUnder
A177: US28176E1082 | C177: THE | D177: 0.02741572855 | G177: 0 | H177: OverUnder
A178: US30161N1019 | C178: THE | D178: 0.02189265031 | G178: 0 | H178: OverUnder
A179: US3119001044 | C179: THE | D179: 0.01813885272 | G179: 0 | H179: OverUnder
A180: US34959J1088 | C180: THE | D180: 0.016089492 | G180: 0 | H180: OverUnder
A181: US35671D8570 | C181: THE | D181: -0.02973616835 | G181: 0 | H181: OverUnder
A182: US3724601055 | C182: THE | D182: -0.01830920349 | G182: 0 | H182: OverUnder
A183: US4456581077 | C183: THE | D183: 0.003522538928 | G183: 0 | H183: OverUnder
A184: US45167R1041 | C184: THE | D184: 0.006144513122 | G184: 0 | H184: OverUnder
A185: US4601461035 | C185: THE | D185: -0.06394689107 | G185: 0 | H185: OverUnder
A186: US48203R1041 | C186: THE | D186: 0.0727900064 | G186: 0 | H186: OverUnder
A187: US49271V1008 | C187: THE | D187: 0.04278533187 | G187: 0 | H187: OverUnder
A188: US4990491049 | C188: THE | D188: 0.02122138878 | G188: 0 | H188: OverUnder
A189: US5500211090 | C189: THE | D189: 0.0766993303 | G189: 0 | H189: OverUnder
A190: US5951121038 | C190: THE | D190: 0.01217012 | G190: 0 | H190: OverUnder
A191: US6081901042 | C191: THE | D191: -0.0830479792 | G191: 0 | H191: OverUnder
A192: US6516391066 | C192: THE | D192: -0.06781196712 | G192: 0 | H192: OverUnder
A193: US6795801009 | C193: THE | D193: 0.04763311993 | G193: 0 | H193: OverUnder
A194: US74340W1036 | C194: THE | D194: 0.006375348749 | G194: 0 | H194: OverUnder
A195: US7458671010 | C195: THE | D195: -0.01288952286 | G195: 0 | H195: OverUnder
A196: US74736K1016 | C196: THE | D196: 0.01771021 | G196: 0 | H196: OverUnder
A197: US7739031091 | C197: THE | D197: 0.012026993 | G197: 0 | H197: OverUnder
A198: US8064071025 | C198: THE | D198: 0.01314858531 | G198: 0 | H198: OverUnder
A199: US83088M1027 | C199: THE | D199: 0.00702953 | G199: 0 | H199: OverUnder
A200: US8716071076 | C200: THE | D200: 0.01547289344 | G200: 0 | H200: OverUnder
... 33 more rows

Sheet InTWRR (hidden)
A1: Seq | B1: Item | C1: qFundCode | D1: FundName | E1: ValDt1 | F1: ValDt2 | G1: NAV1 | H1: NAV2 | I1: TWRRPrice1 | J1: TWRRPrice2 | K1: TwrrRtrn | L1: BenchMark | M1: Excess | N1: Indix | O1: EAVTWRRPrice | P1: BAVTWRRPrice | Q1: CAVTWRRPrice | R1: EAVTWRRPrice1 | S1: EAVTWRRPrice2 | T1: BAVTWRRPrice1 | U1: BAVTWRRPrice2 | V1: CAVTWRRPrice1 | W1: CAVTWRRPrice2 | X1: IndexRtn | Y1: Indices1 | Z1: Indices2 | AA1: NetTwrrRtrn | AB1: PTR
A2: 2 | B2: Year To Date | C2: THE | D2: THE | E2: 2021-10-29 | F2: 2021-10-04 | G2: 10064008.12 | H2: 10000000 | I2: 1900-01-01 | J2: 1 | K2: 0 | N2: FBMKLCI | O2: 0.07185114776 | P2: 0 | Q2: 0 | R2: 1.071851148 | S2: 1 | T2: 1 | U2: 1900-01-01 | V2: 1 | W2: 1 | X2: 0.07185114776 | AA2: 0 | AB2: 0.0859

Sheet InHst (hidden)
A1: StockName | B1: Description | C1: OtherCode1 | D1: StockCurrency | E1: qKLSESector | F1: SectorName | G1: qIntSector | H1: IntSectorName | I1: qFundCode | J1: FundCurrency | K1: FundName | L1: CountryName | M1: qCountryID | N1: UnitFaceValue | O1: CostFC | P1: MarketValueFC | Q1: IslamicFlag | R1: RealisedGnL | S1: qStockCode | T1: DivReceived | U1: TWRR
I2: THE | J2: USD | K2: THE | N2: 5746 | O2: 96610.35 | P2: 94721.42 | R2: 0 | T2: 0 | U2: -0.02406246726
I3: THE | J3: USD | K3: THE | N3: 24840 | O3: 54876.46 | P3: 52727.74 | R3: 0 | T3: 0 | U3: -0.04327625804
I4: THE | J4: USD | K4: THE | N4: 8646 | O4: 30857.89 | P4: 29611.82 | R4: 0 | T4: 0 | U4: -0.04443695968
I5: THE | J5: USD | K5: THE | N5: 786 | O5: 21101.74 | P5: 19091.29 | R5: 0 | T5: 0 | U5: -0.09852102281
I6: THE | J6: USD | K6: THE | N6: 820 | O6: 109107.6 | P6: 108944.75 | R6: 0 | T6: 0 | U6: -0.0002608884696
I7: THE | J7: USD | K7: THE | N7: 2363 | O7: 100282.02 | P7: 100398.87 | R7: 0 | T7: 0 | U7: -0.002213474368
I8: THE | J8: USD | K8: THE | N8: 4184 | O8: 35167.9 | P8: 36398.77 | R8: 0 | T8: 0 | U8: 0.0312836112
I9: THE | J9: USD | K9: THE | N9: 1 | O9: 120376.86 | P9: 120135.55 | R9: 0 | T9: 0 | U9: -0.01088428408
A10: Roche Holding Ltd Genusssch. | B10: Roche Holding Ltd Genusssch. | D10: CHF | E10: 1900-02-14 | F10: Health Care | G10: 00:00:00 | H10: Others | I10: THE | J10: USD | K10: THE | L10: Switzerland | M10: CH | N10: 288 | O10: 112407.11 | P10: 111463.05 | Q10: 1 | R10: 0 | S10: CH0012032048 | T10: 0 | U10: -0.006667039768
I11: THE | J11: USD | K11: THE | N11: 3537 | O11: 69139.33 | P11: 74467.23 | R11: 0 | T11: 0 | U11: 0.08225313006
I12: THE | J12: USD | K12: THE | N12: 3268 | O12: 108279.65 | P12: 108206.95 | R12: 0 | T12: 0 | U12: 0.004393548997
I13: THE | J13: USD | K13: THE | N13: 378 | O13: 100726.97 | P13: 103797.11 | R13: 0 | T13: 0 | U13: 0.02937372106
I14: THE | J14: USD | K14: THE | N14: 142 | O14: 117273.75 | P14: 116512.02 | R14: 0 | T14: 0 | U14: -0.0016005705
I15: THE | J15: USD | K15: THE | N15: 145 | O15: 113470.36 | P15: 113299.08 | R15: 0 | T15: 0 | U15: 0.003501463322
I16: THE | J16: USD | K16: THE | N16: 852 | O16: 109097.21 | P16: 112525.84 | R16: 0 | T16: 0 | U16: 0.03635821144
A17: TE Connectivity Ltd. | B17: TE Connectivity Ltd. | D17: USD | E17: 1900-02-16 | F17: Information Technology | G17: 00:00:00 | H17: Others | I17: THE | J17: USD | K17: THE | L17: United States Of America | M17: US | N17: 790 | O17: 116335.6 | P17: 115340 | Q17: 1 | R17: 0 | S17: CH0102993182 | T17: 0 | U17: -0.008588095846
I18: THE | J18: USD | K18: THE | N18: 685 | O18: 76682.35 | P18: 72793.13 | R18: 0 | T18: 0 | U18: -0.04654211904
I19: THE | J19: USD | K19: THE | N19: 1143 | O19: 103087.47 | P19: 102272.59 | R19: 0 | T19: 0 | U19: -0.00358071398
I20: THE | J20: USD | K20: THE | N20: 991 | O20: 114149.44 | P20: 113676.23 | R20: 0 | T20: 0 | U20: -0.0001328836132
I21: THE | J21: USD | K21: THE | N21: 968 | O21: 114840 | P21: 120104.53 | R21: 0 | T21: 0 | U21: 0.04708033303
I22: THE | J22: USD | K22: THE | N22: 786 | O22: 111136.05 | P22: 113900.93 | R22: 0 | T22: 0 | U22: 0.02909000883
I23: THE | J23: USD | K23: THE | N23: 340 | O23: 32520.59 | P23: 32333.03 | R23: 0 | T23: 0 | U23: -0.005184317156
I24: THE | J24: USD | K24: THE | N24: 414 | O24: 98511.37 | P24: 96240.91 | R24: 0 | T24: 0 | U24: -0.0223731935
I25: THE | J25: USD | K25: THE | N25: 1008 | O25: 105350.39 | P25: 110354.78 | R25: 0 | T25: 0 | U25: 0.04840784027
I26: THE | J26: USD | K26: THE | N26: 3171 | O26: 53919.51 | P26: 52727.78 | R26: 0 | T26: 0 | U26: -0.0178496301
A27: UPM-Kymmene Oyj | B27: UPM-Kymmene Oyj | D27: EUR | E27: 1900-02-17 | F27: Materials | G27: 00:00:00 | H27: Others | I27: THE | J27: USD | K27: THE | L27: Finland | M27: FI | N27: 2544 | O27: 89773.95 | P27: 89781.31 | Q27: 1 | R27: 0 | S27: FI0009005987 | T27: 0 | U27: 0.00129053099
A28: LOreal SA | B28: LOreal SA | D28: EUR | E28: 1900-02-11 | F28: Consumer Staples | G28: 00:00:00 | H28: Others | I28: THE | J28: USD | K28: THE | L28: France | M28: FR | N28: 256 | O28: 110290.27 | P28: 116913.97 | Q28: 0 | R28: 0 | S28: FR0000120321 | T28: 0 | U28: 0.06150516884
A29: Schneider Electric SE | B29: Schneider Electric SE | D29: EUR | E29: 1900-02-15 | F29: Industrials | G29: 00:00:00 | H29: Others | I29: THE | J29: USD | K29: THE | L29: France | M29: FR | N29: 683 | O29: 114237.82 | P29: 117597.94 | Q29: 0 | R29: 0 | S29: FR0000121972 | T29: 0 | U29: 0.02976303344
I30: THE | J30: USD | K30: THE | N30: 2870 | O30: 118658.66 | P30: 116435.28 | R30: 0 | T30: 0 | U30: -0.9918074082
I31: THE | J31: USD | K31: THE | N31: 1110 | O31: 27507.9 | P31: 27183.67 | R31: 0 | T31: 0 | U31: -0.9919400878
I32: THE | J32: USD | K32: THE | N32: 840 | O32: 7053.76 | P32: 6930.78 | R32: 0 | T32: 0 | U32: -0.9928595624
I33: THE | J33: USD | K33: THE | N33: 590 | O33: 22274.11 | P33: 21988.63 | R33: 0 | T33: 0 | U33: -0.9915312276
I34: THE | J34: USD | K34: THE | N34: 7790 | O34: 35833.11 | P34: 35743.73 | R34: 0 | T34: 0 | U34: -0.9922870552
A35: Mondi plc | B35: Mondi plc | D35: GBP | E35: 1900-02-17 | F35: Materials | G35: 00:00:00 | H35: Others | I35: THE | J35: USD | K35: THE | L35: UNITED KINGDOM | M35: GB | N35: 4056 | O35: 100579.34 | P35: 101386.11 | Q35: 0 | R35: 0 | S35: GB00B1CRLC47 | T35: 0 | U35: 0.0136550231
I36: THE | J36: USD | K36: THE | N36: 1810 | O36: 34431.4 | P36: 33604.37 | R36: 0 | T36: 0 | U36: -0.9923681281
I37: THE | J37: USD | K37: THE | N37: 1600 | O37: 95673.66 | P37: 95438.98 | R37: 0 | T37: 0 | U37: -0.00769388
A38: MTR Corporation Limited | B38: MTR Corporation Limited | D38: HKD | E38: 1900-02-15 | F38: Industrials | G38: 00:00:00 | H38: Others | I38: THE | J38: USD | K38: THE | L38: Hong Kong | M38: HK | N38: 9160 | O38: 49807.67 | P38: 49942.01 | Q38: 1 | R38: 0 | S38: HK0066009694 | T38: 0 | U38: 0.002674986968
A39: HK0101000591 | B39: HK0101000591 | D39: HKD | E39: 1900-02-19 | F39: Utilities | G39: 00:00:00 | H39: Others | I39: THE | J39: USD | K39: THE | L39: Hong Kong | M39: HK | N39: 7000 | O39: 16542.03 | P39: 16256.25 | Q39: 1 | R39: 0 | S39: HK0101000591 | T39: 0 | U39: -0.01706375881
I40: THE | J40: USD | K40: THE | N40: 362 | O40: 113733.16 | P40: 115550.4 | R40: 0 | T40: 0 | U40: 0.01575606376
A41: Otsuka Holdings Co., Ltd. | B41: Otsuka Holdings Co., Ltd. | D41: JPY | E41: 1900-02-14 | F41: Health Care | G41: 00:00:00 | H41: Others | I41: THE | J41: USD | K41: THE | L41: Japan | M41: JP | N41: 1293 | O41: 52740.19 | P41: 51052.03 | Q41: 1 | R41: 0 | S41: JP3188220002 | T41: 0 | U41: -0.03699773729
A42: ONO Pharmaceutical Co., Ltd. | B42: ONO Pharmaceutical Co., Ltd. | D42: JPY | E42: 1900-02-14 | F42: Health Care | G42: 00:00:00 | H42: Others | I42: THE | J42: USD | K42: THE | L42: Japan | M42: JP | N42: 1340 | O42: 28835.47 | P42: 28084.43 | Q42: 1 | R42: 0 | S42: JP3197600004 | T42: 0 | U42: -0.03087375552
A43: Kao Corp. | B43: Kao Corp. | D43: JPY | E43: 1900-02-11 | F43: Consumer Staples | G43: 00:00:00 | H43: Others | I43: THE | J43: USD | K43: THE | L43: Japan | M43: JP | N43: 1783 | O43: 99507.98 | P43: 100742.16 | Q43: 1 | R43: 0 | S43: JP3205800000 | T43: 0 | U43: 0.007327424516
I44: THE | J44: USD | K44: THE | N44: 1673 | O44: 99100.8 | P44: 97819.5 | R44: 0 | T44: 0 | U44: -0.01804487622
I45: THE | J45: USD | K45: THE | N45: 1488 | O45: 98247.73 | P45: 99030.05 | R45: 0 | T45: 0 | U45: 0.0026016
A46: SEKISUI CHEMICAL CO.,LTD. | B46: SEKISUI CHEMICAL CO.,LTD. | D46: JPY | E46: 1900-02-10 | F46: Consumer Discretionary | G46: 00:00:00 | H46: Others | I46: THE | J46: USD | K46: THE | L46: Japan | M46: JP | N46: 4066 | O46: 63503.91 | P46: 66623.53 | Q46: 1 | R46: 0 | S46: JP3419400001 | T46: 0 | U46: 0.0438155054
A47: Daiwa House Industry Co., Ltd. | B47: Daiwa House Industry Co., Ltd. | D47: JPY | E47: 1900-02-18 | F47: Real Estate | G47: 00:00:00 | H47: Others | I47: THE | J47: USD | K47: THE | L47: Japan | M47: JP | N47: 1915 | O47: 63409.98 | P47: 63109.87 | Q47: 1 | R47: 0 | S47: JP3505000004 | T47: 0 | U47: -0.00965653264
A48: Tokyo Electron Ltd. | B48: Tokyo Electron Ltd. | D48: JPY | E48: 1900-02-16 | F48: Information Technology | G48: 00:00:00 | H48: Others | I48: THE | J48: USD | K48: THE | L48: Japan | M48: JP | N48: 223 | O48: 100396.82 | P48: 103545.51 | Q48: 1 | R48: 0 | S48: JP3571400005 | T48: 0 | U48: 0.02606796994
I49: THE | J49: USD | K49: THE | N49: 2086 | O49: 35416.73 | P49: 34675.03 | R49: 0 | T49: 0 | U49: -0.0261221231
A50: Nidec Corporation | B50: Nidec Corporation | D50: JPY | E50: 1900-02-15 | F50: Industrials | G50: 00:00:00 | H50: Others | I50: THE | J50: USD | K50: THE | L50: Japan | M50: JP | N50: 900 | O50: 99421.74 | P50: 99393.78 | Q50: 1 | R50: 0 | S50: JP3734800000 | T50: 0 | U50: -0.00549654565
A51: NIPPON PAINT HOLDINGS CO.LTD. | B51: NIPPON PAINT HOLDINGS CO.LTD. | D51: JPY | E51: 1900-02-17 | F51: Materials | G51: 00:00:00 | H51: Others | I51: THE | J51: USD | K51: THE | L51: Japan | M51: JP | N51: 3600 | O51: 39989.8 | P51: 38555.61 | Q51: 1 | R51: 0 | S51: JP3749400002 | T51: 0 | U51: -0.04102395816
A52: Nitori Holdings Co., Ltd. | B52: Nitori Holdings Co., Ltd. | D52: JPY | E52: 1900-02-15 | F52: Industrials | G52: 00:00:00 | H52: Others | I52: THE | J52: USD | K52: THE | L52: Japan | M52: JP | N52: 362 | O52: 65876.49 | P52: 66328.5 | Q52: 1 | R52: 0 | S52: JP3756100008 | T52: 0 | U52: 0.0016860734
I53: THE | J53: USD | K53: THE | N53: 5490 | O53: 104145.65 | P53: 104040.85 | R53: 0 | T53: 0 | U53: -0.00598944512
A54: Fujifilm Holdings Ord Shs | B54: Fujifilm Holdings Ord Shs | D54: JPY | E54: 1900-02-16 | F54: Information Technology | G54: 00:00:00 | H54: Others | I54: THE | J54: USD | K54: THE | L54: Japan | M54: JP | N54: 1422 | O54: 110686.76 | P54: 109954.51 | Q54: 1 | R54: 0 | S54: JP3814000000 | T54: 0 | U54: -0.009066551671
A55: Murata Manufacturing Co., Ltd. | B55: Murata Manufacturing Co., Ltd. | D55: JPY | E55: 1900-02-16 | F55: Information Technology | G55: 00:00:00 | H55: Others | I55: THE | J55: USD | K55: THE | L55: Japan | M55: JP | N55: 1332 | O55: 99763.51 | P55: 101263.36 | Q55: 1 | R55: 0 | S55: JP3914400001 | T55: 0 | U55: 0.009814996992
A56: Meiji Holdings Co., Ltd. | B56: Meiji Holdings Co., Ltd. | D56: JPY | E56: 1900-02-11 | F56: Consumer Staples | G56: 00:00:00 | H56: Others | I56: THE | J56: USD | K56: THE | L56: Japan | M56: JP | N56: 840 | O56: 52035.18 | P56: 53062.73 | Q56: 1 | R56: 0 | S56: JP3918000005 | T56: 0 | U56: 0.0146073473
A57: Astellas Pharma Inc. | B57: Astellas Pharma Inc. | D57: JPY | E57: 1900-02-14 | F57: Health Care | G57: 00:00:00 | H57: Others | I57: THE | J57: USD | K57: THE | L57: Japan | M57: JP | N57: 5649 | O57: 97521.29 | P57: 95142.62 | Q57: 1 | R57: 0 | S57: JP3942400007 | T57: 0 | U57: -0.02940722982
I58: THE | J58: USD | K58: THE | N58: 2038 | O58: 97487.49 | P58: 95973.12 | R58: 0 | T58: 0 | U58: -0.01138017709
I59: THE | J59: USD | K59: THE | N59: 559 | O59: 121153.06 | P59: 122200.45 | R59: 0 | T59: 0 | U59: 0.01280551263
I60: THE | J60: USD | K60: THE | N60: 2242 | O60: 99155.97 | P60: 106072.42 | R60: 0 | T60: 0 | U60: 0.07414905063
I61: THE | J61: USD | K61: THE | N61: 899 | O61: 99000.09 | P61: 103351.73 | R61: 0 | T61: 0 | U61: 0.04901884093
I62: THE | J62: USD | K62: THE | N62: 3417 | O62: 32046.29 | P62: 33316.8 | R62: 0 | T62: 0 | U62: 0.04161359469
I63: THE | J63: USD | K63: THE | N63: 648 | O63: 32953.03 | P63: 33898.03 | R63: 0 | T63: 0 | U63: 0.02736439791
I64: THE | J64: USD | K64: THE | N64: 3590 | O64: 58256.18 | P64: 56017.92 | R64: 0 | T64: 0 | U64: -0.0332878555
I65: THE | J65: USD | K65: THE | N65: 3435 | O65: 99599.62 | P65: 100673.86 | R65: 0 | T65: 0 | U65: 0.01063716882
I66: THE | J66: USD | K66: THE | N66: 2097 | O66: 73411.19 | P66: 74020.1 | R66: 0 | T66: 0 | U66: 0.01429650372
I67: THE | J67: USD | K67: THE | N67: 857 | O67: 108504.77 | P67: 110458.73 | R67: 0 | T67: 0 | U67: 0.01804220672
I68: THE | J68: USD | K68: THE | N68: 156 | O68: 100234.68 | P68: 101456.16 | R68: 0 | T68: 0 | U68: 0.01221813889
I69: THE | J69: USD | K69: THE | N69: 329 | O69: 76522.11 | P69: 74196.08 | R69: 0 | T69: 0 | U69: -0.03035220774
I70: THE | J70: USD | K70: THE | N70: 681 | O70: 107849.97 | P70: 107250.69 | R70: 0 | T70: 0 | U70: -0.005524814464
I71: THE | J71: USD | K71: THE | N71: 450 | O71: 107761.5 | P71: 112711.5 | R71: 0 | T71: 0 | U71: 0.04594121798
I72: THE | J72: USD | K72: THE | N72: 639 | O72: 114962.49 | P72: 110860.11 | R72: 0 | T72: 0 | U72: -0.03575859407
I73: THE | J73: USD | K73: THE | N73: 165 | O73: 10789.35 | P73: 10599.6 | R73: 0 | T73: 0 | U73: -0.0174859415
I74: THE | J74: USD | K74: THE | N74: 5063 | O74: 124904.21 | P74: 126980.04 | R74: 0 | T74: 0 | U74: 0.01650225533
I75: THE | J75: USD | K75: THE | N75: 908 | O75: 109423.08 | P75: 110993.92 | R75: 0 | T75: 0 | U75: 0.01423459083
I76: THE | J76: USD | K76: THE | N76: 143 | O76: 110564.74 | P76: 113639.24 | R76: 0 | T76: 0 | U76: 0.02780226776
I77: THE | J77: USD | K77: THE | N77: 200 | O77: 103760 | P77: 104730 | R77: 0 | T77: 0 | U77: 0.009301575266
I78: THE | J78: USD | K78: THE | N78: 1613 | O78: 78601.49 | P78: 77117.53 | R78: 0 | T78: 0 | U78: -0.01889294037
I79: THE | J79: USD | K79: THE | N79: 1400 | O79: 100772 | P79: 104006 | R79: 0 | T79: 0 | U79: 0.03204513872
I80: THE | J80: USD | K80: THE | N80: 1245 | O80: 104318.55 | P80: 108763.2 | R80: 0 | T80: 0 | U80: 0.04242118638
I81: THE | J81: USD | K81: THE | N81: 1834 | O81: 102410.56 | P81: 102648.98 | R81: 0 | T81: 0 | U81: 0.0021723712
I82: THE | J82: USD | K82: THE | N82: 200 | O82: 11384 | P82: 11442 | R82: 0 | T82: 0 | U82: 0.00508252139
I83: THE | J83: USD | K83: THE | N83: 991 | O83: 115570.42 | P83: 118741.62 | R83: 0 | T83: 0 | U83: 0.02741572855
I84: THE | J84: USD | K84: THE | N84: 2159 | O84: 112375.95 | P84: 114837.21 | R84: 0 | T84: 0 | U84: 0.02189265031
I85: THE | J85: USD | K85: THE | N85: 1900 | O85: 106514 | P85: 108452 | R85: 0 | T85: 0 | U85: 0.01813885272
I86: THE | J86: USD | K86: THE | N86: 1339 | O86: 99768.89 | P86: 101375.69 | R86: 0 | T86: 0 | U86: 0.016089492
I87: THE | J87: USD | K87: THE | N87: 2500 | O87: 97200 | P87: 94300 | R87: 0 | T87: 0 | U87: -0.02973616835
I88: THE | J88: USD | K88: THE | N88: 828 | O88: 110595.96 | P88: 108559.08 | R88: 0 | T88: 0 | U88: -0.01830920349
I89: THE | J89: USD | K89: THE | N89: 583 | O89: 114565.33 | P89: 114961.77 | R89: 0 | T89: 0 | U89: 0.003522538928
I90: THE | J90: USD | K90: THE | N90: 456 | O90: 100876.32 | P90: 101491.92 | R90: 0 | T90: 0 | U90: 0.006144513122
A91: Intel Corporation | B91: Intel Corporation | D91: USD | E91: 1900-02-16 | F91: Information Technology | G91: 00:00:00 | H91: Others | I91: THE | J91: USD | K91: THE | L91: United States Of America | M91: US | N91: 2113 | O91: 102079.03 | P91: 103537 | Q91: 1 | R91: 0 | S91: US4581401001 | T91: 0 | U91: 0.01427604939
I92: THE | J92: USD | K92: THE | N92: 1884 | O92: 99983.88 | P92: 93578.28 | R92: 0 | T92: 0 | U92: -0.06394689107
A93: Johnson & Johnson | B93: Johnson & Johnson | D93: USD | E93: 1900-02-14 | F93: Health Care | G93: 00:00:00 | H93: Others | I93: THE | J93: USD | K93: THE | L93: United States Of America | M93: US | N93: 621 | O93: 101688.75 | P93: 101148.48 | Q93: 1 | R93: 0 | S93: US4781601046 | T93: 0 | U93: -0.005426324143
I94: THE | J94: USD | K94: THE | N94: 3442 | O94: 94723.84 | P94: 101607.84 | R94: 0 | T94: 0 | U94: 0.0727900064
I95: THE | J95: USD | K95: THE | N95: 3164 | O95: 109506.04 | P95: 114188.76 | R95: 0 | T95: 0 | U95: 0.04278533187
I96: THE | J96: USD | K96: THE | N96: 1894 | O96: 105135.94 | P96: 107370.86 | R96: 0 | T96: 0 | U96: 0.02122138878
I97: THE | J97: USD | K97: THE | N97: 258 | O97: 111652.08 | P97: 120230.58 | R97: 0 | T97: 0 | U97: 0.0766993303
I98: THE | J98: USD | K98: THE | N98: 1420 | O98: 96943.4 | P98: 98122 | R98: 0 | T98: 0 | U98: 0.01217012
I99: THE | J99: USD | K99: THE | N99: 519 | O99: 100307.13 | P99: 91971.99 | R99: 0 | T99: 0 | U99: -0.0830479792
I100: THE | J100: USD | K100: THE | N100: 1876 | O100: 108695.44 | P100: 101304 | R100: 0 | T100: 0 | U100: -0.06781196712
I101: THE | J101: USD | K101: THE | N101: 365 | O101: 118913.35 | P101: 124592.75 | R101: 0 | T101: 0 | U101: 0.04763311993
A102: Procter & Gamble Company | B102: Procter & Gamble Company | D102: USD | E102: 1900-02-11 | F102: Consumer Staples | G102: 00:00:00 | H102: Others | I102: THE | J102: USD | K102: THE | L102: United States Of America | M102: US | N102: 777 | O102: 109448.22 | P102: 111103.23 | Q102: 1 | R102: 0 | S102: US7427181091 | T102: 0 | U102: 0.01496756461
I103: THE | J103: USD | K103: THE | N103: 852 | O103: 122713.56 | P103: 123505.92 | R103: 0 | T103: 0 | U103: 0.006375348749
I104: THE | J104: USD | K104: THE | N104: 1900 | O104: 92549 | P104: 91352 | R104: 0 | T104: 0 | U104: -0.01288952286
I105: THE | J105: USD | K105: THE | N105: 590 | O105: 97527 | P105: 99255.7 | R105: 0 | T105: 0 | U105: 0.01771021
A106: ResMed Inc. | B106: ResMed Inc. | D106: USD | E106: 1900-02-14 | F106: Health Care | G106: 00:00:00 | H106: Others | I106: THE | J106: USD | K106: THE | L106: United States Of America | M106: US | N106: 418 | O106: 109963.26 | P106: 109896.38 | Q106: 1 | R106: 0 | S106: US7611521078 | T106: 0 | U106: -0.0007763827241
I107: THE | J107: USD | K107: THE | N107: 316 | O107: 99729.6 | P107: 100930.4 | R107: 0 | T107: 0 | U107: 0.012026993
I108: THE | J108: USD | K108: THE | N108: 1400 | O108: 105490 | P108: 106890 | R108: 0 | T108: 0 | U108: 0.01314858531
I109: THE | J109: USD | K109: THE | N109: 600 | O109: 100740 | P109: 100278 | R109: 0 | T109: 0 | U109: 0.00702953
I110: THE | J110: USD | K110: THE | N110: 310 | O110: 101698.6 | P110: 103285.8 | R110: 0 | T110: 0 | U110: 0.01547289344
A111: Target Corporation | B111: Target Corporation | D111: USD | E111: 1900-02-10 | F111: Consumer Discretionary | G111: 00:00:00 | H111: Others | I111: THE | J111: USD | K111: THE | L111: United States Of America | M111: US | N111: 443 | O111: 111620.99 | P111: 115011.66 | Q111: 1 | R111: 0 | S111: US87612E1064 | T111: 0 | U111: 0.03025021249
I112: THE | J112: USD | K112: THE | N112: 177 | O112: 107577.06 | P112: 112053.39 | R112: 0 | T112: 0 | U112: 0.0414186027
I113: THE | J113: USD | K113: THE | N113: 1219 | O113: 112672.17 | P113: 110599.87 | R113: 0 | T113: 0 | U113: -0.01843615266
A114: ZAE000026480 | B114: ZAE000026480 | D114: HKD | E114: 1900-02-19 | F114: Utilities | G114: 00:00:00 | H114: Others | I114: THE | J114: USD | K114: THE | L114: Hong Kong | M114: HK | N114: 2150 | O114: 19237.09 | P114: 19027.29 | Q114: 1 | R114: 0 | S114: ZAE000026480 | T114: 0 | U114: -0.9874619105
I115: THE | J115: USD | K115: THE | N115: 1050 | O115: 13587.86 | P115: 13298.42 | R115: 0 | T115: 0 | U115: -0.9866648959

Sheet InTrn (hidden)
A1: StockName | B1: Description | C1: OtherCode1 | D1: StockCurrency | E1: SectorName | F1: qIntSector | G1: qTrnCode | H1: qFundCode | I1: FundCurrency | J1: FundName | K1: UnitFaceValue | L1: TradeDate | M1: ValueDate | N1: AccDate | O1: PayDate | P1: TranPrice | Q1: SCGrossProceed | R1: SCNetProceed | S1: ExchgRateSF | T1: CountryName | U1: qCountryID | V1: qStockCode | W1: FCAmt
A2: MTR Corporation Limited | B2: MTR Corporation Limited | D2: HKD | E2: Others | F2: 0 | G2: SP | H2: THE | I2: USD | J2: THE | K2: 9160 | L2: 2021-10-21 | M2: 2021-10-21 | N2: 2021-10-21 | O2: 44494 | P2: 42.15 | Q2: -386094 | R2: -387204.86 | S2: 7.774 | T2: Hong Kong | U2: HK | V2: HK0066009694 | W2: -49807.6743
A3: Fujifilm Holdings Ord Shs | B3: Fujifilm Holdings Ord Shs | D3: JPY | E3: Others | F3: 0 | G3: SP | H3: THE | I3: USD | J3: THE | K3: 1422 | L3: 2021-10-21 | M3: 2021-10-21 | N3: 2021-10-21 | O3: 44494 | P3: 8858 | Q3: -12596076 | R3: -12614970 | S3: 113.97 | T3: Japan | U3: JP | V3: JP3814000000 | W3: -110686.7597
A4: HK0101000591 | B4: HK0101000591 | D4: HKD | E4: Others | F4: 0 | G4: SP | H4: THE | I4: USD | J4: THE | K4: 7000 | L4: 2021-10-21 | M4: 2021-10-21 | N4: 2021-10-21 | O4: 44494 | P4: 18.3 | Q4: -128100 | R4: -128597.74 | S4: 7.774 | T4: Hong Kong | U4: HK | V4: HK0101000591 | W4: -16542.02984
A5: ResMed Inc. | B5: ResMed Inc. | D5: USD | E5: Others | F5: 0 | G5: SP | H5: THE | I5: USD | J5: THE | K5: 418 | L5: 2021-10-21 | M5: 2021-10-21 | N5: 2021-10-21 | O5: 44494 | P5: 263.04 | Q5: -109950.72 | R5: -109963.26 | S5: 1 | T5: United States Of America | U5: US | V5: US7611521078 | W5: -109963.26
A6: ZAE000026480 | B6: ZAE000026480 | D6: HKD | E6: Others | F6: 0 | G6: SP | H6: THE | I6: USD | J6: THE | K6: 21 | L6: 2021-10-21 | M6: 2021-10-21 | N6: 2021-10-21 | O6: 44495 | P6: 133.21 | Q6: -2797.41 | R6: -2816.45 | S6: 14.6724 | T6: Hong Kong | U6: HK | V6: ZAE000026480 | W6: -191.9556446
A7: Schneider Electric SE | B7: Schneider Electric SE | D7: EUR | E7: Others | F7: 0 | G7: SP | H7: THE | I7: USD | J7: THE | K7: 683 | L7: 2021-10-20 | M7: 2021-10-20 | N7: 2021-10-20 | O7: 44491 | P7: 142.78 | Q7: -97518.74 | R7: -98038.9 | S7: 0.8582 | T7: France | U7: FR | V7: FR0000121972 | W7: -114237.8234
A8: Eaton Corp. Plc | B8: Eaton Corp. Plc | D8: USD | E8: Others | F8: 0 | G8: SP | H8: THE | I8: USD | J8: THE | K8: 705 | L8: 2021-10-20 | M8: 2021-10-20 | N8: 2021-10-20 | O8: 44491 | P8: 163.2 | Q8: -115056 | R8: -115142.5 | S8: 1 | T8: United States Of America | U8: US | V8: IE00B8KQN827 | W8: -115142.5
A9: Johnson Controls International Ord Shs | B9: Johnson Controls International Ord Shs | D9: USD | E9: Others | F9: 0 | G9: SP | H9: THE | I9: USD | J9: THE | K9: 1605 | L9: 2021-10-20 | M9: 2021-10-20 | N9: 2021-10-20 | O9: 44491 | P9: 73.12 | Q9: -117357.6 | R9: -117534.1 | S9: 1 | T9: United States Of America | U9: US | V9: IE00BY7QL619 | W9: -117534.1
A10: TE Connectivity Ltd. | B10: TE Connectivity Ltd. | D10: USD | E10: Others | F10: 0 | G10: SP | H10: THE | I10: USD | J10: THE | K10: 790 | L10: 2021-10-20 | M10: 2021-10-20 | N10: 2021-10-20 | O10: 44491 | P10: 147.14 | Q10: -116240.6 | R10: -116335.6 | S10: 1 | T10: United States Of America | U10: US | V10: CH0102993182 | W10: -116335.6
A11: Target Corporation | B11: Target Corporation | D11: USD | E11: Others | F11: 0 | G11: SP | H11: THE | I11: USD | J11: THE | K11: 443 | L11: 2021-10-20 | M11: 2021-10-20 | N11: 2021-10-20 | O11: 44491 | P11: 251.83 | Q11: -111560.69 | R11: -111620.99 | S11: 1 | T11: United States Of America | U11: US | V11: US87612E1064 | W11: -111620.99

Sheet InFund (hidden)
A1: qFundCode | B1: FundName | C1: qFundType | D1: Islamic | E1: FinanceYrStart | F1: FinanceYrEnd | G1: qCompanyID | H1: RollEOYFlag | I1: Fundcurrency | J1: ManagerName | K1: Description
A2: BAPAC | B2: BIMB-ARABESQUE ASIA PACIFIC SHARIAH-ESG EQUITY | C2: 1 | D2: 1 | E2: 2015-11-05 | F2: 2021-10-29 | G2: BI | H2: 1 | I2: USD | J2: Abd Razak Salimin | K2: FBM KLCI
A3: BAPACMYR | B3: BAPAC (MYR) | C3: 1 | D3: 1 | E3: 2015-11-05 | F3: 2021-10-29 | G3: BI | H3: 1 | I3: MYR | J3: Abd Razak Salimin | K3: FBM KLCI
A4: BAPACUSD | B4: BAPAC (USD) | C4: 1 | D4: 1 | E4: 2015-11-05 | F4: 2021-10-29 | G4: BI | H4: 1 | I4: USD | J4: Abd Razak Salimin | K4: FBM KLCI
A5: BGSEF | B5: Bimb-Arabesque Global Shariah Sustainable Equity | C5: 1 | D5: 1 | E5: 2020-04-01 | F5: 2021-03-31 | G5: BI | H5: 1 | I5: USD | J5: Abd Razak Salimin | K5: MSCI ACWI Islamic Index
A6: BGSEFAUD | B6: BGSEFAUD | C6: 1 | D6: 1 | E6: 2020-04-01 | F6: 2021-03-31 | G6: BI | H6: 1 | I6: AUD | J6: Abd Razak Salimin | K6: MSCI ACWI Islamic Index
A7: BGSEFMYR | B7: Bimb-Arabesque Global Shariah Sustainable Equity | C7: 1 | D7: 1 | E7: 2020-04-01 | F7: 2021-03-31 | G7: BI | H7: 1 | I7: MYR | J7: Abd Razak Salimin | K7: MSCI ACWI Islamic Index
A8: BGSEFRMH | B8: Bimb-Arabesque Global Shariah Sustainable Equity | C8: 1 | D8: 1 | E8: 2020-04-01 | F8: 2021-03-31 | G8: BI | H8: 1 | I8: MYR | J8: Abd Razak Salimin | K8: MSCI ACWI Islamic Index
A9: BGSEFSGD | B9: Bimb-Arabesque Global Shariah Sustainable Equity | C9: 1 | D9: 1 | E9: 2020-04-01 | F9: 2021-03-31 | G9: BI | H9: 1 | I9: SGD | J9: Abd Razak Salimin | K9: MSCI ACWI Islamic Index
A10: BGSEFUSD | B10: Bimb-Arabesque Global Shariah Sustainable Equity | C10: 1 | D10: 1 | E10: 2020-04-01 | F10: 2021-03-31 | G10: BI | H10: 1 | I10: USD | J10: Abd Razak Salimin | K10: MSCI ACWI Islamic Index
A11: BIPF | B11: Bank Islam Premier Fund | C11: 1 | D11: 1 | E11: 2020-10-20 | F11: 2021-05-31 | G11: BI | H11: 1 | I11: MYR | J11: Abd Razak Salimin | K11: FBM EMAS SHARIAH
A12: BMSEF | B12: BIMB-Arabesque Malaysia Shariah-ESG Equity Fund | C12: 1 | D12: 1 | E12: 2017-03-09 | F12: 2021-05-31 | G12: BI | H12: 1 | I12: MYR | J12: Abd Razak Salimin | K12: FBM KLCI
A13: BMSEFEUR | B13: BMSEF (EUR) | C13: 1 | D13: 1 | E13: 2017-03-09 | F13: 2021-05-31 | G13: BI | H13: 1 | I13: EUR | J13: Abd Razak Salimin | K13: FBM KLCI
A14: BMSEFMYR | B14: BMSEF (MYR) | C14: 1 | D14: 1 | E14: 2017-03-09 | F14: 2021-05-31 | G14: BI | H14: 1 | I14: MYR | J14: Abd Razak Salimin | K14: FBM KLCI
A15: BMSEFSGD | B15: BMSEF (SGD) | C15: 1 | D15: 1 | E15: 2017-03-09 | F15: 2021-05-31 | G15: BI | H15: 1 | I15: SGD | J15: Abd Razak Salimin | K15: FBM KLCI
A16: BMSEFUSD | B16: BMSEF (USD) | C16: 1 | D16: 1 | E16: 2017-03-09 | F16: 2021-05-31 | G16: BI | H16: 1 | I16: USD | J16: Abd Razak Salimin | K16: FBM KLCI
A17: BSF | B17: BIMB ESG SUKUK FUND | C17: 2 | D17: 1 | E17: 2018-08-01 | F17: 2021-10-29 | G17: BI | H17: 1 | I17: MYR | J17: Ahmad Rizal Ujang | K17: FBM KLCI
A18: BSIF | B18: BIMB Shariah IncomePlus Fund | C18: 4 | D18: 1 | E18: 2020-05-28 | F18: 2021-12-31 | G18: BI | H18: 1 | I18: MYR | J18: Ahmad Rizal Ujang | K18: FBM KLCI
A19: GD1 | B19: BIMB-Arabesque i Global Dividend Fund 1 | C19: 1 | D19: 1 | E19: 2015-11-05 | F19: 2021-03-31 | G19: BI | H19: 1 | I19: USD | J19: Abd Razak Salimin | K19: FBM KLCI
A20: GD1MYR | B20: BIMB-Arabesque i Global Dividend Fund 1 (MYR) | C20: 1 | D20: 1 | E20: 2015-11-05 | F20: 2021-03-31 | G20: BI | H20: 1 | I20: MYR | J20: Abd Razak Salimin | K20: FBM KLCI
A21: GD1RM | B21: BIMB i Global Dividend Fund 1 (MYR) | C21: 0 | D21: 1 | E21: 2015-11-05 | F21: 2021-12-31 | G21: BI | H21: 0 | I21: MYR | J21: Abd Razak Salimin | K21: FBM KLCI
A22: GD1RMH | B22: BIMB-Arabesque i Global Dividend Fund 1 (MYR H) | C22: 1 | D22: 1 | E22: 2015-11-05 | F22: 2021-03-31 | G22: BI | H22: 1 | I22: MYR | J22: Abd Razak Salimin | K22: FBM KLCI
A23: GD1SGD | B23: BIMB-Arabesque i Global Dividend Fund 1 (SGD) | C23: 1 | D23: 1 | E23: 2015-11-05 | F23: 2021-03-31 | G23: BI | H23: 1 | I23: SGD | J23: Abd Razak Salimin | K23: FBM KLCI
A24: GD1USD | B24: BIMB-Arabesque i Global Dividend Fund 1 (USD) | C24: 1 | D24: 1 | E24: 2015-11-05 | F24: 2021-03-31 | G24: BI | H24: 1 | I24: USD | J24: Abd Razak Salimin | K24: FBM KLCI
A25: IB | B25: BIMB Dana Al-Fakhim | C25: 1 | D25: 1 | E25: 2015-09-01 | F25: 2021-08-30 | G25: BI | H25: 1 | I25: MYR | J25: Ahmad Rizal Ujang | K25: FBM KLCI
A26: ID | B26: BIMB Dana Al-Falah | C26: 1 | D26: 1 | E26: 2015-09-01 | F26: 2021-08-30 | G26: BI | H26: 1 | I26: MYR | J26: Thong Yong Ling | K26: FBM EMAS SHARIAH
A27: IF | B27: BIMB I Flexi Fund | C27: 1 | D27: 1 | E27: 2015-04-01 | F27: 2021-03-31 | G27: BI | H27: 1 | I27: MYR | J27: Thong Yong Ling | K27: FBM EMAS SHARIAH
A28: IP | B28: BIMB I Tactical Fund | C28: 1 | D28: 1 | E28: 2015-11-01 | F28: 2021-10-29 | G28: BI | H28: 1 | I28: MYR | J28: Thong Yong Ling | K28: FBM EMAS SHARIAH
A29: IS | B29: BIMB Dana Al-Munsif | C29: 1 | D29: 1 | E29: 2015-09-01 | F29: 2021-08-30 | G29: BI | H29: 1 | I29: MYR | J29: Thong Yong Ling | K29: FBM EMAS SHARIAH
A30: MWF | B30: Makmur myWakaf Fund | C30: 1 | D30: 1 | E30: 2021-01-01 | F30: 2021-12-31 | G30: BI | H30: 1 | I30: MYR | J30: Abd Razak Salimin | K30: FTSE BURSA MALAYSIA EMAS SHARIAH
A31: MWFAUD | B31: Makmur myWakaf Fund (AUD) | C31: 1 | D31: 1 | E31: 2021-01-01 | F31: 2021-12-31 | G31: BI | H31: 1 | I31: AUD | J31: Abd Razak Salimin | K31: FTSE BURSA MALAYSIA EMAS SHARIAH
A32: MWFMYR | B32: Makmur myWakaf Fund (MYR) | C32: 1 | D32: 1 | E32: 2021-01-01 | F32: 2021-12-31 | G32: BI | H32: 1 | I32: MYR | J32: Abd Razak Salimin | K32: FTSE BURSA MALAYSIA EMAS SHARIAH
A33: MWFUSD | B33: Makmur myWakaf Fund (USD) | C33: 1 | D33: 1 | E33: 2021-01-01 | F33: 2021-12-31 | G33: BI | H33: 1 | I33: USD | J33: Abd Razak Salimin | K33: FTSE BURSA MALAYSIA EMAS SHARIAH
A34: THE | B34: THE | C34: 1 | D34: 1 | E34: 2015-09-01 | F34: 2021-08-30 | G34: BI | H34: 1 | I34: USD | J34: Ahmad Rizal Ujang | K34: FBM KLCI
A35: TP | B35: BIMB I Growth | C35: 1 | D35: 1 | E35: 2015-07-01 | F35: 2021-06-30 | G35: BI | H35: 1 | I35: MYR | J35: Thong Yong Ling | K35: FBM EMAS SHARIAH

Sheet InPortFolio (hidden)
A1: qFundCode | B1: qProductType | C1: qStockCode | D1: qMasterID | E1: UnrealisedGainsStock | F1: UnrealisedGainsExchg | G1: MarketValueFC | H1: MarketValueSC | I1: MaturityDate | J1: UnitFaceValue | K1: PriceCurr | L1: ExchgRate | M1: AccruedInterest | N1: AmortAccreation | O1: CostFC | P1: costsc | Q1: ExPreAcq | R1: ExPreAcqSC | S1: fRefPrice | T1: PurchaseYTM | U1: PurchaseDate | V1: ValueYTM | W1: BookValue1Int | X1: ValGains | Y1: MarketValueDate | Z1: ExPreAcqSC1 | AA1: ExPreAcq1 | AB1: LastMarketValue | AC1: lcd | AD1: ncd | AE1: Diminution | AF1: qInvType | AG1: percNAV | AH1: nav | AI1: StockName | AJ1: StockCurrency | AK1: FundCurrency | AL1: seq | AM1: CountryName | AN1: sectorName | AO1: IntSecName | AP1: ManagerName | AQ1: CurrencyName | AR1: costPortfolio | AS1: sPeriod | AT1: HistoryDate
A2: THE | B2: EQT | C2: AU000000GMG2 | D2: THE*AU000000GMG2 | E2: -2616.15 | F2: 727.22 | G2: 94721.42 | H2: 125837.4 | I2: 3000-01-01 | J2: 5746 | K2: 21.9 | L2: 1.3285 | M2: 0 | N2: 0 | O2: 96610.35 | P2: 129312.96 | Q2: 0 | R2: 0 | S2: 0 | T2: 0 | U2: 2021-10-22 | V2: 0 | W2: 129312.96 | X2: 0 | Y2: 2021-10-29 | Z2: 0 | AA2: 0 | AB2: 0 | AC2: 3000-01-01 | AD2: 3000-01-01 | AE2: 0 | AF2: FVTPL | AG2: 0.9411898209 | AH2: 10064008.12 | AI2: AU000000GMG2 | AK2: USD | AL2: 1 | AP2: Ahmad Rizal Ujang | AR2: 96610.35 | AS2: Cur | AT2: 2021-10-29
A3: THE | B3: EQT | C3: AU000000MGR9 | D3: THE*AU000000MGR9 | E3: -2561.79 | F3: 413.07 | G3: 52727.74 | H3: 70048.8 | I3: 3000-01-01 | J3: 24840 | K3: 2.82 | L3: 1.3285 | M3: 0 | N3: 0 | O3: 54876.46 | P3: 73452.14 | Q3: 0 | R3: 0 | S3: 0 | T3: 0 | U3: 2021-10-22 | V3: 0 | W3: 73452.14 | X3: 0 | Y3: 2021-10-29 | Z3: 0 | AA3: 0 | AB3: 0 | AC3: 3000-01-01 | AD3: 3000-01-01 | AE3: 0 | AF3: FVTPL | AG3: 0.5239238619 | AH3: 10064008.12 | AI3: AU000000MGR9 | AK3: USD | AL3: 1 | AP3: Ahmad Rizal Ujang | AR3: 54876.46 | AS3: Cur | AT3: 2021-10-29
A4: THE | B4: EQT | C4: AU000000SGP0 | D4: THE*AU000000SGP0 | E4: -1478.34 | F4: 232.27 | G4: 29611.82 | H4: 39339.3 | I4: 3000-01-01 | J4: 8646 | K4: 4.55 | L4: 1.3285 | M4: 0 | N4: 0 | O4: 30857.89 | P4: 41303.28 | Q4: 0 | R4: 0 | S4: 0 | T4: 0 | U4: 2021-10-22 | V4: 0 | W4: 41303.28 | X4: 0 | Y4: 2021-10-29 | Z4: 0 | AA4: 0 | AB4: 0 | AC4: 3000-01-01 | AD4: 3000-01-01 | AE4: 0 | AF4: FVTPL | AG4: 0.294234858 | AH4: 10064008.12 | AI4: AU000000SGP0 | AK4: USD | AL4: 1 | AP4: Ahmad Rizal Ujang | AR4: 30857.89 | AS4: Cur | AT4: 2021-10-29
A5: THE | B5: EQT | C5: CA13321L1085 | D5: THE*CA13321L1085 | E5: -2018.97 | F5: 8.52 | G5: 19091.29 | H5: 23635.02 | I5: 3000-01-01 | J5: 786 | K5: 30.07 | L5: 1.238 | M5: 0 | N5: 0 | O5: 21101.74 | P5: 26134.5 | Q5: 0 | R5: 0 | S5: 0 | T5: 0 | U5: 2021-10-26 | V5: 0 | W5: 26134.5 | X5: 0 | Y5: 2021-10-29 | Z5: 0 | AA5: 0 | AB5: 0 | AC5: 3000-01-01 | AD5: 3000-01-01 | AE5: 0 | AF5: FVTPL | AG5: 0.1896986744 | AH5: 10064008.12 | AI5: CA13321L1085 | AK5: USD | AL5: 1 | AP5: Ahmad Rizal Ujang | AR5: 21101.74 | AS5: Cur | AT5: 2021-10-29
A6: THE | B6: EQT | C6: CA1363751027 | D6: THE*CA1363751027 | E6: -4.22 | F6: -158.63 | G6: 108944.75 | H6: 134873.6 | I6: 3000-01-01 | J6: 820 | K6: 164.48 | L6: 1.238 | M6: 0 | N6: 0 | O6: 109107.6 | P6: 134878.82 | Q6: 0 | R6: 0 | S6: 0 | T6: 0 | U6: 2021-10-21 | V6: 0 | W6: 134878.82 | X6: 0 | Y6: 2021-10-29 | Z6: 0 | AA6: 0 | AB6: 0 | AC6: 3000-01-01 | AD6: 3000-01-01 | AE6: 0 | AF6: FVTPL | AG6: 1.082518503 | AH6: 10064008.12 | AI6: CA1363751027 | AK6: USD | AL6: 1 | AP6: Ahmad Rizal Ujang | AR6: 109107.6 | AS6: Cur | AT6: 2021-10-29
A7: THE | B7: EQT | C7: CA1363851017 | D7: THE*CA1363851017 | E7: 76.35 | F7: 40.5 | G7: 100398.87 | H7: 124293.8 | I7: 3000-01-01 | J7: 2363 | K7: 52.6 | L7: 1.238 | M7: 0 | N7: 0 | O7: 100282.02 | P7: 124199.28 | Q7: 0 | R7: 0 | S7: 0 | T7: 0 | U7: 2021-10-26 | V7: 0 | W7: 124199.28 | X7: 0 | Y7: 2021-10-29 | Z7: 0 | AA7: 0 | AB7: 0 | AC7: 3000-01-01 | AD7: 3000-01-01 | AE7: 0 | AF7: FVTPL | AG7: 0.9976032293 | AH7: 10064008.12 | AI7: CA1363851017 | AK7: USD | AL7: 1 | AP7: Ahmad Rizal Ujang | AR7: 100282.02 | AS7: Cur | AT7: 2021-10-29
A8: THE | B8: EQT | C8: CA5503721063 | D8: THE*CA5503721063 | E8: 1216.67 | F8: 14.2 | G8: 36398.77 | H8: 45061.68 | I8: 3000-01-01 | J8: 4184 | K8: 10.77 | L8: 1.238 | M8: 0 | N8: 0 | O8: 35167.9 | P8: 43555.44 | Q8: 0 | R8: 0 | S8: 0 | T8: 0 | U8: 2021-10-26 | V8: 0 | W8: 43555.44 | X8: 0 | Y8: 2021-10-29 | Z8: 0 | AA8: 0 | AB8: 0 | AC8: 3000-01-01 | AD8: 3000-01-01 | AE8: 0 | AF8: FVTPL | AG8: 0.361672701 | AH8: 10064008.12 | AI8: CA5503721063 | AK8: USD | AL8: 1 | AP8: Ahmad Rizal Ujang | AR8: 35167.9 | AS8: Cur | AT8: 2021-10-29
A9: THE | B9: EQT | C9: CH0010570759 | D9: THE*CH0010570759 | E9: -886.1 | F9: 644.79 | G9: 120135.55 | H9: 109900 | I9: 3000-01-01 | J9: 1 | K9: 109900 | L9: 0.9148 | M9: 0 | N9: 0 | O9: 120376.86 | P9: 110710.6 | Q9: 0 | R9: 0 | S9: 0 | T9: 0 | U9: 2021-10-26 | V9: 0 | W9: 110710.6 | X9: 0 | Y9: 2021-10-29 | Z9: 0 | AA9: 0 | AB9: 0 | AC9: 3000-01-01 | AD9: 3000-01-01 | AE9: 0 | AF9: FVTPL | AG9: 1.193714756 | AH9: 10064008.12 | AI9: CH0010570759 | AK9: USD | AL9: 1 | AP9: Ahmad Rizal Ujang | AR9: 120376.86 | AS9: Cur | AT9: 2021-10-29
A10: THE | B10: EQT | C10: CH0012032048 | D10: THE*CH0012032048 | E10: -1349.55 | F10: 405.49 | G10: 111463.05 | H10: 101966.4 | I10: 3000-01-01 | J10: 288 | K10: 354.05 | L10: 0.9148 | M10: 0 | N10: 0 | O10: 112407.11 | P10: 103200.97 | Q10: 0 | R10: 0 | S10: 0 | T10: 0 | U10: 2021-10-21 | V10: 0 | W10: 103200.97 | X10: 0 | Y10: 2021-10-29 | Z10: 0 | AA10: 0 | AB10: 0 | AC10: 3000-01-01 | AD10: 3000-01-01 | AE10: 0 | AF10: FVTPL | AG10: 1.107541336 | AH10: 10064008.12 | AI10: Roche Holding Ltd Genusssch. | AJ10: CHF | AK10: USD | AL10: 1 | AM10: Switzerland | AN10: Health Care | AO10: Others | AP10: Ahmad Rizal Ujang | AQ10: Swiss Franc | AR10: 112407.11 | AS10: Cur | AT10: 2021-10-29
A11: THE | B11: EQT | C11: CH0012142631 | D11: THE*CH0012142631 | E11: 5305.23 | F11: 22.67 | G11: 74467.23 | H11: 68122.62 | I11: 3000-01-01 | J11: 3537 | K11: 19.26 | L11: 0.9148 | M11: 0 | N11: 0 | O11: 69139.33 | P11: 63269.4 | Q11: 0 | R11: 0 | S11: 0 | T11: 0 | U11: 2021-10-22 | V11: 0 | W11: 63269.4 | X11: 0 | Y11: 2021-10-29 | Z11: 0 | AA11: 0 | AB11: 0 | AC11: 3000-01-01 | AD11: 3000-01-01 | AE11: 0 | AF11: FVTPL | AG11: 0.7399361081 | AH11: 10064008.12 | AI11: CH0012142631 | AK11: USD | AL11: 1 | AP11: Ahmad Rizal Ujang | AR11: 69139.33 | AS11: Cur | AT11: 2021-10-29
A12: THE | B12: EQT | C12: CH0012221716 | D12: THE*CH0012221716 | E12: -108.21 | F12: 35.51 | G12: 108206.95 | H12: 98987.72 | I12: 3000-01-01 | J12: 3268 | K12: 30.29 | L12: 0.9148 | M12: 0 | N12: 0 | O12: 108279.65 | P12: 99086.71 | Q12: 0 | R12: 0 | S12: 0 | T12: 0 | U12: 2021-10-22 | V12: 0 | W12: 99086.71 | X12: 0 | Y12: 2021-10-29 | Z12: 0 | AA12: 0 | AB12: 0 | AC12: 3000-01-01 | AD12: 3000-01-01 | AE12: 0 | AF12: FVTPL | AG12: 1.075187427 | AH12: 10064008.12 | AI12: CH0012221716 | AK12: USD | AL12: 1 | AP12: Ahmad Rizal Ujang | AR12: 108279.65 | AS12: Cur | AT12: 2021-10-29
A13: THE | B13: EQT | C13: CH0012255151 | D13: THE*CH0012255151 | E13: 2826.12 | F13: 244.02 | G13: 103797.11 | H13: 94953.6 | I13: 3000-01-01 | J13: 378 | K13: 251.2 | L13: 0.9148 | M13: 0 | N13: 0 | O13: 100726.97 | P13: 92368.27 | Q13: 0 | R13: 0 | S13: 0 | T13: 0 | U13: 2021-10-22 | V13: 0 | W13: 92368.27 | X13: 0 | Y13: 2021-10-29 | Z13: 0 | AA13: 0 | AB13: 0 | AC13: 3000-01-01 | AD13: 3000-01-01 | AE13: 0 | AF13: FVTPL | AG13: 1.031369498 | AH13: 10064008.12 | AI13: CH0012255151 | AK13: USD | AL13: 1 | AP13: Ahmad Rizal Ujang | AR13: 100726.97 | AS13: Cur | AT13: 2021-10-29
A14: THE | B14: EQT | C14: CH0013841017 | D14: THE*CH0013841017 | E14: -800.19 | F14: 38.46 | G14: 116512.02 | H14: 106585.2 | I14: 3000-01-01 | J14: 142 | K14: 750.6 | L14: 0.9148 | M14: 0 | N14: 0 | O14: 117273.75 | P14: 107317.21 | Q14: 0 | R14: 0 | S14: 0 | T14: 0 | U14: 2021-10-22 | V14: 0 | W14: 107317.21 | X14: 0 | Y14: 2021-10-29 | Z14: 0 | AA14: 0 | AB14: 0 | AC14: 3000-01-01 | AD14: 3000-01-01 | AE14: 0 | AF14: FVTPL | AG14: 1.157709916 | AH14: 10064008.12 | AI14: CH0013841017 | AK14: USD | AL14: 1 | AP14: Ahmad Rizal Ujang | AR14: 117273.75 | AS14: Cur | AT14: 2021-10-29
A15: THE | B15: EQT | C15: CH0030170408 | D15: THE*CH0030170408 | E15: -208.49 | F15: 37.21 | G15: 113299.08 | H15: 103646 | I15: 3000-01-01 | J15: 145 | K15: 714.8 | L15: 0.9148 | M15: 0 | N15: 0 | O15: 113470.36 | P15: 103836.73 | Q15: 0 | R15: 0 | S15: 0 | T15: 0 | U15: 2021-10-22 | V15: 0 | W15: 103836.73 | X15: 0 | Y15: 2021-10-29 | Z15: 0 | AA15: 0 | AB15: 0 | AC15: 3000-01-01 | AD15: 3000-01-01 | AE15: 0 | AF15: FVTPL | AG15: 1.125784863 | AH15: 10064008.12 | AI15: CH0030170408 | AK15: USD | AL15: 1 | AP15: Ahmad Rizal Ujang | AR15: 113470.36 | AS15: Cur | AT15: 2021-10-29
A16: THE | B16: EQT | C16: CH0038863350 | D16: THE*CH0038863350 | E16: 3392.85 | F16: 35.78 | G16: 112525.84 | H16: 102938.64 | I16: 3000-01-01 | J16: 852 | K16: 120.82 | L16: 0.9148 | M16: 0 | N16: 0 | O16: 109097.21 | P16: 99834.86 | Q16: 0 | R16: 0 | S16: 0 | T16: 0 | U16: 2021-10-22 | V16: 0 | W16: 99834.86 | X16: 0 | Y16: 2021-10-29 | Z16: 0 | AA16: 0 | AB16: 0 | AC16: 3000-01-01 | AD16: 3000-01-01 | AE16: 0 | AF16: FVTPL | AG16: 1.118101642 | AH16: 10064008.12 | AI16: CH0038863350 | AK16: USD | AL16: 1 | AP16: Ahmad Rizal Ujang | AR16: 109097.21 | AS16: Cur | AT16: 2021-10-29
A17: THE | B17: EQT | C17: CH0102993182 | D17: THE*CH0102993182 | E17: -995.6 | F17: 0 | G17: 115340 | H17: 115340 | I17: 3000-01-01 | J17: 790 | K17: 146 | L17: 1 | M17: 0 | N17: 0 | O17: 116335.6 | P17: 116335.6 | Q17: 0 | R17: 0 | S17: 0 | T17: 0 | U17: 2021-10-20 | V17: 0 | W17: 116335.6 | X17: 0 | Y17: 2021-10-29 | Z17: 0 | AA17: 0 | AB17: 0 | AC17: 3000-01-01 | AD17: 3000-01-01 | AE17: 0 | AF17: FVTPL | AG17: 1.146064258 | AH17: 10064008.12 | AI17: TE Connectivity Ltd. | AJ17: USD | AK17: USD | AL17: 1 | AM17: United States Of America | AN17: Information Technology | AO17: Others | AP17: Ahmad Rizal Ujang | AQ17: US Dollar | AR17: 116335.6 | AS17: Cur | AT17: 2021-10-29
A18: THE | B18: EQT | C18: DE0005200000 | D18: THE*DE0005200000 | E18: -3339.47 | F18: -549.75 | G18: 72793.13 | H18: 62951.5 | I18: 3000-01-01 | J18: 685 | K18: 91.9 | L18: 0.8648 | M18: 0 | N18: 0 | O18: 76682.35 | P18: 65839.47 | Q18: 0 | R18: 0 | S18: 0 | T18: 0 | U18: 2021-10-22 | V18: 0 | W18: 65839.47 | X18: 0 | Y18: 2021-10-29 | Z18: 0 | AA18: 0 | AB18: 0 | AC18: 3000-01-01 | AD18: 3000-01-01 | AE18: 0 | AF18: FVTPL | AG18: 0.7233015826 | AH18: 10064008.12 | AI18: DE0005200000 | AK18: USD | AL18: 1 | AP18: Ahmad Rizal Ujang | AR18: 76682.35 | AS18: Cur | AT18: 2021-10-29
A19: THE | B19: EQT | C19: DE0006048432 | D19: THE*DE0006048432 | E19: -75.81 | F19: -739.07 | G19: 102272.59 | H19: 88445.34 | I19: 3000-01-01 | J19: 1143 | K19: 77.38 | L19: 0.8648 | M19: 0 | N19: 0 | O19: 103087.47 | P19: 88510.9 | Q19: 0 | R19: 0 | S19: 0 | T19: 0 | U19: 2021-10-22 | V19: 0 | W19: 88510.9 | X19: 0 | Y19: 2021-10-29 | Z19: 0 | AA19: 0 | AB19: 0 | AC19: 3000-01-01 | AD19: 3000-01-01 | AE19: 0 | AF19: FVTPL | AG19: 1.016221259 | AH19: 10064008.12 | AI19: DE0006048432 | AK19: USD | AL19: 1 | AP19: Ahmad Rizal Ujang | AR19: 103087.47 | AS19: Cur | AT19: 2021-10-29
A20: THE | B20: EQT | C20: DE0006452907 | D20: THE*DE0006452907 | E20: 345.15 | F20: -818.36 | G20: 113676.23 | H20: 98307.2 | I20: 3000-01-01 | J20: 991 | K20: 99.2 | L20: 0.8648 | M20: 0 | N20: 0 | O20: 114149.44 | P20: 98008.71 | Q20: 0 | R20: 0 | S20: 0 | T20: 0 | U20: 2021-10-22 | V20: 0 | W20: 98008.71 | X20: 0 | Y20: 2021-10-29 | Z20: 0 | AA20: 0 | AB20: 0 | AC20: 3000-01-01 | AD20: 3000-01-01 | AE20: 0 | AF20: FVTPL | AG20: 1.129532376 | AH20: 10064008.12 | AI20: DE0006452907 | AK20: USD | AL20: 1 | AP20: Ahmad Rizal Ujang | AR20: 114149.44 | AS20: Cur | AT20: 2021-10-29
A21: THE | B21: EQT | C21: DE0006969603 | D21: THE*DE0006969603 | E21: 5875.38 | F21: -610.85 | G21: 120104.53 | H21: 103866.4 | I21: 3000-01-01 | J21: 968 | K21: 107.3 | L21: 0.8648 | M21: 0 | N21: 0 | O21: 114840 | P21: 98785.37 | Q21: 0 | R21: 0 | S21: 0 | T21: 0 | U21: 2021-10-21 | V21: 0 | W21: 98785.37 | X21: 0 | Y21: 2021-10-29 | Z21: 0 | AA21: 0 | AB21: 0 | AC21: 3000-01-01 | AD21: 3000-01-01 | AE21: 0 | AF21: FVTPL | AG21: 1.193406529 | AH21: 10064008.12 | AI21: DE0006969603 | AK21: USD | AL21: 1 | AP21: Ahmad Rizal Ujang | AR21: 114840 | AS21: Cur | AT21: 2021-10-29
A22: THE | B22: EQT | C22: DE0007164600 | D22: THE*DE0007164600 | E22: 3561.64 | F22: -796.76 | G22: 113900.93 | H22: 98501.52 | I22: 3000-01-01 | J22: 786 | K22: 125.32 | L22: 0.8648 | M22: 0 | N22: 0 | O22: 111136.05 | P22: 95421.41 | Q22: 0 | R22: 0 | S22: 0 | T22: 0 | U22: 2021-10-22 | V22: 0 | W22: 95421.41 | X22: 0 | Y22: 2021-10-29 | Z22: 0 | AA22: 0 | AB22: 0 | AC22: 3000-01-01 | AD22: 3000-01-01 | AE22: 0 | AF22: FVTPL | AG22: 1.131765084 | AH22: 10064008.12 | AI22: DE0007164600 | AK22: USD | AL22: 1 | AP22: Ahmad Rizal Ujang | AR22: 111136.05 | AS22: Cur | AT22: 2021-10-29
A23: THE | B23: EQT | C23: DE000A1DAHH0 | D23: THE*DE000A1DAHH0 | E23: -55.94 | F23: -131.62 | G23: 32333.03 | H23: 27961.6 | I23: 3000-01-01 | J23: 340 | K23: 82.24 | L23: 0.8648 | M23: 0 | N23: 0 | O23: 32520.59 | P23: 28009.98 | Q23: 0 | R23: 0 | S23: 0 | T23: 0 | U23: 2021-10-25 | V23: 0 | W23: 28009.98 | X23: 0 | Y23: 2021-10-29 | Z23: 0 | AA23: 0 | AB23: 0 | AC23: 3000-01-01 | AD23: 3000-01-01 | AE23: 0 | AF23: FVTPL | AG23: 0.3212738863 | AH23: 10064008.12 | AI23: DE000A1DAHH0 | AK23: USD | AL23: 1 | AP23: Ahmad Rizal Ujang | AR23: 32520.59 | AS23: Cur | AT23: 2021-10-29
A24: THE | B24: EQT | C24: DK0060079531 | D24: THE*DK0060079531 | E24: -1867.74 | F24: -402.72 | G24: 96240.91 | H24: 619137 | I24: 3000-01-01 | J24: 414 | K24: 1495.5 | L24: 6.4332 | M24: 0 | N24: 0 | O24: 98511.37 | P24: 631152.52 | Q24: 0 | R24: 0 | S24: 0 | T24: 0 | U24: 2021-10-25 | V24: 0 | W24: 631152.52 | X24: 0 | Y24: 2021-10-29 | Z24: 0 | AA24: 0 | AB24: 0 | AC24: 3000-01-01 | AD24: 3000-01-01 | AE24: 0 | AF24: FVTPL | AG24: 0.9562880798 | AH24: 10064008.12 | AI24: DK0060079531 | AK24: USD | AL24: 1 | AP24: Ahmad Rizal Ujang | AR24: 98511.37 | AS24: Cur | AT24: 2021-10-29
A25: THE | B25: EQT | C25: DK0060534915 | D25: THE*DK0060534915 | E25: 5546.44 | F25: -542.05 | G25: 110354.78 | H25: 709934.4 | I25: 3000-01-01 | J25: 1008 | K25: 704.3 | L25: 6.4332 | M25: 0 | N25: 0 | O25: 105350.39 | P25: 674253.06 | Q25: 0 | R25: 0 | S25: 0 | T25: 0 | U25: 2021-10-21 | V25: 0 | W25: 674253.06 | X25: 0 | Y25: 2021-10-29 | Z25: 0 | AA25: 0 | AB25: 0 | AC25: 3000-01-01 | AD25: 3000-01-01 | AE25: 0 | AF25: FVTPL | AG25: 1.096529123 | AH25: 10064008.12 | AI25: DK0060534915 | AK25: USD | AL25: 1 | AP25: Ahmad Rizal Ujang | AR25: 105350.39 | AS25: Cur | AT25: 2021-10-29
A26: THE | B26: EQT | C26: FI0009005961 | D26: THE*FI0009005961 | E26: -805.17 | F26: -386.56 | G26: 52727.78 | H26: 45598.98 | I26: 3000-01-01 | J26: 3171 | K26: 14.38 | L26: 0.8648 | M26: 0 | N26: 0 | O26: 53919.51 | P26: 46295.29 | Q26: 0 | R26: 0 | S26: 0 | T26: 0 | U26: 2021-10-22 | V26: 0 | W26: 46295.29 | X26: 0 | Y26: 2021-10-29 | Z26: 0 | AA26: 0 | AB26: 0 | AC26: 3000-01-01 | AD26: 3000-01-01 | AE26: 0 | AF26: FVTPL | AG26: 0.5239242593 | AH26: 10064008.12 | AI26: FI0009005961 | AK26: USD | AL26: 1 | AP26: Ahmad Rizal Ujang | AR26: 53919.51 | AS26: Cur | AT26: 2021-10-29
A27: THE | B27: EQT | C27: FI0009005987 | D27: THE*FI0009005987 | E27: 484.89 | F27: -477.53 | G27: 89781.31 | H27: 77642.88 | I27: 3000-01-01 | J27: 2544 | K27: 30.52 | L27: 0.8648 | M27: 0 | N27: 0 | O27: 89773.95 | P27: 77223.55 | Q27: 0 | R27: 0 | S27: 0 | T27: 0 | U27: 2021-10-21 | V27: 0 | W27: 77223.55 | X27: 0 | Y27: 2021-10-29 | Z27: 0 | AA27: 0 | AB27: 0 | AC27: 3000-01-01 | AD27: 3000-01-01 | AE27: 0 | AF27: FVTPL | AG27: 0.8921029169 | AH27: 10064008.12 | AI27: UPM-Kymmene Oyj | AJ27: EUR | AK27: USD | AL27: 1 | AM27: Finland | AN27: Materials | AO27: Others | AP27: Ahmad Rizal Ujang | AQ27: Euro | AR27: 89773.95 | AS27: Cur | AT27: 2021-10-29
A28: THE | B28: EQT | C28: FR0000120321 | D28: THE*FR0000120321 | E28: 7210.35 | F28: -586.65 | G28: 116913.97 | H28: 101107.2 | I28: 3000-01-01 | J28: 256 | K28: 394.95 | L28: 0.8648 | M28: 0 | N28: 0 | O28: 110290.27 | P28: 94871.69 | Q28: 0 | R28: 0 | S28: 0 | T28: 0 | U28: 2021-10-21 | V28: 0 | W28: 94871.69 | X28: 0 | Y28: 2021-10-29 | Z28: 0 | AA28: 0 | AB28: 0 | AC28: 3000-01-01 | AD28: 3000-01-01 | AE28: 0 | AF28: FVTPL | AG28: 1.161703852 | AH28: 10064008.12 | AI28: LOreal SA | AJ28: EUR | AK28: USD | AL28: 1 | AM28: France | AN28: Consumer Staples | AO28: Others | AP28: Ahmad Rizal Ujang | AQ28: Euro | AR28: 110290.27 | AS28: Cur | AT28: 2021-10-29
A29: THE | B29: EQT | C29: FR0000121972 | D29: THE*FR0000121972 | E29: 4231.96 | F29: -871.84 | G29: 117597.94 | H29: 101698.7 | I29: 3000-01-01 | J29: 683 | K29: 148.9 | L29: 0.8648 | M29: 0 | N29: 0 | O29: 114237.82 | P29: 98038.9 | Q29: 0 | R29: 0 | S29: 0 | T29: 0 | U29: 2021-10-20 | V29: 0 | W29: 98038.9 | X29: 0 | Y29: 2021-10-29 | Z29: 0 | AA29: 0 | AB29: 0 | AC29: 3000-01-01 | AD29: 3000-01-01 | AE29: 0 | AF29: FVTPL | AG29: 1.168500051 | AH29: 10064008.12 | AI29: Schneider Electric SE | AJ29: EUR | AK29: USD | AL29: 1 | AM29: France | AN29: Industrials | AO29: Others | AP29: Ahmad Rizal Ujang | AQ29: Euro | AR29: 114237.82 | AS29: Cur | AT29: 2021-10-29
A30: THE | B30: EQT | C30: GB0004052071 | D30: THE*GB0004052071 | E30: -1364.44 | F30: -858.94 | G30: 116435.28 | H30: 85009.4 | I30: 3000-01-01 | J30: 2870 | K30: 29.62 | L30: 0.7301 | M30: 0 | N30: 0 | O30: 118658.66 | P30: 86005.58 | Q30: 0 | R30: 0 | S30: 0 | T30: 0 | U30: 2021-10-22 | V30: 0 | W30: 86005.58 | X30: 0 | Y30: 2021-10-29 | Z30: 0 | AA30: 0 | AB30: 0 | AC30: 3000-01-01 | AD30: 3000-01-01 | AE30: 0 | AF30: FVTPL | AG30: 1.156947397 | AH30: 10064008.12 | AI30: GB0004052071 | AK30: USD | AL30: 1 | AP30: Ahmad Rizal Ujang | AR30: 118658.66 | AS30: Cur | AT30: 2021-10-29
A31: THE | B31: EQT | C31: GB0006731235 | D31: THE*GB0006731235 | E31: -125.08 | F31: -199.15 | G31: 27183.67 | H31: 19846.8 | I31: 3000-01-01 | J31: 1110 | K31: 17.88 | L31: 0.7301 | M31: 0 | N31: 0 | O31: 27507.9 | P31: 19938.12 | Q31: 0 | R31: 0 | S31: 0 | T31: 0 | U31: 2021-10-22 | V31: 0 | W31: 19938.12 | X31: 0 | Y31: 2021-10-29 | Z31: 0 | AA31: 0 | AB31: 0 | AC31: 3000-01-01 | AD31: 3000-01-01 | AE31: 0 | AF31: FVTPL | AG31: 0.2701077908 | AH31: 10064008.12 | AI31: GB0006731235 | AK31: USD | AL31: 1 | AP31: Ahmad Rizal Ujang | AR31: 27507.9 | AS31: Cur | AT31: 2021-10-29
A32: THE | B32: EQT | C32: GB0006776081 | D32: THE*GB0006776081 | E32: -71.92 | F32: -51.06 | G32: 6930.78 | H32: 5060.16 | I32: 3000-01-01 | J32: 840 | K32: 6.024 | L32: 0.7301 | M32: 0 | N32: 0 | O32: 7053.76 | P32: 5112.67 | Q32: 0 | R32: 0 | S32: 0 | T32: 0 | U32: 2021-10-22 | V32: 0 | W32: 5112.67 | X32: 0 | Y32: 2021-10-29 | Z32: 0 | AA32: 0 | AB32: 0 | AC32: 3000-01-01 | AD32: 3000-01-01 | AE32: 0 | AF32: FVTPL | AG32: 0.06886699531 | AH32: 10064008.12 | AI32: GB0006776081 | AK32: USD | AL32: 1 | AP32: Ahmad Rizal Ujang | AR32: 7053.76 | AS32: Cur | AT32: 2021-10-29
A33: THE | B33: EQT | C33: GB0006825383 | D33: THE*GB0006825383 | E33: -124.23 | F33: -161.25 | G33: 21988.63 | H33: 16053.9 | I33: 3000-01-01 | J33: 590 | K33: 27.21 | L33: 0.7301 | M33: 0 | N33: 0 | O33: 22274.11 | P33: 16144.6 | Q33: 0 | R33: 0 | S33: 0 | T33: 0 | U33: 2021-10-22 | V33: 0 | W33: 16144.6 | X33: 0 | Y33: 2021-10-29 | Z33: 0 | AA33: 0 | AB33: 0 | AC33: 3000-01-01 | AD33: 3000-01-01 | AE33: 0 | AF33: FVTPL | AG33: 0.2184878007 | AH33: 10064008.12 | AI33: GB0006825383 | AK33: USD | AL33: 1 | AP33: Ahmad Rizal Ujang | AR33: 22274.11 | AS33: Cur | AT33: 2021-10-29
A34: THE | B34: EQT | C34: GB0033195214 | D34: THE*GB0033195214 | E34: 170 | F34: -259.38 | G34: 35743.73 | H34: 26096.5 | I34: 3000-01-01 | J34: 7790 | K34: 3.35 | L34: 0.7301 | M34: 0 | N34: 0 | O34: 35833.11 | P34: 25972.38 | Q34: 0 | R34: 0 | S34: 0 | T34: 0 | U34: 2021-10-22 | V34: 0 | W34: 25972.38 | X34: 0 | Y34: 2021-10-29 | Z34: 0 | AA34: 0 | AB34: 0 | AC34: 3000-01-01 | AD34: 3000-01-01 | AE34: 0 | AF34: FVTPL | AG34: 0.3551639622 | AH34: 10064008.12 | AI34: GB0033195214 | AK34: USD | AL34: 1 | AP34: Ahmad Rizal Ujang | AR34: 35833.11 | AS34: Cur | AT34: 2021-10-29
A35: THE | B35: EQT | C35: GB00B1CRLC47 | D35: THE*GB00B1CRLC47 | E35: 1421.91 | F35: -615.14 | G35: 101386.11 | H35: 74022 | I35: 3000-01-01 | J35: 4056 | K35: 18.25 | L35: 0.7301 | M35: 0 | N35: 0 | O35: 100579.34 | P35: 72983.86 | Q35: 0 | R35: 0 | S35: 0 | T35: 0 | U35: 2021-10-21 | V35: 0 | W35: 72983.86 | X35: 0 | Y35: 2021-10-29 | Z35: 0 | AA35: 0 | AB35: 0 | AC35: 3000-01-01 | AD35: 3000-01-01 | AE35: 0 | AF35: FVTPL | AG35: 1.00741284 | AH35: 10064008.12 | AI35: Mondi plc | AJ35: GBP | AK35: USD | AL35: 1 | AM35: UNITED KINGDOM | AN35: Materials | AO35: Others | AP35: Ahmad Rizal Ujang | AQ35: Pound Sterling | AR35: 100579.34 | AS35: Cur | AT35: 2021-10-29
A36: THE | B36: EQT | C36: GB00B1WY2338 | D36: THE*GB00B1WY2338 | E36: -577.81 | F36: -249.22 | G36: 33604.37 | H36: 24534.55 | I36: 3000-01-01 | J36: 1810 | K36: 13.555 | L36: 0.7301 | M36: 0 | N36: 0 | O36: 34431.4 | P36: 24956.41 | Q36: 0 | R36: 0 | S36: 0 | T36: 0 | U36: 2021-10-22 | V36: 0 | W36: 24956.41 | X36: 0 | Y36: 2021-10-29 | Z36: 0 | AA36: 0 | AB36: 0 | AC36: 3000-01-01 | AD36: 3000-01-01 | AE36: 0 | AF36: FVTPL | AG36: 0.3339064277 | AH36: 10064008.12 | AI36: GB00B1WY2338 | AK36: USD | AL36: 1 | AP36: Ahmad Rizal Ujang | AR36: 34431.4 | AS36: Cur | AT36: 2021-10-29
A37: THE | B37: EQT | C37: GB00BLJNXL82 | D37: THE*GB00BLJNXL82 | E37: 263.28 | F37: -497.96 | G37: 95438.98 | H37: 69680 | I37: 3000-01-01 | J37: 1600 | K37: 43.55 | L37: 0.7301 | M37: 0 | N37: 0 | O37: 95673.66 | P37: 69487.78 | Q37: 0 | R37: 0 | S37: 0 | T37: 0 | U37: 2021-10-26 | V37: 0 | W37: 69487.78 | X37: 0 | Y37: 2021-10-29 | Z37: 0 | AA37: 0 | AB37: 0 | AC37: 3000-01-01 | AD37: 3000-01-01 | AE37: 0 | AF37: FVTPL | AG37: 0.9483197834 | AH37: 10064008.12 | AI37: GB00BLJNXL82 | AK37: USD | AL37: 1 | AP37: Ahmad Rizal Ujang | AR37: 95673.66 | AS37: Cur | AT37: 2021-10-29
A38: THE | B38: EQT | C38: HK0066009694 | D38: THE*HK0066009694 | E38: 151.62 | F38: -17.28 | G38: 49942.01 | H38: 388384 | I38: 3000-01-01 | J38: 9160 | K38: 42.4 | L38: 7.7767 | M38: 0 | N38: 0 | O38: 49807.67 | P38: 387204.86 | Q38: 0 | R38: 0 | S38: 0 | T38: 0 | U38: 2021-10-21 | V38: 0 | W38: 387204.86 | X38: 0 | Y38: 2021-10-29 | Z38: 0 | AA38: 0 | AB38: 0 | AC38: 3000-01-01 | AD38: 3000-01-01 | AE38: 0 | AF38: FVTPL | AG38: 0.4962437371 | AH38: 10064008.12 | AI38: MTR Corporation Limited | AJ38: HKD | AK38: USD | AL38: 1 | AM38: Hong Kong | AN38: Industrials | AO38: Others | AP38: Ahmad Rizal Ujang | AQ38: Hong Kong Dollar | AR38: 49807.67 | AS38: Cur | AT38: 2021-10-29
A39: THE | B39: EQT | C39: HK0101000591 | D39: THE*HK0101000591 | E39: -280.03 | F39: -5.75 | G39: 16256.25 | H39: 126420 | I39: 3000-01-01 | J39: 7000 | K39: 18.06 | L39: 7.7767 | M39: 0 | N39: 0 | O39: 16542.03 | P39: 128597.74 | Q39: 0 | R39: 0 | S39: 0 | T39: 0 | U39: 2021-10-21 | V39: 0 | W39: 128597.74 | X39: 0 | Y39: 2021-10-29 | Z39: 0 | AA39: 0 | AB39: 0 | AC39: 3000-01-01 | AD39: 3000-01-01 | AE39: 0 | AF39: FVTPL | AG39: 0.1615285859 | AH39: 10064008.12 | AI39: HK0101000591 | AJ39: HKD | AK39: USD | AL39: 1 | AM39: Hong Kong | AN39: Utilities | AO39: Others | AP39: Ahmad Rizal Ujang | AQ39: Hong Kong Dollar | AR39: 16542.03 | AS39: Cur | AT39: 2021-10-29
A40: THE | B40: EQT | C40: IE00BZ12WP82 | D40: THE*IE00BZ12WP82 | E40: 1817.24 | F40: 0 | G40: 115550.4 | H40: 115550.4 | I40: 3000-01-01 | J40: 362 | K40: 319.2 | L40: 1 | M40: 0 | N40: 0 | O40: 113733.16 | P40: 113733.16 | Q40: 0 | R40: 0 | S40: 0 | T40: 0 | U40: 2021-10-22 | V40: 0 | W40: 113733.16 | X40: 0 | Y40: 2021-10-29 | Z40: 0 | AA40: 0 | AB40: 0 | AC40: 3000-01-01 | AD40: 3000-01-01 | AE40: 0 | AF40: FVTPL | AG40: 1.148154876 | AH40: 10064008.12 | AI40: IE00BZ12WP82 | AK40: USD | AL40: 1 | AP40: Ahmad Rizal Ujang | AR40: 113733.16 | AS40: Cur | AT40: 2021-10-29
A41: THE | B41: EQT | C41: JP3188220002 | D41: THE*JP3188220002 | E41: -1836.43 | F41: 148.27 | G41: 51052.03 | H41: 5810742 | I41: 3000-01-01 | J41: 1293 | K41: 4494 | L41: 113.82 | M41: 0 | N41: 0 | O41: 52740.19 | P41: 6019765 | Q41: 0 | R41: 0 | S41: 0 | T41: 0 | U41: 2021-10-26 | V41: 0 | W41: 6019765 | X41: 0 | Y41: 2021-10-29 | Z41: 0 | AA41: 0 | AB41: 0 | AC41: 3000-01-01 | AD41: 3000-01-01 | AE41: 0 | AF41: FVTPL | AG41: 0.5072733387 | AH41: 10064008.12 | AI41: Otsuka Holdings Co., Ltd. | AJ41: JPY | AK41: USD | AL41: 1 | AM41: Japan | AN41: Health Care | AO41: Others | AP41: Ahmad Rizal Ujang | AQ41: Japanese Yen | AR41: 52740.19 | AS41: Cur | AT41: 2021-10-29
A42: THE | B42: EQT | C42: JP3197600004 | D42: THE*JP3197600004 | E42: -832.1 | F42: 81.06 | G42: 28084.43 | H42: 3196570 | I42: 3000-01-01 | J42: 1340 | K42: 2385.5 | L42: 113.82 | M42: 0 | N42: 0 | O42: 28835.47 | P42: 3291280 | Q42: 0 | R42: 0 | S42: 0 | T42: 0 | U42: 2021-10-26 | V42: 0 | W42: 3291280 | X42: 0 | Y42: 2021-10-29 | Z42: 0 | AA42: 0 | AB42: 0 | AC42: 3000-01-01 | AD42: 3000-01-01 | AE42: 0 | AF42: FVTPL | AG42: 0.2790581016 | AH42: 10064008.12 | AI42: ONO Pharmaceutical Co., Ltd. | AJ42: JPY | AK42: USD | AL42: 1 | AM42: Japan | AN42: Health Care | AO42: Others | AP42: Ahmad Rizal Ujang | AQ42: Japanese Yen | AR42: 28835.47 | AS42: Cur | AT42: 2021-10-29
A43: THE | B43: EQT | C43: JP3205800000 | D43: THE*JP3205800000 | E43: 954.42 | F43: 279.76 | G43: 100742.16 | H43: 11466473 | I43: 3000-01-01 | J43: 1783 | K43: 6431 | L43: 113.82 | M43: 0 | N43: 0 | O43: 99507.98 | P43: 11357841 | Q43: 0 | R43: 0 | S43: 0 | T43: 0 | U43: 2021-10-26 | V43: 0 | W43: 11357841 | X43: 0 | Y43: 2021-10-29 | Z43: 0 | AA43: 0 | AB43: 0 | AC43: 3000-01-01 | AD43: 3000-01-01 | AE43: 0 | AF43: FVTPL | AG43: 1.001014296 | AH43: 10064008.12 | AI43: Kao Corp. | AJ43: JPY | AK43: USD | AL43: 1 | AM43: Japan | AN43: Consumer Staples | AO43: Others | AP43: Ahmad Rizal Ujang | AQ43: Japanese Yen | AR43: 99507.98 | AS43: Cur | AT43: 2021-10-29
A44: THE | B44: EQT | C44: JP3249600002 | D44: THE*JP3249600002 | E44: -1559.92 | F44: 278.62 | G44: 97819.5 | H44: 11133815 | I44: 3000-01-01 | J44: 1673 | K44: 6655 | L44: 113.82 | M44: 0 | N44: 0 | O44: 99100.8 | P44: 11311365 | Q44: 0 | R44: 0 | S44: 0 | T44: 0 | U44: 2021-10-26 | V44: 0 | W44: 11311365 | X44: 0 | Y44: 2021-10-29 | Z44: 0 | AA44: 0 | AB44: 0 | AC44: 3000-01-01 | AD44: 3000-01-01 | AE44: 0 | AF44: FVTPL | AG44: 0.9719735798 | AH44: 10064008.12 | AI44: JP3249600002 | AK44: USD | AL44: 1 | AP44: Ahmad Rizal Ujang | AR44: 99100.8 | AS44: Cur | AT44: 2021-10-29
A45: THE | B45: EQT | C45: JP3351600006 | D45: THE*JP3351600006 | E45: 506.1 | F45: 276.22 | G45: 99030.05 | H45: 11271600 | I45: 3000-01-01 | J45: 1488 | K45: 7575 | L45: 113.82 | M45: 0 | N45: 0 | O45: 98247.73 | P45: 11213996 | Q45: 0 | R45: 0 | S45: 0 | T45: 0 | U45: 2021-10-26 | V45: 0 | W45: 11213996 | X45: 0 | Y45: 2021-10-29 | Z45: 0 | AA45: 0 | AB45: 0 | AC45: 3000-01-01 | AD45: 3000-01-01 | AE45: 0 | AF45: FVTPL | AG45: 0.9840020876 | AH45: 10064008.12 | AI45: JP3351600006 | AK45: USD | AL45: 1 | AP45: Ahmad Rizal Ujang | AR45: 98247.73 | AS45: Cur | AT45: 2021-10-29
A46: THE | B46: EQT | C46: JP3419400001 | D46: THE*JP3419400001 | E46: 2941.08 | F46: 178.54 | G46: 66623.53 | H46: 7583090 | I46: 3000-01-01 | J46: 4066 | K46: 1865 | L46: 113.82 | M46: 0 | N46: 0 | O46: 63503.91 | P46: 7248336 | Q46: 0 | R46: 0 | S46: 0 | T46: 0 | U46: 2021-10-26 | V46: 0 | W46: 7248336 | X46: 0 | Y46: 2021-10-29 | Z46: 0 | AA46: 0 | AB46: 0 | AC46: 3000-01-01 | AD46: 3000-01-01 | AE46: 0 | AF46: FVTPL | AG46: 0.6619979754 | AH46: 10064008.12 | AI46: SEKISUI CHEMICAL CO.,LTD. | AJ46: JPY | AK46: USD | AL46: 1 | AM46: Japan | AN46: Consumer Discretionary | AO46: Others | AP46: Ahmad Rizal Ujang | AQ46: Japanese Yen | AR46: 63503.91 | AS46: Cur | AT46: 2021-10-29
A47: THE | B47: EQT | C47: JP3505000004 | D47: THE*JP3505000004 | E47: -478.39 | F47: 178.28 | G47: 63109.87 | H47: 7183165 | I47: 3000-01-01 | J47: 1915 | K47: 3751 | L47: 113.82 | M47: 0 | N47: 0 | O47: 63409.98 | P47: 7237615 | Q47: 0 | R47: 0 | S47: 0 | T47: 0 | U47: 2021-10-26 | V47: 0 | W47: 7237615 | X47: 0 | Y47: 2021-10-29 | Z47: 0 | AA47: 0 | AB47: 0 | AC47: 3000-01-01 | AD47: 3000-01-01 | AE47: 0 | AF47: FVTPL | AG47: 0.6270848478 | AH47: 10064008.12 | AI47: Daiwa House Industry Co., Ltd. | AJ47: JPY | AK47: USD | AL47: 1 | AM47: Japan | AN47: Real Estate | AO47: Others | AP47: Ahmad Rizal Ujang | AQ47: Japanese Yen | AR47: 63409.98 | AS47: Cur | AT47: 2021-10-29
A48: THE | B48: EQT | C48: JP3571400005 | D48: THE*JP3571400005 | E48: 2866.43 | F48: 282.26 | G48: 103545.51 | H48: 11785550 | I48: 3000-01-01 | J48: 223 | K48: 52850 | L48: 113.82 | M48: 0 | N48: 0 | O48: 100396.82 | P48: 11459293 | Q48: 0 | R48: 0 | S48: 0 | T48: 0 | U48: 2021-10-26 | V48: 0 | W48: 11459293 | X48: 0 | Y48: 2021-10-29 | Z48: 0 | AA48: 0 | AB48: 0 | AC48: 3000-01-01 | AD48: 3000-01-01 | AE48: 0 | AF48: FVTPL | AG48: 1.0288695 | AH48: 10064008.12 | AI48: Tokyo Electron Ltd. | AJ48: JPY | AK48: USD | AL48: 1 | AM48: Japan | AN48: Information Technology | AO48: Others | AP48: Ahmad Rizal Ujang | AQ48: Japanese Yen | AR48: 100396.82 | AS48: Cur | AT48: 2021-10-29
A49: THE | B49: EQT | C49: JP3695200000 | D49: THE*JP3695200000 | E49: -841.27 | F49: 99.57 | G49: 34675.03 | H49: 3946712 | I49: 3000-01-01 | J49: 2086 | K49: 1892 | L49: 113.82 | M49: 0 | N49: 0 | O49: 35416.73 | P49: 4042465 | Q49: 0 | R49: 0 | S49: 0 | T49: 0 | U49: 2021-10-26 | V49: 0 | W49: 4042465 | X49: 0 | Y49: 2021-10-29 | Z49: 0 | AA49: 0 | AB49: 0 | AC49: 3000-01-01 | AD49: 3000-01-01 | AE49: 0 | AF49: FVTPL | AG49: 0.3445449327 | AH49: 10064008.12 | AI49: JP3695200000 | AK49: USD | AL49: 1 | AP49: Ahmad Rizal Ujang | AR49: 35416.73 | AS49: Cur | AT49: 2021-10-29
A50: THE | B50: EQT | C50: JP3734800000 | D50: THE*JP3734800000 | E50: -307.48 | F50: 279.52 | G50: 99393.78 | H50: 11313000 | I50: 3000-01-01 | J50: 900 | K50: 12570 | L50: 113.82 | M50: 0 | N50: 0 | O50: 99421.74 | P50: 11347997 | Q50: 0 | R50: 0 | S50: 0 | T50: 0 | U50: 2021-10-26 | V50: 0 | W50: 11347997 | X50: 0 | Y50: 2021-10-29 | Z50: 0 | AA50: 0 | AB50: 0 | AC50: 3000-01-01 | AD50: 3000-01-01 | AE50: 0 | AF50: FVTPL | AG50: 0.987616254 | AH50: 10064008.12 | AI50: Nidec Corporation | AJ50: JPY | AK50: USD | AL50: 1 | AM50: Japan | AN50: Industrials | AO50: Others | AP50: Ahmad Rizal Ujang | AQ50: Japanese Yen | AR50: 99421.74 | AS50: Cur | AT50: 2021-10-29
A51: THE | B51: EQT | C51: JP3749400002 | D51: THE*JP3749400002 | E51: -1546.62 | F51: 112.43 | G51: 38555.61 | H51: 4388400 | I51: 3000-01-01 | J51: 3600 | K51: 1219 | L51: 113.82 | M51: 0 | N51: 0 | O51: 39989.8 | P51: 4564436 | Q51: 0 | R51: 0 | S51: 0 | T51: 0 | U51: 2021-10-26 | V51: 0 | W51: 4564436 | X51: 0 | Y51: 2021-10-29 | Z51: 0 | AA51: 0 | AB51: 0 | AC51: 3000-01-01 | AD51: 3000-01-01 | AE51: 0 | AF51: FVTPL | AG51: 0.3831039238 | AH51: 10064008.12 | AI51: NIPPON PAINT HOLDINGS CO.LTD. | AJ51: JPY | AK51: USD | AL51: 1 | AM51: Japan | AN51: Materials | AO51: Others | AP51: Ahmad Rizal Ujang | AQ51: Japanese Yen | AR51: 39989.8 | AS51: Cur | AT51: 2021-10-29
A52: THE | B52: EQT | C52: JP3756100008 | D52: THE*JP3756100008 | E52: 266.81 | F52: 185.2 | G52: 66328.5 | H52: 7549510 | I52: 3000-01-01 | J52: 362 | K52: 20855 | L52: 113.82 | M52: 0 | N52: 0 | O52: 65876.49 | P52: 7519142 | Q52: 0 | R52: 0 | S52: 0 | T52: 0 | U52: 2021-10-26 | V52: 0 | W52: 7519142 | X52: 0 | Y52: 2021-10-29 | Z52: 0 | AA52: 0 | AB52: 0 | AC52: 3000-01-01 | AD52: 3000-01-01 | AE52: 0 | AF52: FVTPL | AG52: 0.6590664396 | AH52: 10064008.12 | AI52: Nitori Holdings Co., Ltd. | AJ52: JPY | AK52: USD | AL52: 1 | AM52: Japan | AN52: Industrials | AO52: Others | AP52: Ahmad Rizal Ujang | AQ52: Japanese Yen | AR52: 65876.49 | AS52: Cur | AT52: 2021-10-29
A53: THE | B53: EQT | C53: JP3786200000 | D53: THE*JP3786200000 | E53: -397.59 | F53: 292.79 | G53: 104040.85 | H53: 11841930 | I53: 3000-01-01 | J53: 5490 | K53: 2157 | L53: 113.82 | M53: 0 | N53: 0 | O53: 104145.65 | P53: 11887184 | Q53: 0 | R53: 0 | S53: 0 | T53: 0 | U53: 2021-10-26 | V53: 0 | W53: 11887184 | X53: 0 | Y53: 2021-10-29 | Z53: 0 | AA53: 0 | AB53: 0 | AC53: 3000-01-01 | AD53: 3000-01-01 | AE53: 0 | AF53: FVTPL | AG53: 1.033791396 | AH53: 10064008.12 | AI53: JP3786200000 | AK53: USD | AL53: 1 | AP53: Ahmad Rizal Ujang | AR53: 104145.65 | AS53: Cur | AT53: 2021-10-29
A54: THE | B54: EQT | C54: JP3814000000 | D54: THE*JP3814000000 | E54: -878.12 | F54: 145.87 | G54: 109954.51 | H54: 12515022 | I54: 3000-01-01 | J54: 1422 | K54: 8801 | L54: 113.82 | M54: 0 | N54: 0 | O54: 110686.76 | P54: 12614970 | Q54: 0 | R54: 0 | S54: 0 | T54: 0 | U54: 2021-10-21 | V54: 0 | W54: 12614970 | X54: 0 | Y54: 2021-10-29 | Z54: 0 | AA54: 0 | AB54: 0 | AC54: 3000-01-01 | AD54: 3000-01-01 | AE54: 0 | AF54: FVTPL | AG54: 1.092551881 | AH54: 10064008.12 | AI54: Fujifilm Holdings Ord Shs | AJ54: JPY | AK54: USD | AL54: 1 | AM54: Japan | AN54: Information Technology | AO54: Others | AP54: Ahmad Rizal Ujang | AQ54: Japanese Yen | AR54: 110686.76 | AS54: Cur | AT54: 2021-10-29
A55: THE | B55: EQT | C55: JP3914400001 | D55: THE*JP3914400001 | E55: 1219.37 | F55: 280.48 | G55: 101263.36 | H55: 11525796 | I55: 3000-01-01 | J55: 1332 | K55: 8653 | L55: 113.82 | M55: 0 | N55: 0 | O55: 99763.51 | P55: 11387007 | Q55: 0 | R55: 0 | S55: 0 | T55: 0 | U55: 2021-10-26 | V55: 0 | W55: 11387007 | X55: 0 | Y55: 2021-10-29 | Z55: 0 | AA55: 0 | AB55: 0 | AC55: 3000-01-01 | AD55: 3000-01-01 | AE55: 0 | AF55: FVTPL | AG55: 1.006193147 | AH55: 10064008.12 | AI55: Murata Manufacturing Co., Ltd. | AJ55: JPY | AK55: USD | AL55: 1 | AM55: Japan | AN55: Information Technology | AO55: Others | AP55: Ahmad Rizal Ujang | AQ55: Japanese Yen | AR55: 99763.51 | AS55: Cur | AT55: 2021-10-29
A56: THE | B56: EQT | C56: JP3918000005 | D56: THE*JP3918000005 | E56: 881.25 | F56: 146.3 | G56: 53062.73 | H56: 6039600 | I56: 3000-01-01 | J56: 840 | K56: 7190 | L56: 113.82 | M56: 0 | N56: 0 | O56: 52035.18 | P56: 5939296 | Q56: 0 | R56: 0 | S56: 0 | T56: 0 | U56: 2021-10-26 | V56: 0 | W56: 5939296 | X56: 0 | Y56: 2021-10-29 | Z56: 0 | AA56: 0 | AB56: 0 | AC56: 3000-01-01 | AD56: 3000-01-01 | AE56: 0 | AF56: FVTPL | AG56: 0.5272524562 | AH56: 10064008.12 | AI56: Meiji Holdings Co., Ltd. | AJ56: JPY | AK56: USD | AL56: 1 | AM56: Japan | AN56: Consumer Staples | AO56: Others | AP56: Ahmad Rizal Ujang | AQ56: Japanese Yen | AR56: 52035.18 | AS56: Cur | AT56: 2021-10-29
A57: THE | B57: EQT | C57: JP3942400007 | D57: THE*JP3942400007 | E57: -2652.85 | F57: 274.18 | G57: 95142.62 | H57: 10829133 | I57: 3000-01-01 | J57: 5649 | K57: 1917 | L57: 113.82 | M57: 0 | N57: 0 | O57: 97521.29 | P57: 11131080 | Q57: 0 | R57: 0 | S57: 0 | T57: 0 | U57: 2021-10-26 | V57: 0 | W57: 11131080 | X57: 0 | Y57: 2021-10-29 | Z57: 0 | AA57: 0 | AB57: 0 | AC57: 3000-01-01 | AD57: 3000-01-01 | AE57: 0 | AF57: FVTPL | AG57: 0.9453750321 | AH57: 10064008.12 | AI57: Astellas Pharma Inc. | AJ57: JPY | AK57: USD | AL57: 1 | AM57: Japan | AN57: Health Care | AO57: Others | AP57: Ahmad Rizal Ujang | AQ57: Japanese Yen | AR57: 97521.29 | AS57: Cur | AT57: 2021-10-29
A58: THE | B58: EQT | C58: NL0000009538 | D58: THE*NL0000009538 | E58: -815.46 | F58: -698.91 | G58: 95973.12 | H58: 82997.55 | I58: 3000-01-01 | J58: 2038 | K58: 40.725 | L58: 0.8648 | M58: 0 | N58: 0 | O58: 97487.49 | P58: 83702.76 | Q58: 0 | R58: 0 | S58: 0 | T58: 0 | U58: 2021-10-22 | V58: 0 | W58: 83702.76 | X58: 0 | Y58: 2021-10-29 | Z58: 0 | AA58: 0 | AB58: 0 | AC58: 3000-01-01 | AD58: 3000-01-01 | AE58: 0 | AF58: FVTPL | AG58: 0.9536272115 | AH58: 10064008.12 | AI58: NL0000009538 | AK58: USD | AL58: 1 | AP58: Ahmad Rizal Ujang | AR58: 97487.49 | AS58: Cur | AT58: 2021-10-29
A59: THE | B59: EQT | C59: NL0000009827 | D59: THE*NL0000009827 | E59: 1915.97 | F59: -868.58 | G59: 122200.45 | H59: 105678.95 | I59: 3000-01-01 | J59: 559 | K59: 189.05 | L59: 0.8648 | M59: 0 | N59: 0 | O59: 121153.06 | P59: 104022.02 | Q59: 0 | R59: 0 | S59: 0 | T59: 0 | U59: 2021-10-22 | V59: 0 | W59: 104022.02 | X59: 0 | Y59: 2021-10-29 | Z59: 0 | AA59: 0 | AB59: 0 | AC59: 3000-01-01 | AD59: 3000-01-01 | AE59: 0 | AF59: FVTPL | AG59: 1.214232427 | AH59: 10064008.12 | AI59: NL0000009827 | AK59: USD | AL59: 1 | AP59: Ahmad Rizal Ujang | AR59: 121153.06 | AS59: Cur | AT59: 2021-10-29
A60: THE | B60: EQT | C60: NL0000226223 | D60: THE*NL0000226223 | E60: 7627.32 | F60: -710.87 | G60: 106072.42 | H60: 91731.43 | I60: 3000-01-01 | J60: 2242 | K60: 40.915 | L60: 0.8648 | M60: 0 | N60: 0 | O60: 99155.97 | P60: 85135.32 | Q60: 0 | R60: 0 | S60: 0 | T60: 0 | U60: 2021-10-22 | V60: 0 | W60: 85135.32 | X60: 0 | Y60: 2021-10-29 | Z60: 0 | AA60: 0 | AB60: 0 | AC60: 3000-01-01 | AD60: 3000-01-01 | AE60: 0 | AF60: FVTPL | AG60: 1.053977886 | AH60: 10064008.12 | AI60: NL0000226223 | AK60: USD | AL60: 1 | AP60: Ahmad Rizal Ujang | AR60: 99155.97 | AS60: Cur | AT60: 2021-10-29
A61: THE | B61: EQT | C61: NL0013267909 | D61: THE*NL0013267909 | E61: 4878.24 | F61: -526.6 | G61: 103351.73 | H61: 89378.58 | I61: 3000-01-01 | J61: 899 | K61: 99.42 | L61: 0.8648 | M61: 0 | N61: 0 | O61: 99000.09 | P61: 85159.88 | Q61: 0 | R61: 0 | S61: 0 | T61: 0 | U61: 2021-10-21 | V61: 0 | W61: 85159.88 | X61: 0 | Y61: 2021-10-29 | Z61: 0 | AA61: 0 | AB61: 0 | AC61: 3000-01-01 | AD61: 3000-01-01 | AE61: 0 | AF61: FVTPL | AG61: 1.026944024 | AH61: 10064008.12 | AI61: NL0013267909 | AK61: USD | AL61: 1 | AP61: Ahmad Rizal Ujang | AR61: 99000.09 | AS61: Cur | AT61: 2021-10-29
A62: THE | B62: EQT | C62: NO0003733800 | D62: THE*NO0003733800 | E62: 1590.35 | F62: -319.84 | G62: 33316.8 | H62: 280740.72 | I62: 3000-01-01 | J62: 3417 | K62: 82.16 | L62: 8.4264 | M62: 0 | N62: 0 | O62: 32046.29 | P62: 267339.79 | Q62: 0 | R62: 0 | S62: 0 | T62: 0 | U62: 2021-10-22 | V62: 0 | W62: 267339.79 | X62: 0 | Y62: 2021-10-29 | Z62: 0 | AA62: 0 | AB62: 0 | AC62: 3000-01-01 | AD62: 3000-01-01 | AE62: 0 | AF62: FVTPL | AG62: 0.3310490175 | AH62: 10064008.12 | AI62: NO0003733800 | AK62: USD | AL62: 1 | AP62: Ahmad Rizal Ujang | AR62: 32046.29 | AS62: Cur | AT62: 2021-10-29
A63: THE | B63: EQT | C63: NO0010208051 | D63: THE*NO0010208051 | E63: 1219.93 | F63: -274.93 | G63: 33898.03 | H63: 285638.4 | I63: 3000-01-01 | J63: 648 | K63: 440.8 | L63: 8.4264 | M63: 0 | N63: 0 | O63: 32953.03 | P63: 275358.82 | Q63: 0 | R63: 0 | S63: 0 | T63: 0 | U63: 2021-10-21 | V63: 0 | W63: 275358.82 | X63: 0 | Y63: 2021-10-29 | Z63: 0 | AA63: 0 | AB63: 0 | AC63: 3000-01-01 | AD63: 3000-01-01 | AE63: 0 | AF63: FVTPL | AG63: 0.3368243507 | AH63: 10064008.12 | AI63: NO0010208051 | AK63: USD | AL63: 1 | AP63: Ahmad Rizal Ujang | AR63: 32953.03 | AS63: Cur | AT63: 2021-10-29
A64: THE | B64: EQT | C64: SE0000112724 | D64: THE*SE0000112724 | E64: -2128.95 | F64: -109.31 | G64: 56017.92 | H64: 480701 | I64: 3000-01-01 | J64: 3590 | K64: 133.9 | L64: 8.5812 | M64: 0 | N64: 0 | O64: 58256.18 | P64: 498969.97 | Q64: 0 | R64: 0 | S64: 0 | T64: 0 | U64: 2021-10-22 | V64: 0 | W64: 498969.97 | X64: 0 | Y64: 2021-10-29 | Z64: 0 | AA64: 0 | AB64: 0 | AC64: 3000-01-01 | AD64: 3000-01-01 | AE64: 0 | AF64: FVTPL | AG64: 0.556616403 | AH64: 10064008.12 | AI64: SE0000112724 | AK64: USD | AL64: 1 | AP64: Ahmad Rizal Ujang | AR64: 58256.18 | AS64: Cur | AT64: 2021-10-29
A65: THE | B65: EQT | C65: SE0007100581 | D65: THE*SE0007100581 | E65: 904.42 | F65: 169.82 | G65: 100673.86 | H65: 863902.5 | I65: 3000-01-01 | J65: 3435 | K65: 251.5 | L65: 8.5812 | M65: 0 | N65: 0 | O65: 99599.62 | P65: 856141.52 | Q65: 0 | R65: 0 | S65: 0 | T65: 0 | U65: 2021-10-21 | V65: 0 | W65: 856141.52 | X65: 0 | Y65: 2021-10-29 | Z65: 0 | AA65: 0 | AB65: 0 | AC65: 3000-01-01 | AD65: 3000-01-01 | AE65: 0 | AF65: FVTPL | AG65: 1.00033564 | AH65: 10064008.12 | AI65: SE0007100581 | AK65: USD | AL65: 1 | AP65: Ahmad Rizal Ujang | AR65: 99599.62 | AS65: Cur | AT65: 2021-10-29
A66: THE | B66: EQT | C66: SE0015811559 | D66: THE*SE0015811559 | E66: 725.8 | F66: -116.89 | G66: 74020.1 | H66: 635181.3 | I66: 3000-01-01 | J66: 2097 | K66: 302.9 | L66: 8.5812 | M66: 0 | N66: 0 | O66: 73411.19 | P66: 628953.03 | Q66: 0 | R66: 0 | S66: 0 | T66: 0 | U66: 2021-10-22 | V66: 0 | W66: 628953.03 | X66: 0 | Y66: 2021-10-29 | Z66: 0 | AA66: 0 | AB66: 0 | AC66: 3000-01-01 | AD66: 3000-01-01 | AE66: 0 | AF66: FVTPL | AG66: 0.735493246 | AH66: 10064008.12 | AI66: SE0015811559 | AK66: USD | AL66: 1 | AP66: Ahmad Rizal Ujang | AR66: 73411.19 | AS66: Cur | AT66: 2021-10-29
A67: THE | B67: EQT | C67: US0028241000 | D67: THE*US0028241000 | E67: 1953.96 | F67: 0 | G67: 110458.73 | H67: 110458.73 | I67: 3000-01-01 | J67: 857 | K67: 128.89 | L67: 1 | M67: 0 | N67: 0 | O67: 108504.77 | P67: 108504.77 | Q67: 0 | R67: 0 | S67: 0 | T67: 0 | U67: 2021-10-25 | V67: 0 | W67: 108504.77 | X67: 0 | Y67: 2021-10-29 | Z67: 0 | AA67: 0 | AB67: 0 | AC67: 3000-01-01 | AD67: 3000-01-01 | AE67: 0 | AF67: FVTPL | AG67: 1.097562012 | AH67: 10064008.12 | AI67: US0028241000 | AK67: USD | AL67: 1 | AP67: Ahmad Rizal Ujang | AR67: 108504.77 | AS67: Cur | AT67: 2021-10-29
A68: THE | B68: EQT | C68: US00724F1012 | D68: THE*US00724F1012 | E68: 1221.48 | F68: 0 | G68: 101456.16 | H68: 101456.16 | I68: 3000-01-01 | J68: 156 | K68: 650.36 | L68: 1 | M68: 0 | N68: 0 | O68: 100234.68 | P68: 100234.68 | Q68: 0 | R68: 0 | S68: 0 | T68: 0 | U68: 2021-10-26 | V68: 0 | W68: 100234.68 | X68: 0 | Y68: 2021-10-29 | Z68: 0 | AA68: 0 | AB68: 0 | AC68: 3000-01-01 | AD68: 3000-01-01 | AE68: 0 | AF68: FVTPL | AG68: 1.008108885 | AH68: 10064008.12 | AI68: US00724F1012 | AK68: USD | AL68: 1 | AP68: Ahmad Rizal Ujang | AR68: 100234.68 | AS68: Cur | AT68: 2021-10-29
A69: THE | B69: EQT | C69: US00751Y1064 | D69: THE*US00751Y1064 | E69: -2326.03 | F69: 0 | G69: 74196.08 | H69: 74196.08 | I69: 3000-01-01 | J69: 329 | K69: 225.52 | L69: 1 | M69: 0 | N69: 0 | O69: 76522.11 | P69: 76522.11 | Q69: 0 | R69: 0 | S69: 0 | T69: 0 | U69: 2021-10-26 | V69: 0 | W69: 76522.11 | X69: 0 | Y69: 2021-10-29 | Z69: 0 | AA69: 0 | AB69: 0 | AC69: 3000-01-01 | AD69: 3000-01-01 | AE69: 0 | AF69: FVTPL | AG69: 0.7372418535 | AH69: 10064008.12 | AI69: US00751Y1064 | AK69: USD | AL69: 1 | AP69: Ahmad Rizal Ujang | AR69: 76522.11 | AS69: Cur | AT69: 2021-10-29
A70: THE | B70: EQT | C70: US00846U1016 | D70: THE*US00846U1016 | E70: -599.28 | F70: 0 | G70: 107250.69 | H70: 107250.69 | I70: 3000-01-01 | J70: 681 | K70: 157.49 | L70: 1 | M70: 0 | N70: 0 | O70: 107849.97 | P70: 107849.97 | Q70: 0 | R70: 0 | S70: 0 | T70: 0 | U70: 2021-10-25 | V70: 0 | W70: 107849.97 | X70: 0 | Y70: 2021-10-29 | Z70: 0 | AA70: 0 | AB70: 0 | AC70: 3000-01-01 | AD70: 3000-01-01 | AE70: 0 | AF70: FVTPL | AG70: 1.065685647 | AH70: 10064008.12 | AI70: US00846U1016 | AK70: USD | AL70: 1 | AP70: Ahmad Rizal Ujang | AR70: 107849.97 | AS70: Cur | AT70: 2021-10-29
A71: THE | B71: EQT | C71: US0126531013 | D71: THE*US0126531013 | E71: 4950 | F71: 0 | G71: 112711.5 | H71: 112711.5 | I71: 3000-01-01 | J71: 450 | K71: 250.47 | L71: 1 | M71: 0 | N71: 0 | O71: 107761.5 | P71: 107761.5 | Q71: 0 | R71: 0 | S71: 0 | T71: 0 | U71: 2021-10-25 | V71: 0 | W71: 107761.5 | X71: 0 | Y71: 2021-10-29 | Z71: 0 | AA71: 0 | AB71: 0 | AC71: 3000-01-01 | AD71: 3000-01-01 | AE71: 0 | AF71: FVTPL | AG71: 1.119946433 | AH71: 10064008.12 | AI71: US0126531013 | AK71: USD | AL71: 1 | AP71: Ahmad Rizal Ujang | AR71: 107761.5 | AS71: Cur | AT71: 2021-10-29
A72: THE | B72: EQT | C72: US0326541051 | D72: THE*US0326541051 | E72: -4102.38 | F72: 0 | G72: 110860.11 | H72: 110860.11 | I72: 3000-01-01 | J72: 639 | K72: 173.49 | L72: 1 | M72: 0 | N72: 0 | O72: 114962.49 | P72: 114962.49 | Q72: 0 | R72: 0 | S72: 0 | T72: 0 | U72: 2021-10-26 | V72: 0 | W72: 114962.49 | X72: 0 | Y72: 2021-10-29 | Z72: 0 | AA72: 0 | AB72: 0 | AC72: 3000-01-01 | AD72: 3000-01-01 | AE72: 0 | AF72: FVTPL | AG72: 1.101550284 | AH72: 10064008.12 | AI72: US0326541051 | AK72: USD | AL72: 1 | AP72: Ahmad Rizal Ujang | AR72: 114962.49 | AS72: Cur | AT72: 2021-10-29
A73: THE | B73: EQT | C73: US0394831020 | D73: THE*US0394831020 | E73: -189.75 | F73: 0 | G73: 10599.6 | H73: 10599.6 | I73: 3000-01-01 | J73: 165 | K73: 64.24 | L73: 1 | M73: 0 | N73: 0 | O73: 10789.35 | P73: 10789.35 | Q73: 0 | R73: 0 | S73: 0 | T73: 0 | U73: 2021-10-26 | V73: 0 | W73: 10789.35 | X73: 0 | Y73: 2021-10-29 | Z73: 0 | AA73: 0 | AB73: 0 | AC73: 3000-01-01 | AD73: 3000-01-01 | AE73: 0 | AF73: FVTPL | AG73: 0.1053218546 | AH73: 10064008.12 | AI73: US0394831020 | AK73: USD | AL73: 1 | AP73: Ahmad Rizal Ujang | AR73: 10789.35 | AS73: Cur | AT73: 2021-10-29
A74: THE | B74: EQT | C74: US05722G1004 | D74: THE*US05722G1004 | E74: 2075.83 | F74: 0 | G74: 126980.04 | H74: 126980.04 | I74: 3000-01-01 | J74: 5063 | K74: 25.08 | L74: 1 | M74: 0 | N74: 0 | O74: 124904.21 | P74: 124904.21 | Q74: 0 | R74: 0 | S74: 0 | T74: 0 | U74: 2021-10-22 | V74: 0 | W74: 124904.21 | X74: 0 | Y74: 2021-10-29 | Z74: 0 | AA74: 0 | AB74: 0 | AC74: 3000-01-01 | AD74: 3000-01-01 | AE74: 0 | AF74: FVTPL | AG74: 1.26172434 | AH74: 10064008.12 | AI74: US05722G1004 | AK74: USD | AL74: 1 | AP74: Ahmad Rizal Ujang | AR74: 124904.21 | AS74: Cur | AT74: 2021-10-29
A75: THE | B75: EQT | C75: US0865161014 | D75: THE*US0865161014 | E75: 1570.84 | F75: 0 | G75: 110993.92 | H75: 110993.92 | I75: 3000-01-01 | J75: 908 | K75: 122.24 | L75: 1 | M75: 0 | N75: 0 | O75: 109423.08 | P75: 109423.08 | Q75: 0 | R75: 0 | S75: 0 | T75: 0 | U75: 2021-10-25 | V75: 0 | W75: 109423.08 | X75: 0 | Y75: 2021-10-29 | Z75: 0 | AA75: 0 | AB75: 0 | AC75: 3000-01-01 | AD75: 3000-01-01 | AE75: 0 | AF75: FVTPL | AG75: 1.102879873 | AH75: 10064008.12 | AI75: US0865161014 | AK75: USD | AL75: 1 | AP75: Ahmad Rizal Ujang | AR75: 109423.08 | AS75: Cur | AT75: 2021-10-29
A76: THE | B76: EQT | C76: US0905722072 | D76: THE*US0905722072 | E76: 3074.5 | F76: 0 | G76: 113639.24 | H76: 113639.24 | I76: 3000-01-01 | J76: 143 | K76: 794.68 | L76: 1 | M76: 0 | N76: 0 | O76: 110564.74 | P76: 110564.74 | Q76: 0 | R76: 0 | S76: 0 | T76: 0 | U76: 2021-10-26 | V76: 0 | W76: 110564.74 | X76: 0 | Y76: 2021-10-29 | Z76: 0 | AA76: 0 | AB76: 0 | AC76: 3000-01-01 | AD76: 3000-01-01 | AE76: 0 | AF76: FVTPL | AG76: 1.129164828 | AH76: 10064008.12 | AI76: US0905722072 | AK76: USD | AL76: 1 | AP76: Ahmad Rizal Ujang | AR76: 110564.74 | AS76: Cur | AT76: 2021-10-29
A77: THE | B77: EQT | C77: US09073M1045 | D77: THE*US09073M1045 | E77: 970 | F77: 0 | G77: 104730 | H77: 104730 | I77: 3000-01-01 | J77: 200 | K77: 523.65 | L77: 1 | M77: 0 | N77: 0 | O77: 103760 | P77: 103760 | Q77: 0 | R77: 0 | S77: 0 | T77: 0 | U77: 2021-10-26 | V77: 0 | W77: 103760 | X77: 0 | Y77: 2021-10-29 | Z77: 0 | AA77: 0 | AB77: 0 | AC77: 3000-01-01 | AD77: 3000-01-01 | AE77: 0 | AF77: FVTPL | AG77: 1.040639065 | AH77: 10064008.12 | AI77: US09073M1045 | AK77: USD | AL77: 1 | AP77: Ahmad Rizal Ujang | AR77: 103760 | AS77: Cur | AT77: 2021-10-29
A78: THE | B78: EQT | C78: US14149Y1082 | D78: THE*US14149Y1082 | E78: -1483.96 | F78: 0 | G78: 77117.53 | H78: 77117.53 | I78: 3000-01-01 | J78: 1613 | K78: 47.81 | L78: 1 | M78: 0 | N78: 0 | O78: 78601.49 | P78: 78601.49 | Q78: 0 | R78: 0 | S78: 0 | T78: 0 | U78: 2021-10-26 | V78: 0 | W78: 78601.49 | X78: 0 | Y78: 2021-10-29 | Z78: 0 | AA78: 0 | AB78: 0 | AC78: 3000-01-01 | AD78: 3000-01-01 | AE78: 0 | AF78: FVTPL | AG78: 0.7662705463 | AH78: 10064008.12 | AI78: US14149Y1082 | AK78: USD | AL78: 1 | AP78: Ahmad Rizal Ujang | AR78: 78601.49 | AS78: Cur | AT78: 2021-10-29
A79: THE | B79: EQT | C79: US1567821046 | D79: THE*US1567821046 | E79: 3234 | F79: 0 | G79: 104006 | H79: 104006 | I79: 3000-01-01 | J79: 1400 | K79: 74.29 | L79: 1 | M79: 0 | N79: 0 | O79: 100772 | P79: 100772 | Q79: 0 | R79: 0 | S79: 0 | T79: 0 | U79: 2021-10-26 | V79: 0 | W79: 100772 | X79: 0 | Y79: 2021-10-29 | Z79: 0 | AA79: 0 | AB79: 0 | AC79: 3000-01-01 | AD79: 3000-01-01 | AE79: 0 | AF79: FVTPL | AG79: 1.033445112 | AH79: 10064008.12 | AI79: US1567821046 | AK79: USD | AL79: 1 | AP79: Ahmad Rizal Ujang | AR79: 100772 | AS79: Cur | AT79: 2021-10-29
A80: THE | B80: EQT | C80: US1713401024 | D80: THE*US1713401024 | E80: 4444.65 | F80: 0 | G80: 108763.2 | H80: 108763.2 | I80: 3000-01-01 | J80: 1245 | K80: 87.36 | L80: 1 | M80: 0 | N80: 0 | O80: 104318.55 | P80: 104318.55 | Q80: 0 | R80: 0 | S80: 0 | T80: 0 | U80: 2021-10-25 | V80: 0 | W80: 104318.55 | X80: 0 | Y80: 2021-10-29 | Z80: 0 | AA80: 0 | AB80: 0 | AC80: 3000-01-01 | AD80: 3000-01-01 | AE80: 0 | AF80: FVTPL | AG80: 1.080714549 | AH80: 10064008.12 | AI80: US1713401024 | AK80: USD | AL80: 1 | AP80: Ahmad Rizal Ujang | AR80: 104318.55 | AS80: Cur | AT80: 2021-10-29
A81: THE | B81: EQT | C81: US17275R1023 | D81: THE*US17275R1023 | E81: 238.42 | F81: 0 | G81: 102648.98 | H81: 102648.98 | I81: 3000-01-01 | J81: 1834 | K81: 55.97 | L81: 1 | M81: 0 | N81: 0 | O81: 102410.56 | P81: 102410.56 | Q81: 0 | R81: 0 | S81: 0 | T81: 0 | U81: 2021-10-26 | V81: 0 | W81: 102410.56 | X81: 0 | Y81: 2021-10-29 | Z81: 0 | AA81: 0 | AB81: 0 | AC81: 3000-01-01 | AD81: 3000-01-01 | AE81: 0 | AF81: FVTPL | AG81: 1.01996122 | AH81: 10064008.12 | AI81: US17275R1023 | AK81: USD | AL81: 1 | AP81: Ahmad Rizal Ujang | AR81: 102410.56 | AS81: Cur | AT81: 2021-10-29
A82: THE | B82: EQT | C82: US24906P1093 | D82: THE*US24906P1093 | E82: 58 | F82: 0 | G82: 11442 | H82: 11442 | I82: 3000-01-01 | J82: 200 | K82: 57.21 | L82: 1 | M82: 0 | N82: 0 | O82: 11384 | P82: 11384 | Q82: 0 | R82: 0 | S82: 0 | T82: 0 | U82: 2021-10-26 | V82: 0 | W82: 11384 | X82: 0 | Y82: 2021-10-29 | Z82: 0 | AA82: 0 | AB82: 0 | AC82: 3000-01-01 | AD82: 3000-01-01 | AE82: 0 | AF82: FVTPL | AG82: 0.1136922771 | AH82: 10064008.12 | AI82: US24906P1093 | AK82: USD | AL82: 1 | AP82: Ahmad Rizal Ujang | AR82: 11384 | AS82: Cur | AT82: 2021-10-29
A83: THE | B83: EQT | C83: US28176E1082 | D83: THE*US28176E1082 | E83: 3171.2 | F83: 0 | G83: 118741.62 | H83: 118741.62 | I83: 3000-01-01 | J83: 991 | K83: 119.82 | L83: 1 | M83: 0 | N83: 0 | O83: 115570.42 | P83: 115570.42 | Q83: 0 | R83: 0 | S83: 0 | T83: 0 | U83: 2021-10-22 | V83: 0 | W83: 115570.42 | X83: 0 | Y83: 2021-10-29 | Z83: 0 | AA83: 0 | AB83: 0 | AC83: 3000-01-01 | AD83: 3000-01-01 | AE83: 0 | AF83: FVTPL | AG83: 1.179864112 | AH83: 10064008.12 | AI83: US28176E1082 | AK83: USD | AL83: 1 | AP83: Ahmad Rizal Ujang | AR83: 115570.42 | AS83: Cur | AT83: 2021-10-29
A84: THE | B84: EQT | C84: US30161N1019 | D84: THE*US30161N1019 | E84: 2461.26 | F84: 0 | G84: 114837.21 | H84: 114837.21 | I84: 3000-01-01 | J84: 2159 | K84: 53.19 | L84: 1 | M84: 0 | N84: 0 | O84: 112375.95 | P84: 112375.95 | Q84: 0 | R84: 0 | S84: 0 | T84: 0 | U84: 2021-10-26 | V84: 0 | W84: 112375.95 | X84: 0 | Y84: 2021-10-29 | Z84: 0 | AA84: 0 | AB84: 0 | AC84: 3000-01-01 | AD84: 3000-01-01 | AE84: 0 | AF84: FVTPL | AG84: 1.141068336 | AH84: 10064008.12 | AI84: US30161N1019 | AK84: USD | AL84: 1 | AP84: Ahmad Rizal Ujang | AR84: 112375.95 | AS84: Cur | AT84: 2021-10-29
A85: THE | B85: EQT | C85: US3119001044 | D85: THE*US3119001044 | E85: 1938 | F85: 0 | G85: 108452 | H85: 108452 | I85: 3000-01-01 | J85: 1900 | K85: 57.08 | L85: 1 | M85: 0 | N85: 0 | O85: 106514 | P85: 106514 | Q85: 0 | R85: 0 | S85: 0 | T85: 0 | U85: 2021-10-26 | V85: 0 | W85: 106514 | X85: 0 | Y85: 2021-10-29 | Z85: 0 | AA85: 0 | AB85: 0 | AC85: 3000-01-01 | AD85: 3000-01-01 | AE85: 0 | AF85: FVTPL | AG85: 1.077622342 | AH85: 10064008.12 | AI85: US3119001044 | AK85: USD | AL85: 1 | AP85: Ahmad Rizal Ujang | AR85: 106514 | AS85: Cur | AT85: 2021-10-29
A86: THE | B86: EQT | C86: US34959J1088 | D86: THE*US34959J1088 | E86: 1606.8 | F86: 0 | G86: 101375.69 | H86: 101375.69 | I86: 3000-01-01 | J86: 1339 | K86: 75.71 | L86: 1 | M86: 0 | N86: 0 | O86: 99768.89 | P86: 99768.89 | Q86: 0 | R86: 0 | S86: 0 | T86: 0 | U86: 2021-10-26 | V86: 0 | W86: 99768.89 | X86: 0 | Y86: 2021-10-29 | Z86: 0 | AA86: 0 | AB86: 0 | AC86: 3000-01-01 | AD86: 3000-01-01 | AE86: 0 | AF86: FVTPL | AG86: 1.007309303 | AH86: 10064008.12 | AI86: US34959J1088 | AK86: USD | AL86: 1 | AP86: Ahmad Rizal Ujang | AR86: 99768.89 | AS86: Cur | AT86: 2021-10-29
A87: THE | B87: EQT | C87: US35671D8570 | D87: THE*US35671D8570 | E87: -2900 | F87: 0 | G87: 94300 | H87: 94300 | I87: 3000-01-01 | J87: 2500 | K87: 37.72 | L87: 1 | M87: 0 | N87: 0 | O87: 97200 | P87: 97200 | Q87: 0 | R87: 0 | S87: 0 | T87: 0 | U87: 2021-10-26 | V87: 0 | W87: 97200 | X87: 0 | Y87: 2021-10-29 | Z87: 0 | AA87: 0 | AB87: 0 | AC87: 3000-01-01 | AD87: 3000-01-01 | AE87: 0 | AF87: FVTPL | AG87: 0.9370024236 | AH87: 10064008.12 | AI87: US35671D8570 | AK87: USD | AL87: 1 | AP87: Ahmad Rizal Ujang | AR87: 97200 | AS87: Cur | AT87: 2021-10-29
A88: THE | B88: EQT | C88: US3724601055 | D88: THE*US3724601055 | E88: -2036.88 | F88: 0 | G88: 108559.08 | H88: 108559.08 | I88: 3000-01-01 | J88: 828 | K88: 131.11 | L88: 1 | M88: 0 | N88: 0 | O88: 110595.96 | P88: 110595.96 | Q88: 0 | R88: 0 | S88: 0 | T88: 0 | U88: 2021-10-25 | V88: 0 | W88: 110595.96 | X88: 0 | Y88: 2021-10-29 | Z88: 0 | AA88: 0 | AB88: 0 | AC88: 3000-01-01 | AD88: 3000-01-01 | AE88: 0 | AF88: FVTPL | AG88: 1.078686332 | AH88: 10064008.12 | AI88: US3724601055 | AK88: USD | AL88: 1 | AP88: Ahmad Rizal Ujang | AR88: 110595.96 | AS88: Cur | AT88: 2021-10-29
A89: THE | B89: EQT | C89: US4456581077 | D89: THE*US4456581077 | E89: 396.44 | F89: 0 | G89: 114961.77 | H89: 114961.77 | I89: 3000-01-01 | J89: 583 | K89: 197.19 | L89: 1 | M89: 0 | N89: 0 | O89: 114565.33 | P89: 114565.33 | Q89: 0 | R89: 0 | S89: 0 | T89: 0 | U89: 2021-10-26 | V89: 0 | W89: 114565.33 | X89: 0 | Y89: 2021-10-29 | Z89: 0 | AA89: 0 | AB89: 0 | AC89: 3000-01-01 | AD89: 3000-01-01 | AE89: 0 | AF89: FVTPL | AG89: 1.142306014 | AH89: 10064008.12 | AI89: US4456581077 | AK89: USD | AL89: 1 | AP89: Ahmad Rizal Ujang | AR89: 114565.33 | AS89: Cur | AT89: 2021-10-29
A90: THE | B90: EQT | C90: US45167R1041 | D90: THE*US45167R1041 | E90: 615.6 | F90: 0 | G90: 101491.92 | H90: 101491.92 | I90: 3000-01-01 | J90: 456 | K90: 222.57 | L90: 1 | M90: 0 | N90: 0 | O90: 100876.32 | P90: 100876.32 | Q90: 0 | R90: 0 | S90: 0 | T90: 0 | U90: 2021-10-25 | V90: 0 | W90: 100876.32 | X90: 0 | Y90: 2021-10-29 | Z90: 0 | AA90: 0 | AB90: 0 | AC90: 3000-01-01 | AD90: 3000-01-01 | AE90: 0 | AF90: FVTPL | AG90: 1.00846421 | AH90: 10064008.12 | AI90: US45167R1041 | AK90: USD | AL90: 1 | AP90: Ahmad Rizal Ujang | AR90: 100876.32 | AS90: Cur | AT90: 2021-10-29
A91: THE | B91: EQT | C91: US4581401001 | D91: THE*US4581401001 | E91: 1457.97 | F91: 0 | G91: 103537 | H91: 103537 | I91: 3000-01-01 | J91: 2113 | K91: 49 | L91: 1 | M91: 0 | N91: 0 | O91: 102079.03 | P91: 102079.03 | Q91: 0 | R91: 0 | S91: 0 | T91: 0 | U91: 2021-10-26 | V91: 0 | W91: 102079.03 | X91: 0 | Y91: 2021-10-29 | Z91: 0 | AA91: 0 | AB91: 0 | AC91: 3000-01-01 | AD91: 3000-01-01 | AE91: 0 | AF91: FVTPL | AG91: 1.028784941 | AH91: 10064008.12 | AI91: Intel Corporation | AJ91: USD | AK91: USD | AL91: 1 | AM91: United States Of America | AN91: Information Technology | AO91: Others | AP91: Ahmad Rizal Ujang | AQ91: US Dollar | AR91: 102079.03 | AS91: Cur | AT91: 2021-10-29
A92: THE | B92: EQT | C92: US4601461035 | D92: THE*US4601461035 | E92: -6405.6 | F92: 0 | G92: 93578.28 | H92: 93578.28 | I92: 3000-01-01 | J92: 1884 | K92: 49.67 | L92: 1 | M92: 0 | N92: 0 | O92: 99983.88 | P92: 99983.88 | Q92: 0 | R92: 0 | S92: 0 | T92: 0 | U92: 2021-10-26 | V92: 0 | W92: 99983.88 | X92: 0 | Y92: 2021-10-29 | Z92: 0 | AA92: 0 | AB92: 0 | AC92: 3000-01-01 | AD92: 3000-01-01 | AE92: 0 | AF92: FVTPL | AG92: 0.9298311258 | AH92: 10064008.12 | AI92: US4601461035 | AK92: USD | AL92: 1 | AP92: Ahmad Rizal Ujang | AR92: 99983.88 | AS92: Cur | AT92: 2021-10-29
A93: THE | B93: EQT | C93: US4781601046 | D93: THE*US4781601046 | E93: -540.27 | F93: 0 | G93: 101148.48 | H93: 101148.48 | I93: 3000-01-01 | J93: 621 | K93: 162.88 | L93: 1 | M93: 0 | N93: 0 | O93: 101688.75 | P93: 101688.75 | Q93: 0 | R93: 0 | S93: 0 | T93: 0 | U93: 2021-10-22 | V93: 0 | W93: 101688.75 | X93: 0 | Y93: 2021-10-29 | Z93: 0 | AA93: 0 | AB93: 0 | AC93: 3000-01-01 | AD93: 3000-01-01 | AE93: 0 | AF93: FVTPL | AG93: 1.005051653 | AH93: 10064008.12 | AI93: Johnson & Johnson | AJ93: USD | AK93: USD | AL93: 1 | AM93: United States Of America | AN93: Health Care | AO93: Others | AP93: Ahmad Rizal Ujang | AQ93: US Dollar | AR93: 101688.75 | AS93: Cur | AT93: 2021-10-29
A94: THE | B94: EQT | C94: US48203R1041 | D94: THE*US48203R1041 | E94: 6884 | F94: 0 | G94: 101607.84 | H94: 101607.84 | I94: 3000-01-01 | J94: 3442 | K94: 29.52 | L94: 1 | M94: 0 | N94: 0 | O94: 94723.84 | P94: 94723.84 | Q94: 0 | R94: 0 | S94: 0 | T94: 0 | U94: 2021-10-26 | V94: 0 | W94: 94723.84 | X94: 0 | Y94: 2021-10-29 | Z94: 0 | AA94: 0 | AB94: 0 | AC94: 3000-01-01 | AD94: 3000-01-01 | AE94: 0 | AF94: FVTPL | AG94: 1.009616038 | AH94: 10064008.12 | AI94: US48203R1041 | AK94: USD | AL94: 1 | AP94: Ahmad Rizal Ujang | AR94: 94723.84 | AS94: Cur | AT94: 2021-10-29
A95: THE | B95: EQT | C95: US49271V1008 | D95: THE*US49271V1008 | E95: 4682.72 | F95: 0 | G95: 114188.76 | H95: 114188.76 | I95: 3000-01-01 | J95: 3164 | K95: 36.09 | L95: 1 | M95: 0 | N95: 0 | O95: 109506.04 | P95: 109506.04 | Q95: 0 | R95: 0 | S95: 0 | T95: 0 | U95: 2021-10-26 | V95: 0 | W95: 109506.04 | X95: 0 | Y95: 2021-10-29 | Z95: 0 | AA95: 0 | AB95: 0 | AC95: 3000-01-01 | AD95: 3000-01-01 | AE95: 0 | AF95: FVTPL | AG95: 1.134625078 | AH95: 10064008.12 | AI95: US49271V1008 | AK95: USD | AL95: 1 | AP95: Ahmad Rizal Ujang | AR95: 109506.04 | AS95: Cur | AT95: 2021-10-29
A96: THE | B96: EQT | C96: US4990491049 | D96: THE*US4990491049 | E96: 2234.92 | F96: 0 | G96: 107370.86 | H96: 107370.86 | I96: 3000-01-01 | J96: 1894 | K96: 56.69 | L96: 1 | M96: 0 | N96: 0 | O96: 105135.94 | P96: 105135.94 | Q96: 0 | R96: 0 | S96: 0 | T96: 0 | U96: 2021-10-25 | V96: 0 | W96: 105135.94 | X96: 0 | Y96: 2021-10-29 | Z96: 0 | AA96: 0 | AB96: 0 | AC96: 3000-01-01 | AD96: 3000-01-01 | AE96: 0 | AF96: FVTPL | AG96: 1.066879704 | AH96: 10064008.12 | AI96: US4990491049 | AK96: USD | AL96: 1 | AP96: Ahmad Rizal Ujang | AR96: 105135.94 | AS96: Cur | AT96: 2021-10-29
A97: THE | B97: EQT | C97: US5500211090 | D97: THE*US5500211090 | E97: 8578.5 | F97: 0 | G97: 120230.58 | H97: 120230.58 | I97: 3000-01-01 | J97: 258 | K97: 466.01 | L97: 1 | M97: 0 | N97: 0 | O97: 111652.08 | P97: 111652.08 | Q97: 0 | R97: 0 | S97: 0 | T97: 0 | U97: 2021-10-26 | V97: 0 | W97: 111652.08 | X97: 0 | Y97: 2021-10-29 | Z97: 0 | AA97: 0 | AB97: 0 | AC97: 3000-01-01 | AD97: 3000-01-01 | AE97: 0 | AF97: FVTPL | AG97: 1.194659012 | AH97: 10064008.12 | AI97: US5500211090 | AK97: USD | AL97: 1 | AP97: Ahmad Rizal Ujang | AR97: 111652.08 | AS97: Cur | AT97: 2021-10-29
A98: THE | B98: EQT | C98: US5951121038 | D98: THE*US5951121038 | E98: 1178.6 | F98: 0 | G98: 98122 | H98: 98122 | I98: 3000-01-01 | J98: 1420 | K98: 69.1 | L98: 1 | M98: 0 | N98: 0 | O98: 96943.4 | P98: 96943.4 | Q98: 0 | R98: 0 | S98: 0 | T98: 0 | U98: 2021-10-27 | V98: 0 | W98: 96943.4 | X98: 0 | Y98: 2021-10-29 | Z98: 0 | AA98: 0 | AB98: 0 | AC98: 3000-01-01 | AD98: 3000-01-01 | AE98: 0 | AF98: FVTPL | AG98: 0.9749793405 | AH98: 10064008.12 | AI98: US5951121038 | AK98: USD | AL98: 1 | AP98: Ahmad Rizal Ujang | AR98: 96943.4 | AS98: Cur | AT98: 2021-10-29
A99: THE | B99: EQT | C99: US6081901042 | D99: THE*US6081901042 | E99: -8335.14 | F99: 0 | G99: 91971.99 | H99: 91971.99 | I99: 3000-01-01 | J99: 519 | K99: 177.21 | L99: 1 | M99: 0 | N99: 0 | O99: 100307.13 | P99: 100307.13 | Q99: 0 | R99: 0 | S99: 0 | T99: 0 | U99: 2021-10-26 | V99: 0 | W99: 100307.13 | X99: 0 | Y99: 2021-10-29 | Z99: 0 | AA99: 0 | AB99: 0 | AC99: 3000-01-01 | AD99: 3000-01-01 | AE99: 0 | AF99: FVTPL | AG99: 0.9138703875 | AH99: 10064008.12 | AI99: US6081901042 | AK99: USD | AL99: 1 | AP99: Ahmad Rizal Ujang | AR99: 100307.13 | AS99: Cur | AT99: 2021-10-29
A100: THE | B100: EQT | C100: US6516391066 | D100: THE*US6516391066 | E100: -7391.44 | F100: 0 | G100: 101304 | H100: 101304 | I100: 3000-01-01 | J100: 1876 | K100: 54 | L100: 1 | M100: 0 | N100: 0 | O100: 108695.44 | P100: 108695.44 | Q100: 0 | R100: 0 | S100: 0 | T100: 0 | U100: 2021-10-25 | V100: 0 | W100: 108695.44 | X100: 0 | Y100: 2021-10-29 | Z100: 0 | AA100: 0 | AB100: 0 | AC100: 3000-01-01 | AD100: 3000-01-01 | AE100: 0 | AF100: FVTPL | AG100: 1.006596962 | AH100: 10064008.12 | AI100: US6516391066 | AK100: USD | AL100: 1 | AP100: Ahmad Rizal Ujang | AR100: 108695.44 | AS100: Cur | AT100: 2021-10-29
A101: THE | B101: EQT | C101: US6795801009 | D101: THE*US6795801009 | E101: 5679.4 | F101: 0 | G101: 124592.75 | H101: 124592.75 | I101: 3000-01-01 | J101: 365 | K101: 341.35 | L101: 1 | M101: 0 | N101: 0 | O101: 118913.35 | P101: 118913.35 | Q101: 0 | R101: 0 | S101: 0 | T101: 0 | U101: 2021-10-26 | V101: 0 | W101: 118913.35 | X101: 0 | Y101: 2021-10-29 | Z101: 0 | AA101: 0 | AB101: 0 | AC101: 3000-01-01 | AD101: 3000-01-01 | AE101: 0 | AF101: FVTPL | AG101: 1.238003274 | AH101: 10064008.12 | AI101: US6795801009 | AK101: USD | AL101: 1 | AP101: Ahmad Rizal Ujang | AR101: 118913.35 | AS101: Cur | AT101: 2021-10-29
A102: THE | B102: EQT | C102: US7427181091 | D102: THE*US7427181091 | E102: 1655.01 | F102: 0 | G102: 111103.23 | H102: 111103.23 | I102: 3000-01-01 | J102: 777 | K102: 142.99 | L102: 1 | M102: 0 | N102: 0 | O102: 109448.22 | P102: 109448.22 | Q102: 0 | R102: 0 | S102: 0 | T102: 0 | U102: 2021-10-22 | V102: 0 | W102: 109448.22 | X102: 0 | Y102: 2021-10-29 | Z102: 0 | AA102: 0 | AB102: 0 | AC102: 3000-01-01 | AD102: 3000-01-01 | AE102: 0 | AF102: FVTPL | AG102: 1.103966021 | AH102: 10064008.12 | AI102: Procter & Gamble Company | AJ102: USD | AK102: USD | AL102: 1 | AM102: United States Of America | AN102: Consumer Staples | AO102: Others | AP102: Ahmad Rizal Ujang | AQ102: US Dollar | AR102: 109448.22 | AS102: Cur | AT102: 2021-10-29
A103: THE | B103: EQT | C103: US74340W1036 | D103: THE*US74340W1036 | E103: 792.36 | F103: 0 | G103: 123505.92 | H103: 123505.92 | I103: 3000-01-01 | J103: 852 | K103: 144.96 | L103: 1 | M103: 0 | N103: 0 | O103: 122713.56 | P103: 122713.56 | Q103: 0 | R103: 0 | S103: 0 | T103: 0 | U103: 2021-10-22 | V103: 0 | W103: 122713.56 | X103: 0 | Y103: 2021-10-29 | Z103: 0 | AA103: 0 | AB103: 0 | AC103: 3000-01-01 | AD103: 3000-01-01 | AE103: 0 | AF103: FVTPL | AG103: 1.227204097 | AH103: 10064008.12 | AI103: US74340W1036 | AK103: USD | AL103: 1 | AP103: Ahmad Rizal Ujang | AR103: 122713.56 | AS103: Cur | AT103: 2021-10-29
A104: THE | B104: EQT | C104: US7458671010 | D104: THE*US7458671010 | E104: -1197 | F104: 0 | G104: 91352 | H104: 91352 | I104: 3000-01-01 | J104: 1900 | K104: 48.08 | L104: 1 | M104: 0 | N104: 0 | O104: 92549 | P104: 92549 | Q104: 0 | R104: 0 | S104: 0 | T104: 0 | U104: 2021-10-26 | V104: 0 | W104: 92549 | X104: 0 | Y104: 2021-10-29 | Z104: 0 | AA104: 0 | AB104: 0 | AC104: 3000-01-01 | AD104: 3000-01-01 | AE104: 0 | AF104: FVTPL | AG104: 0.9077099195 | AH104: 10064008.12 | AI104: US7458671010 | AK104: USD | AL104: 1 | AP104: Ahmad Rizal Ujang | AR104: 92549 | AS104: Cur | AT104: 2021-10-29
A105: THE | B105: EQT | C105: US74736K1016 | D105: THE*US74736K1016 | E105: 1728.7 | F105: 0 | G105: 99255.7 | H105: 99255.7 | I105: 3000-01-01 | J105: 590 | K105: 168.23 | L105: 1 | M105: 0 | N105: 0 | O105: 97527 | P105: 97527 | Q105: 0 | R105: 0 | S105: 0 | T105: 0 | U105: 2021-10-27 | V105: 0 | W105: 97527 | X105: 0 | Y105: 2021-10-29 | Z105: 0 | AA105: 0 | AB105: 0 | AC105: 3000-01-01 | AD105: 3000-01-01 | AE105: 0 | AF105: FVTPL | AG105: 0.9862442361 | AH105: 10064008.12 | AI105: US74736K1016 | AK105: USD | AL105: 1 | AP105: Ahmad Rizal Ujang | AR105: 97527 | AS105: Cur | AT105: 2021-10-29
A106: THE | B106: EQT | C106: US7611521078 | D106: THE*US7611521078 | E106: -66.88 | F106: 0 | G106: 109896.38 | H106: 109896.38 | I106: 3000-01-01 | J106: 418 | K106: 262.91 | L106: 1 | M106: 0 | N106: 0 | O106: 109963.26 | P106: 109963.26 | Q106: 0 | R106: 0 | S106: 0 | T106: 0 | U106: 2021-10-21 | V106: 0 | W106: 109963.26 | X106: 0 | Y106: 2021-10-29 | Z106: 0 | AA106: 0 | AB106: 0 | AC106: 3000-01-01 | AD106: 3000-01-01 | AE106: 0 | AF106: FVTPL | AG106: 1.091974278 | AH106: 10064008.12 | AI106: ResMed Inc. | AJ106: USD | AK106: USD | AL106: 1 | AM106: United States Of America | AN106: Health Care | AO106: Others | AP106: Ahmad Rizal Ujang | AQ106: US Dollar | AR106: 109963.26 | AS106: Cur | AT106: 2021-10-29
A107: THE | B107: EQT | C107: US7739031091 | D107: THE*US7739031091 | E107: 1200.8 | F107: 0 | G107: 100930.4 | H107: 100930.4 | I107: 3000-01-01 | J107: 316 | K107: 319.4 | L107: 1 | M107: 0 | N107: 0 | O107: 99729.6 | P107: 99729.6 | Q107: 0 | R107: 0 | S107: 0 | T107: 0 | U107: 2021-10-26 | V107: 0 | W107: 99729.6 | X107: 0 | Y107: 2021-10-29 | Z107: 0 | AA107: 0 | AB107: 0 | AC107: 3000-01-01 | AD107: 3000-01-01 | AE107: 0 | AF107: FVTPL | AG107: 1.002884723 | AH107: 10064008.12 | AI107: US7739031091 | AK107: USD | AL107: 1 | AP107: Ahmad Rizal Ujang | AR107: 99729.6 | AS107: Cur | AT107: 2021-10-29
A108: THE | B108: EQT | C108: US8064071025 | D108: THE*US8064071025 | E108: 1400 | F108: 0 | G108: 106890 | H108: 106890 | I108: 3000-01-01 | J108: 1400 | K108: 76.35 | L108: 1 | M108: 0 | N108: 0 | O108: 105490 | P108: 105490 | Q108: 0 | R108: 0 | S108: 0 | T108: 0 | U108: 2021-10-26 | V108: 0 | W108: 105490 | X108: 0 | Y108: 2021-10-29 | Z108: 0 | AA108: 0 | AB108: 0 | AC108: 3000-01-01 | AD108: 3000-01-01 | AE108: 0 | AF108: FVTPL | AG108: 1.062101687 | AH108: 10064008.12 | AI108: US8064071025 | AK108: USD | AL108: 1 | AP108: Ahmad Rizal Ujang | AR108: 105490 | AS108: Cur | AT108: 2021-10-29
A109: THE | B109: EQT | C109: US83088M1027 | D109: THE*US83088M1027 | E109: -462 | F109: 0 | G109: 100278 | H109: 100278 | I109: 3000-01-01 | J109: 600 | K109: 167.13 | L109: 1 | M109: 0 | N109: 0 | O109: 100740 | P109: 100740 | Q109: 0 | R109: 0 | S109: 0 | T109: 0 | U109: 2021-10-27 | V109: 0 | W109: 100740 | X109: 0 | Y109: 2021-10-29 | Z109: 0 | AA109: 0 | AB109: 0 | AC109: 3000-01-01 | AD109: 3000-01-01 | AE109: 0 | AF109: FVTPL | AG109: 0.9964022167 | AH109: 10064008.12 | AI109: US83088M1027 | AK109: USD | AL109: 1 | AP109: Ahmad Rizal Ujang | AR109: 100740 | AS109: Cur | AT109: 2021-10-29
A110: THE | B110: EQT | C110: US8716071076 | D110: THE*US8716071076 | E110: 1587.2 | F110: 0 | G110: 103285.8 | H110: 103285.8 | I110: 3000-01-01 | J110: 310 | K110: 333.18 | L110: 1 | M110: 0 | N110: 0 | O110: 101698.6 | P110: 101698.6 | Q110: 0 | R110: 0 | S110: 0 | T110: 0 | U110: 2021-10-26 | V110: 0 | W110: 101698.6 | X110: 0 | Y110: 2021-10-29 | Z110: 0 | AA110: 0 | AB110: 0 | AC110: 3000-01-01 | AD110: 3000-01-01 | AE110: 0 | AF110: FVTPL | AG110: 1.026288918 | AH110: 10064008.12 | AI110: US8716071076 | AK110: USD | AL110: 1 | AP110: Ahmad Rizal Ujang | AR110: 101698.6 | AS110: Cur | AT110: 2021-10-29
A111: THE | B111: EQT | C111: US87612E1064 | D111: THE*US87612E1064 | E111: 3390.67 | F111: 0 | G111: 115011.66 | H111: 115011.66 | I111: 3000-01-01 | J111: 443 | K111: 259.62 | L111: 1 | M111: 0 | N111: 0 | O111: 111620.99 | P111: 111620.99 | Q111: 0 | R111: 0 | S111: 0 | T111: 0 | U111: 2021-10-20 | V111: 0 | W111: 111620.99 | X111: 0 | Y111: 2021-10-29 | Z111: 0 | AA111: 0 | AB111: 0 | AC111: 3000-01-01 | AD111: 3000-01-01 | AE111: 0 | AF111: FVTPL | AG111: 1.142801741 | AH111: 10064008.12 | AI111: Target Corporation | AJ111: USD | AK111: USD | AL111: 1 | AM111: United States Of America | AN111: Consumer Discretionary | AO111: Others | AP111: Ahmad Rizal Ujang | AQ111: US Dollar | AR111: 111620.99 | AS111: Cur | AT111: 2021-10-29
A112: THE | B112: EQT | C112: US8835561023 | D112: THE*US8835561023 | E112: 4476.33 | F112: 0 | G112: 112053.39 | H112: 112053.39 | I112: 3000-01-01 | J112: 177 | K112: 633.07 | L112: 1 | M112: 0 | N112: 0 | O112: 107577.06 | P112: 107577.06 | Q112: 0 | R112: 0 | S112: 0 | T112: 0 | U112: 2021-10-25 | V112: 0 | W112: 107577.06 | X112: 0 | Y112: 2021-10-29 | Z112: 0 | AA112: 0 | AB112: 0 | AC112: 3000-01-01 | AD112: 3000-01-01 | AE112: 0 | AF112: FVTPL | AG112: 1.11340719 | AH112: 10064008.12 | AI112: US8835561023 | AK112: USD | AL112: 1 | AP112: Ahmad Rizal Ujang | AR112: 107577.06 | AS112: Cur | AT112: 2021-10-29
A113: THE | B113: EQT | C113: US9297401088 | D113: THE*US9297401088 | E113: -2072.3 | F113: 0 | G113: 110599.87 | H113: 110599.87 | I113: 3000-01-01 | J113: 1219 | K113: 90.73 | L113: 1 | M113: 0 | N113: 0 | O113: 112672.17 | P113: 112672.17 | Q113: 0 | R113: 0 | S113: 0 | T113: 0 | U113: 2021-10-22 | V113: 0 | W113: 112672.17 | X113: 0 | Y113: 2021-10-29 | Z113: 0 | AA113: 0 | AB113: 0 | AC113: 3000-01-01 | AD113: 3000-01-01 | AE113: 0 | AF113: FVTPL | AG113: 1.098964435 | AH113: 10064008.12 | AI113: US9297401088 | AK113: USD | AL113: 1 | AP113: Ahmad Rizal Ujang | AR113: 112672.17 | AS113: Cur | AT113: 2021-10-29
A114: THE | B114: EQT | C114: ZAE000026480 | D114: THE*ZAE000026480 | E114: -87.43 | F114: -122.37 | G114: 19027.29 | H114: 289454.5 | I114: 3000-01-01 | J114: 2150 | K114: 134.63 | L114: 15.2126 | M114: 0 | N114: 0 | O114: 19237.09 | P114: 290784.57 | Q114: 0 | R114: 0 | S114: 0 | T114: 0 | U114: 2021-10-21 | V114: 0 | W114: 290784.57 | X114: 0 | Y114: 2021-10-29 | Z114: 0 | AA114: 0 | AB114: 0 | AC114: 3000-01-01 | AD114: 3000-01-01 | AE114: 0 | AF114: FVTPL | AG114: 0.1890627449 | AH114: 10064008.12 | AI114: ZAE000026480 | AJ114: HKD | AK114: USD | AL114: 1 | AM114: Hong Kong | AN114: Utilities | AO114: Others | AP114: Ahmad Rizal Ujang | AQ114: Hong Kong Dollar | AR114: 19237.09 | AS114: Cur | AT114: 2021-10-29
A115: THE | B115: EQT | C115: ZAE000071080 | D115: THE*ZAE000071080 | E115: -204.15 | F115: -85.29 | G115: 13298.42 | H115: 202303.5 | I115: 3000-01-01 | J115: 1050 | K115: 192.67 | L115: 15.2126 | M115: 0 | N115: 0 | O115: 13587.86 | P115: 205409.11 | Q115: 0 | R115: 0 | S115: 0 | T115: 0 | U115: 2021-10-22 | V115: 0 | W115: 205409.11 | X115: 0 | Y115: 2021-10-29 | Z115: 0 | AA115: 0 | AB115: 0 | AC115: 3000-01-01 | AD115: 3000-01-01 | AE115: 0 | AF115: FVTPL | AG115: 0.1321384069 | AH115: 10064008.12 | AI115: ZAE000071080 | AK115: USD | AL115: 1 | AP115: Ahmad Rizal Ujang | AR115: 13587.86 | AS115: Cur | AT115: 2021-10-29
A116: THE | B116: TBI | C116: TradeDrVal | E116: 0 | F116: 0 | G116: 0 | H116: 0 | I116: 3000-01-01 | J116: 0 | K116: 0 | L116: 1 | M116: 0 | N116: 0 | O116: 0 | P116: 0 | Q116: 0 | R116: 0 | S116: 0 | T116: 0 | U116: 3000-01-01 | V116: 0 | W116: 0 | X116: 0 | Y116: 3000-01-01 | Z116: 0 | AA116: 0 | AB116: 0 | AC116: 3000-01-01 | AD116: 3000-01-01 | AE116: 0 | AF116: HFT | AG116: 0 | AH116: 10064008.12 | AI116: TradeDrVal | AK116: USD | AL116: 2 | AP116: Ahmad Rizal Ujang | AR116: 0 | AS116: Cur | AT116: 2021-10-29
A117: THE | B117: TBI | C117: TradeCrVal | E117: 0 | F117: 0 | G117: -292496.76 | H117: -292496.76 | I117: 3000-01-01 | J117: 0 | K117: 0 | L117: 1 | M117: 0 | N117: 0 | O117: 0 | P117: 0 | Q117: 0 | R117: 0 | S117: 0 | T117: 0 | U117: 3000-01-01 | V117: 0 | W117: 0 | X117: 0 | Y117: 3000-01-01 | Z117: 0 | AA117: 0 | AB117: 0 | AC117: 3000-01-01 | AD117: 3000-01-01 | AE117: 0 | AF117: HFT | AG117: -2.906364507 | AH117: 10064008.12 | AI117: TradeCrVal | AK117: USD | AL117: 2 | AP117: Ahmad Rizal Ujang | AR117: -292496.76 | AS117: Cur | AT117: 2021-10-29
A118: THE | B118: TBI | C118: MngDb | E118: 0 | F118: 0 | G118: 0 | H118: 0 | I118: 3000-01-01 | J118: 0 | K118: 0 | L118: 1 | M118: 0 | N118: 0 | O118: 0 | P118: 0 | Q118: 0 | R118: 0 | S118: 0 | T118: 0 | U118: 3000-01-01 | V118: 0 | W118: 0 | X118: 0 | Y118: 3000-01-01 | Z118: 0 | AA118: 0 | AB118: 0 | AC118: 3000-01-01 | AD118: 3000-01-01 | AE118: 0 | AF118: HFT | AG118: 0 | AH118: 10064008.12 | AI118: MngDb | AK118: USD | AL118: 2 | AP118: Ahmad Rizal Ujang | AR118: 0 | AS118: Cur | AT118: 2021-10-29
A119: THE | B119: TBI | C119: MngCr | E119: 0 | F119: 0 | G119: 0 | H119: 0 | I119: 3000-01-01 | J119: 0 | K119: 0 | L119: 1 | M119: 0 | N119: 0 | O119: 0 | P119: 0 | Q119: 0 | R119: 0 | S119: 0 | T119: 0 | U119: 3000-01-01 | V119: 0 | W119: 0 | X119: 0 | Y119: 3000-01-01 | Z119: 0 | AA119: 0 | AB119: 0 | AC119: 3000-01-01 | AD119: 3000-01-01 | AE119: 0 | AF119: HFT | AG119: 0 | AH119: 10064008.12 | AI119: MngCr | AK119: USD | AL119: 2 | AP119: Ahmad Rizal Ujang | AR119: 0 | AS119: Cur | AT119: 2021-10-29
A120: THE | B120: TBI | C120: DivVal | E120: 0 | F120: 0 | G120: 388.8 | H120: 388.8 | I120: 3000-01-01 | J120: 0 | K120: 0 | L120: 1 | M120: 0 | N120: 0 | O120: 0 | P120: 0 | Q120: 0 | R120: 0 | S120: 0 | T120: 0 | U120: 3000-01-01 | V120: 0 | W120: 0 | X120: 0 | Y120: 3000-01-01 | Z120: 0 | AA120: 0 | AB120: 0 | AC120: 3000-01-01 | AD120: 3000-01-01 | AE120: 0 | AF120: HFT | AG120: 0.003863271923 | AH120: 10064008.12 | AI120: DivVal | AK120: USD | AL120: 2 | AP120: Ahmad Rizal Ujang | AR120: 388.8 | AS120: Cur | AT120: 2021-10-29
A121: THE | B121: TBI | C121: DivTaxRec | E121: 0 | F121: 0 | G121: 0 | H121: 0 | I121: 3000-01-01 | J121: 0 | K121: 0 | L121: 1 | M121: 0 | N121: 0 | O121: 0 | P121: 0 | Q121: 0 | R121: 0 | S121: 0 | T121: 0 | U121: 3000-01-01 | V121: 0 | W121: 0 | X121: 0 | Y121: 3000-01-01 | Z121: 0 | AA121: 0 | AB121: 0 | AC121: 3000-01-01 | AD121: 3000-01-01 | AE121: 0 | AF121: HFT | AG121: 0 | AH121: 10064008.12 | AI121: DivTaxRec | AK121: USD | AL121: 2 | AP121: Ahmad Rizal Ujang | AR121: 0 | AS121: Cur | AT121: 2021-10-29
A122: THE | B122: TBI | C122: OtherDbVal | E122: 0 | F122: 0 | G122: 0 | H122: 0 | I122: 3000-01-01 | J122: 0 | K122: 0 | L122: 1 | M122: 0 | N122: 0 | O122: 0 | P122: 0 | Q122: 0 | R122: 0 | S122: 0 | T122: 0 | U122: 3000-01-01 | V122: 0 | W122: 0 | X122: 0 | Y122: 3000-01-01 | Z122: 0 | AA122: 0 | AB122: 0 | AC122: 3000-01-01 | AD122: 3000-01-01 | AE122: 0 | AF122: HFT | AG122: 0 | AH122: 10064008.12 | AI122: OtherDbVal | AK122: USD | AL122: 2 | AP122: Ahmad Rizal Ujang | AR122: 0 | AS122: Cur | AT122: 2021-10-29
A123: THE | B123: TBI | C123: OtherCrVal | E123: 0 | F123: 0 | G123: 0 | H123: 0 | I123: 3000-01-01 | J123: 0 | K123: 0 | L123: 1 | M123: 0 | N123: 0 | O123: 0 | P123: 0 | Q123: 0 | R123: 0 | S123: 0 | T123: 0 | U123: 3000-01-01 | V123: 0 | W123: 0 | X123: 0 | Y123: 3000-01-01 | Z123: 0 | AA123: 0 | AB123: 0 | AC123: 3000-01-01 | AD123: 3000-01-01 | AE123: 0 | AF123: HFT | AG123: 0 | AH123: 10064008.12 | AI123: OtherCrVal | AK123: USD | AL123: 2 | AP123: Ahmad Rizal Ujang | AR123: 0 | AS123: Cur | AT123: 2021-10-29
A124: THE | B124: TBI | C124: TaxProvVal | E124: 0 | F124: 0 | G124: 0 | H124: 0 | I124: 3000-01-01 | J124: 0 | K124: 0 | L124: 1 | M124: 0 | N124: 0 | O124: 0 | P124: 0 | Q124: 0 | R124: 0 | S124: 0 | T124: 0 | U124: 3000-01-01 | V124: 0 | W124: 0 | X124: 0 | Y124: 3000-01-01 | Z124: 0 | AA124: 0 | AB124: 0 | AC124: 3000-01-01 | AD124: 3000-01-01 | AE124: 0 | AF124: HFT | AG124: 0 | AH124: 10064008.12 | AI124: TaxProvVal | AK124: USD | AL124: 2 | AP124: Ahmad Rizal Ujang | AR124: 0 | AS124: Cur | AT124: 2021-10-29
A125: THE | B125: TBI | C125: DefTaxProvVal | E125: 0 | F125: 0 | G125: 0 | H125: 0 | I125: 3000-01-01 | J125: 0 | K125: 0 | L125: 1 | M125: 0 | N125: 0 | O125: 0 | P125: 0 | Q125: 0 | R125: 0 | S125: 0 | T125: 0 | U125: 3000-01-01 | V125: 0 | W125: 0 | X125: 0 | Y125: 3000-01-01 | Z125: 0 | AA125: 0 | AB125: 0 | AC125: 3000-01-01 | AD125: 3000-01-01 | AE125: 0 | AF125: HFT | AG125: 0 | AH125: 10064008.12 | AI125: DefTaxProvVal | AK125: USD | AL125: 2 | AP125: Ahmad Rizal Ujang | AR125: 0 | AS125: Cur | AT125: 2021-10-29
A126: THE | B126: TBI | C126: ProvDistVal | E126: 0 | F126: 0 | G126: 0 | H126: 0 | I126: 3000-01-01 | J126: 0 | K126: 0 | L126: 1 | M126: 0 | N126: 0 | O126: 0 | P126: 0 | Q126: 0 | R126: 0 | S126: 0 | T126: 0 | U126: 3000-01-01 | V126: 0 | W126: 0 | X126: 0 | Y126: 3000-01-01 | Z126: 0 | AA126: 0 | AB126: 0 | AC126: 3000-01-01 | AD126: 3000-01-01 | AE126: 0 | AF126: HFT | AG126: 0 | AH126: 10064008.12 | AI126: ProvDistVal | AK126: USD | AL126: 2 | AP126: Ahmad Rizal Ujang | AR126: 0 | AS126: Cur | AT126: 2021-10-29
A127: THE | B127: TBI | C127: MngFee_BF | E127: 0 | F127: 0 | G127: 0 | H127: 0 | I127: 3000-01-01 | J127: 0 | K127: 0 | L127: 1 | M127: 0 | N127: 0 | O127: 0 | P127: 0 | Q127: 0 | R127: 0 | S127: 0 | T127: 0 | U127: 3000-01-01 | V127: 0 | W127: 0 | X127: 0 | Y127: 3000-01-01 | Z127: 0 | AA127: 0 | AB127: 0 | AC127: 3000-01-01 | AD127: 3000-01-01 | AE127: 0 | AF127: HFT | AG127: 0 | AH127: 10064008.12 | AI127: MngFee_BF | AK127: USD | AL127: 2 | AP127: Ahmad Rizal Ujang | AR127: 0 | AS127: Cur | AT127: 2021-10-29
A128: THE | B128: TBI | C128: MngFeeRebate_BF | E128: 0 | F128: 0 | G128: 0 | H128: 0 | I128: 3000-01-01 | J128: 0 | K128: 0 | L128: 1 | M128: 0 | N128: 0 | O128: 0 | P128: 0 | Q128: 0 | R128: 0 | S128: 0 | T128: 0 | U128: 3000-01-01 | V128: 0 | W128: 0 | X128: 0 | Y128: 3000-01-01 | Z128: 0 | AA128: 0 | AB128: 0 | AC128: 3000-01-01 | AD128: 3000-01-01 | AE128: 0 | AF128: HFT | AG128: 0 | AH128: 10064008.12 | AI128: MngFeeRebate_BF | AK128: USD | AL128: 2 | AP128: Ahmad Rizal Ujang | AR128: 0 | AS128: Cur | AT128: 2021-10-29
A129: THE | B129: TBI | C129: TrusteeFee_BF | E129: 0 | F129: 0 | G129: 0 | H129: 0 | I129: 3000-01-01 | J129: 0 | K129: 0 | L129: 1 | M129: 0 | N129: 0 | O129: 0 | P129: 0 | Q129: 0 | R129: 0 | S129: 0 | T129: 0 | U129: 3000-01-01 | V129: 0 | W129: 0 | X129: 0 | Y129: 3000-01-01 | Z129: 0 | AA129: 0 | AB129: 0 | AC129: 3000-01-01 | AD129: 3000-01-01 | AE129: 0 | AF129: HFT | AG129: 0 | AH129: 10064008.12 | AI129: TrusteeFee_BF | AK129: USD | AL129: 2 | AP129: Ahmad Rizal Ujang | AR129: 0 | AS129: Cur | AT129: 2021-10-29
A130: THE | B130: TBI | C130: AuditorFee_BF | E130: 0 | F130: 0 | G130: 0 | H130: 0 | I130: 3000-01-01 | J130: 0 | K130: 0 | L130: 1 | M130: 0 | N130: 0 | O130: 0 | P130: 0 | Q130: 0 | R130: 0 | S130: 0 | T130: 0 | U130: 3000-01-01 | V130: 0 | W130: 0 | X130: 0 | Y130: 3000-01-01 | Z130: 0 | AA130: 0 | AB130: 0 | AC130: 3000-01-01 | AD130: 3000-01-01 | AE130: 0 | AF130: HFT | AG130: 0 | AH130: 10064008.12 | AI130: AuditorFee_BF | AK130: USD | AL130: 2 | AP130: Ahmad Rizal Ujang | AR130: 0 | AS130: Cur | AT130: 2021-10-29
A131: THE | B131: TBI | C131: CustodianFee_BF | E131: 0 | F131: 0 | G131: 0 | H131: 0 | I131: 3000-01-01 | J131: 0 | K131: 0 | L131: 1 | M131: 0 | N131: 0 | O131: 0 | P131: 0 | Q131: 0 | R131: 0 | S131: 0 | T131: 0 | U131: 3000-01-01 | V131: 0 | W131: 0 | X131: 0 | Y131: 3000-01-01 | Z131: 0 | AA131: 0 | AB131: 0 | AC131: 3000-01-01 | AD131: 3000-01-01 | AE131: 0 | AF131: HFT | AG131: 0 | AH131: 10064008.12 | AI131: CustodianFee_BF | AK131: USD | AL131: 2 | AP131: Ahmad Rizal Ujang | AR131: 0 | AS131: Cur | AT131: 2021-10-29
A132: THE | B132: TBI | C132: BrokerageFee_BF | E132: 0 | F132: 0 | G132: 0 | H132: 0 | I132: 3000-01-01 | J132: 0 | K132: 0 | L132: 1 | M132: 0 | N132: 0 | O132: 0 | P132: 0 | Q132: 0 | R132: 0 | S132: 0 | T132: 0 | U132: 3000-01-01 | V132: 0 | W132: 0 | X132: 0 | Y132: 3000-01-01 | Z132: 0 | AA132: 0 | AB132: 0 | AC132: 3000-01-01 | AD132: 3000-01-01 | AE132: 0 | AF132: HFT | AG132: 0 | AH132: 10064008.12 | AI132: BrokerageFee_BF | AK132: USD | AL132: 2 | AP132: Ahmad Rizal Ujang | AR132: 0 | AS132: Cur | AT132: 2021-10-29
A133: THE | B133: TBI | C133: OthVal | E133: 0 | F133: 0 | G133: 0 | H133: 0 | I133: 3000-01-01 | J133: 0 | K133: 0 | L133: 1 | M133: 0 | N133: 0 | O133: 0 | P133: 0 | Q133: 0 | R133: 0 | S133: 0 | T133: 0 | U133: 3000-01-01 | V133: 0 | W133: 0 | X133: 0 | Y133: 3000-01-01 | Z133: 0 | AA133: 0 | AB133: 0 | AC133: 3000-01-01 | AD133: 3000-01-01 | AE133: 0 | AF133: HFT | AG133: 0 | AH133: 10064008.12 | AI133: OthVal | AK133: USD | AL133: 2 | AP133: Ahmad Rizal Ujang | AR133: 0 | AS133: Cur | AT133: 2021-10-29
A134: THE | B134: TBI | C134: TaxVal | E134: 0 | F134: 0 | G134: 0 | H134: 0 | I134: 3000-01-01 | J134: 0 | K134: 0 | L134: 1 | M134: 0 | N134: 0 | O134: 0 | P134: 0 | Q134: 0 | R134: 0 | S134: 0 | T134: 0 | U134: 3000-01-01 | V134: 0 | W134: 0 | X134: 0 | Y134: 3000-01-01 | Z134: 0 | AA134: 0 | AB134: 0 | AC134: 3000-01-01 | AD134: 3000-01-01 | AE134: 0 | AF134: HFT | AG134: 0 | AH134: 10064008.12 | AI134: TaxVal | AK134: USD | AL134: 2 | AP134: Ahmad Rizal Ujang | AR134: 0 | AS134: Cur | AT134: 2021-10-29
A135: THE | B135: TBI | C135: BankVal | E135: 0 | F135: 0 | G135: 835292.42 | H135: 835292.42 | I135: 3000-01-01 | J135: 0 | K135: 0 | L135: 1 | M135: 0 | N135: 0 | O135: 0 | P135: 0 | Q135: 0 | R135: 0 | S135: 0 | T135: 0 | U135: 3000-01-01 | V135: 0 | W135: 0 | X135: 0 | Y135: 3000-01-01 | Z135: 0 | AA135: 0 | AB135: 0 | AC135: 3000-01-01 | AD135: 3000-01-01 | AE135: 0 | AF135: HFT | AG135: 8.299798749 | AH135: 10064008.12 | AI135: BankVal | AK135: USD | AL135: 2 | AP135: Ahmad Rizal Ujang | AR135: 835292.42 | AS135: Cur | AT135: 2021-10-29
A136: THE | B136: TBI | C136: BankVal-FX | E136: 0 | F136: 0 | G136: -348855.65 | H136: -348855.65 | I136: 3000-01-01 | J136: 0 | K136: 0 | L136: 1 | M136: 0 | N136: 0 | O136: 0 | P136: 0 | Q136: 0 | R136: 0 | S136: 0 | T136: 0 | U136: 3000-01-01 | V136: 0 | W136: 0 | X136: 0 | Y136: 3000-01-01 | Z136: 0 | AA136: 0 | AB136: 0 | AC136: 3000-01-01 | AD136: 3000-01-01 | AE136: 0 | AF136: HFT | AG136: -3.466368924 | AH136: 10064008.12 | AI136: BankVal-FX | AK136: USD | AL136: 2 | AP136: Ahmad Rizal Ujang | AR136: -348855.65 | AS136: Cur | AT136: 2021-10-29
A137: THE | B137: TBI | C137: TradeDrVal | E137: 0 | F137: 0 | G137: 0 | H137: 0 | I137: 3000-01-01 | J137: 0 | K137: 0 | L137: 1 | M137: 0 | N137: 0 | O137: 0 | P137: 0 | Q137: 0 | R137: 0 | S137: 0 | T137: 0 | U137: 3000-01-01 | V137: 0 | W137: 0 | X137: 0 | Y137: 3000-01-01 | Z137: 0 | AA137: 0 | AB137: 0 | AC137: 3000-01-01 | AD137: 3000-01-01 | AE137: 0 | AF137: HFT | AG137: 0 | AH137: 10000000 | AI137: TradeDrVal | AK137: USD | AL137: 2 | AP137: Ahmad Rizal Ujang | AR137: 0 | AS137: LstYr | AT137: 2021-10-04
A138: THE | B138: TBI | C138: TradeCrVal | E138: 0 | F138: 0 | G138: 0 | H138: 0 | I138: 3000-01-01 | J138: 0 | K138: 0 | L138: 1 | M138: 0 | N138: 0 | O138: 0 | P138: 0 | Q138: 0 | R138: 0 | S138: 0 | T138: 0 | U138: 3000-01-01 | V138: 0 | W138: 0 | X138: 0 | Y138: 3000-01-01 | Z138: 0 | AA138: 0 | AB138: 0 | AC138: 3000-01-01 | AD138: 3000-01-01 | AE138: 0 | AF138: HFT | AG138: 0 | AH138: 10000000 | AI138: TradeCrVal | AK138: USD | AL138: 2 | AP138: Ahmad Rizal Ujang | AR138: 0 | AS138: LstYr | AT138: 2021-10-04
A139: THE | B139: TBI | C139: MngDb | E139: 0 | F139: 0 | G139: 0 | H139: 0 | I139: 3000-01-01 | J139: 0 | K139: 0 | L139: 1 | M139: 0 | N139: 0 | O139: 0 | P139: 0 | Q139: 0 | R139: 0 | S139: 0 | T139: 0 | U139: 3000-01-01 | V139: 0 | W139: 0 | X139: 0 | Y139: 3000-01-01 | Z139: 0 | AA139: 0 | AB139: 0 | AC139: 3000-01-01 | AD139: 3000-01-01 | AE139: 0 | AF139: HFT | AG139: 0 | AH139: 10000000 | AI139: MngDb | AK139: USD | AL139: 2 | AP139: Ahmad Rizal Ujang | AR139: 0 | AS139: LstYr | AT139: 2021-10-04
A140: THE | B140: TBI | C140: MngCr | E140: 0 | F140: 0 | G140: 0 | H140: 0 | I140: 3000-01-01 | J140: 0 | K140: 0 | L140: 1 | M140: 0 | N140: 0 | O140: 0 | P140: 0 | Q140: 0 | R140: 0 | S140: 0 | T140: 0 | U140: 3000-01-01 | V140: 0 | W140: 0 | X140: 0 | Y140: 3000-01-01 | Z140: 0 | AA140: 0 | AB140: 0 | AC140: 3000-01-01 | AD140: 3000-01-01 | AE140: 0 | AF140: HFT | AG140: 0 | AH140: 10000000 | AI140: MngCr | AK140: USD | AL140: 2 | AP140: Ahmad Rizal Ujang | AR140: 0 | AS140: LstYr | AT140: 2021-10-04
A141: THE | B141: TBI | C141: DivVal | E141: 0 | F141: 0 | G141: 0 | H141: 0 | I141: 3000-01-01 | J141: 0 | K141: 0 | L141: 1 | M141: 0 | N141: 0 | O141: 0 | P141: 0 | Q141: 0 | R141: 0 | S141: 0 | T141: 0 | U141: 3000-01-01 | V141: 0 | W141: 0 | X141: 0 | Y141: 3000-01-01 | Z141: 0 | AA141: 0 | AB141: 0 | AC141: 3000-01-01 | AD141: 3000-01-01 | AE141: 0 | AF141: HFT | AG141: 0 | AH141: 10000000 | AI141: DivVal | AK141: USD | AL141: 2 | AP141: Ahmad Rizal Ujang | AR141: 0 | AS141: LstYr | AT141: 2021-10-04
A142: THE | B142: TBI | C142: DivTaxRec | E142: 0 | F142: 0 | G142: 0 | H142: 0 | I142: 3000-01-01 | J142: 0 | K142: 0 | L142: 1 | M142: 0 | N142: 0 | O142: 0 | P142: 0 | Q142: 0 | R142: 0 | S142: 0 | T142: 0 | U142: 3000-01-01 | V142: 0 | W142: 0 | X142: 0 | Y142: 3000-01-01 | Z142: 0 | AA142: 0 | AB142: 0 | AC142: 3000-01-01 | AD142: 3000-01-01 | AE142: 0 | AF142: HFT | AG142: 0 | AH142: 10000000 | AI142: DivTaxRec | AK142: USD | AL142: 2 | AP142: Ahmad Rizal Ujang | AR142: 0 | AS142: LstYr | AT142: 2021-10-04
A143: THE | B143: TBI | C143: OtherDbVal | E143: 0 | F143: 0 | G143: 0 | H143: 0 | I143: 3000-01-01 | J143: 0 | K143: 0 | L143: 1 | M143: 0 | N143: 0 | O143: 0 | P143: 0 | Q143: 0 | R143: 0 | S143: 0 | T143: 0 | U143: 3000-01-01 | V143: 0 | W143: 0 | X143: 0 | Y143: 3000-01-01 | Z143: 0 | AA143: 0 | AB143: 0 | AC143: 3000-01-01 | AD143: 3000-01-01 | AE143: 0 | AF143: HFT | AG143: 0 | AH143: 10000000 | AI143: OtherDbVal | AK143: USD | AL143: 2 | AP143: Ahmad Rizal Ujang | AR143: 0 | AS143: LstYr | AT143: 2021-10-04
A144: THE | B144: TBI | C144: OtherCrVal | E144: 0 | F144: 0 | G144: 0 | H144: 0 | I144: 3000-01-01 | J144: 0 | K144: 0 | L144: 1 | M144: 0 | N144: 0 | O144: 0 | P144: 0 | Q144: 0 | R144: 0 | S144: 0 | T144: 0 | U144: 3000-01-01 | V144: 0 | W144: 0 | X144: 0 | Y144: 3000-01-01 | Z144: 0 | AA144: 0 | AB144: 0 | AC144: 3000-01-01 | AD144: 3000-01-01 | AE144: 0 | AF144: HFT | AG144: 0 | AH144: 10000000 | AI144: OtherCrVal | AK144: USD | AL144: 2 | AP144: Ahmad Rizal Ujang | AR144: 0 | AS144: LstYr | AT144: 2021-10-04
A145: THE | B145: TBI | C145: TaxProvVal | E145: 0 | F145: 0 | G145: 0 | H145: 0 | I145: 3000-01-01 | J145: 0 | K145: 0 | L145: 1 | M145: 0 | N145: 0 | O145: 0 | P145: 0 | Q145: 0 | R145: 0 | S145: 0 | T145: 0 | U145: 3000-01-01 | V145: 0 | W145: 0 | X145: 0 | Y145: 3000-01-01 | Z145: 0 | AA145: 0 | AB145: 0 | AC145: 3000-01-01 | AD145: 3000-01-01 | AE145: 0 | AF145: HFT | AG145: 0 | AH145: 10000000 | AI145: TaxProvVal | AK145: USD | AL145: 2 | AP145: Ahmad Rizal Ujang | AR145: 0 | AS145: LstYr | AT145: 2021-10-04
A146: THE | B146: TBI | C146: DefTaxProvVal | E146: 0 | F146: 0 | G146: 0 | H146: 0 | I146: 3000-01-01 | J146: 0 | K146: 0 | L146: 1 | M146: 0 | N146: 0 | O146: 0 | P146: 0 | Q146: 0 | R146: 0 | S146: 0 | T146: 0 | U146: 3000-01-01 | V146: 0 | W146: 0 | X146: 0 | Y146: 3000-01-01 | Z146: 0 | AA146: 0 | AB146: 0 | AC146: 3000-01-01 | AD146: 3000-01-01 | AE146: 0 | AF146: HFT | AG146: 0 | AH146: 10000000 | AI146: DefTaxProvVal | AK146: USD | AL146: 2 | AP146: Ahmad Rizal Ujang | AR146: 0 | AS146: LstYr | AT146: 2021-10-04
A147: THE | B147: TBI | C147: ProvDistVal | E147: 0 | F147: 0 | G147: 0 | H147: 0 | I147: 3000-01-01 | J147: 0 | K147: 0 | L147: 1 | M147: 0 | N147: 0 | O147: 0 | P147: 0 | Q147: 0 | R147: 0 | S147: 0 | T147: 0 | U147: 3000-01-01 | V147: 0 | W147: 0 | X147: 0 | Y147: 3000-01-01 | Z147: 0 | AA147: 0 | AB147: 0 | AC147: 3000-01-01 | AD147: 3000-01-01 | AE147: 0 | AF147: HFT | AG147: 0 | AH147: 10000000 | AI147: ProvDistVal | AK147: USD | AL147: 2 | AP147: Ahmad Rizal Ujang | AR147: 0 | AS147: LstYr | AT147: 2021-10-04
A148: THE | B148: TBI | C148: MngFee_BF | E148: 0 | F148: 0 | G148: 0 | H148: 0 | I148: 3000-01-01 | J148: 0 | K148: 0 | L148: 1 | M148: 0 | N148: 0 | O148: 0 | P148: 0 | Q148: 0 | R148: 0 | S148: 0 | T148: 0 | U148: 3000-01-01 | V148: 0 | W148: 0 | X148: 0 | Y148: 3000-01-01 | Z148: 0 | AA148: 0 | AB148: 0 | AC148: 3000-01-01 | AD148: 3000-01-01 | AE148: 0 | AF148: HFT | AG148: 0 | AH148: 10000000 | AI148: MngFee_BF | AK148: USD | AL148: 2 | AP148: Ahmad Rizal Ujang | AR148: 0 | AS148: LstYr | AT148: 2021-10-04
A149: THE | B149: TBI | C149: MngFeeRebate_BF | E149: 0 | F149: 0 | G149: 0 | H149: 0 | I149: 3000-01-01 | J149: 0 | K149: 0 | L149: 1 | M149: 0 | N149: 0 | O149: 0 | P149: 0 | Q149: 0 | R149: 0 | S149: 0 | T149: 0 | U149: 3000-01-01 | V149: 0 | W149: 0 | X149: 0 | Y149: 3000-01-01 | Z149: 0 | AA149: 0 | AB149: 0 | AC149: 3000-01-01 | AD149: 3000-01-01 | AE149: 0 | AF149: HFT | AG149: 0 | AH149: 10000000 | AI149: MngFeeRebate_BF | AK149: USD | AL149: 2 | AP149: Ahmad Rizal Ujang | AR149: 0 | AS149: LstYr | AT149: 2021-10-04
A150: THE | B150: TBI | C150: TrusteeFee_BF | E150: 0 | F150: 0 | G150: 0 | H150: 0 | I150: 3000-01-01 | J150: 0 | K150: 0 | L150: 1 | M150: 0 | N150: 0 | O150: 0 | P150: 0 | Q150: 0 | R150: 0 | S150: 0 | T150: 0 | U150: 3000-01-01 | V150: 0 | W150: 0 | X150: 0 | Y150: 3000-01-01 | Z150: 0 | AA150: 0 | AB150: 0 | AC150: 3000-01-01 | AD150: 3000-01-01 | AE150: 0 | AF150: HFT | AG150: 0 | AH150: 10000000 | AI150: TrusteeFee_BF | AK150: USD | AL150: 2 | AP150: Ahmad Rizal Ujang | AR150: 0 | AS150: LstYr | AT150: 2021-10-04
A151: THE | B151: TBI | C151: AuditorFee_BF | E151: 0 | F151: 0 | G151: 0 | H151: 0 | I151: 3000-01-01 | J151: 0 | K151: 0 | L151: 1 | M151: 0 | N151: 0 | O151: 0 | P151: 0 | Q151: 0 | R151: 0 | S151: 0 | T151: 0 | U151: 3000-01-01 | V151: 0 | W151: 0 | X151: 0 | Y151: 3000-01-01 | Z151: 0 | AA151: 0 | AB151: 0 | AC151: 3000-01-01 | AD151: 3000-01-01 | AE151: 0 | AF151: HFT | AG151: 0 | AH151: 10000000 | AI151: AuditorFee_BF | AK151: USD | AL151: 2 | AP151: Ahmad Rizal Ujang | AR151: 0 | AS151: LstYr | AT151: 2021-10-04
A152: THE | B152: TBI | C152: CustodianFee_BF | E152: 0 | F152: 0 | G152: 0 | H152: 0 | I152: 3000-01-01 | J152: 0 | K152: 0 | L152: 1 | M152: 0 | N152: 0 | O152: 0 | P152: 0 | Q152: 0 | R152: 0 | S152: 0 | T152: 0 | U152: 3000-01-01 | V152: 0 | W152: 0 | X152: 0 | Y152: 3000-01-01 | Z152: 0 | AA152: 0 | AB152: 0 | AC152: 3000-01-01 | AD152: 3000-01-01 | AE152: 0 | AF152: HFT | AG152: 0 | AH152: 10000000 | AI152: CustodianFee_BF | AK152: USD | AL152: 2 | AP152: Ahmad Rizal Ujang | AR152: 0 | AS152: LstYr | AT152: 2021-10-04
A153: THE | B153: TBI | C153: BrokerageFee_BF | E153: 0 | F153: 0 | G153: 0 | H153: 0 | I153: 3000-01-01 | J153: 0 | K153: 0 | L153: 1 | M153: 0 | N153: 0 | O153: 0 | P153: 0 | Q153: 0 | R153: 0 | S153: 0 | T153: 0 | U153: 3000-01-01 | V153: 0 | W153: 0 | X153: 0 | Y153: 3000-01-01 | Z153: 0 | AA153: 0 | AB153: 0 | AC153: 3000-01-01 | AD153: 3000-01-01 | AE153: 0 | AF153: HFT | AG153: 0 | AH153: 10000000 | AI153: BrokerageFee_BF | AK153: USD | AL153: 2 | AP153: Ahmad Rizal Ujang | AR153: 0 | AS153: LstYr | AT153: 2021-10-04
A154: THE | B154: TBI | C154: OthVal | E154: 0 | F154: 0 | G154: 0 | H154: 0 | I154: 3000-01-01 | J154: 0 | K154: 0 | L154: 1 | M154: 0 | N154: 0 | O154: 0 | P154: 0 | Q154: 0 | R154: 0 | S154: 0 | T154: 0 | U154: 3000-01-01 | V154: 0 | W154: 0 | X154: 0 | Y154: 3000-01-01 | Z154: 0 | AA154: 0 | AB154: 0 | AC154: 3000-01-01 | AD154: 3000-01-01 | AE154: 0 | AF154: HFT | AG154: 0 | AH154: 10000000 | AI154: OthVal | AK154: USD | AL154: 2 | AP154: Ahmad Rizal Ujang | AR154: 0 | AS154: LstYr | AT154: 2021-10-04
A155: THE | B155: TBI | C155: TaxVal | E155: 0 | F155: 0 | G155: 0 | H155: 0 | I155: 3000-01-01 | J155: 0 | K155: 0 | L155: 1 | M155: 0 | N155: 0 | O155: 0 | P155: 0 | Q155: 0 | R155: 0 | S155: 0 | T155: 0 | U155: 3000-01-01 | V155: 0 | W155: 0 | X155: 0 | Y155: 3000-01-01 | Z155: 0 | AA155: 0 | AB155: 0 | AC155: 3000-01-01 | AD155: 3000-01-01 | AE155: 0 | AF155: HFT | AG155: 0 | AH155: 10000000 | AI155: TaxVal | AK155: USD | AL155: 2 | AP155: Ahmad Rizal Ujang | AR155: 0 | AS155: LstYr | AT155: 2021-10-04
A156: THE | B156: TBI | C156: BankVal | E156: 0 | F156: 0 | G156: 10000000 | H156: 10000000 | I156: 3000-01-01 | J156: 0 | K156: 0 | L156: 1 | M156: 0 | N156: 0 | O156: 0 | P156: 0 | Q156: 0 | R156: 0 | S156: 0 | T156: 0 | U156: 3000-01-01 | V156: 0 | W156: 0 | X156: 0 | Y156: 3000-01-01 | Z156: 0 | AA156: 0 | AB156: 0 | AC156: 3000-01-01 | AD156: 3000-01-01 | AE156: 0 | AF156: HFT | AG156: 100 | AH156: 10000000 | AI156: BankVal | AK156: USD | AL156: 2 | AP156: Ahmad Rizal Ujang | AR156: 10000000 | AS156: LstYr | AT156: 2021-10-04
A157: THE | B157: TBI | C157: BankVal-FX | E157: 0 | F157: 0 | G157: 0 | H157: 0 | I157: 3000-01-01 | J157: 0 | K157: 0 | L157: 1 | M157: 0 | N157: 0 | O157: 0 | P157: 0 | Q157: 0 | R157: 0 | S157: 0 | T157: 0 | U157: 3000-01-01 | V157: 0 | W157: 0 | X157: 0 | Y157: 3000-01-01 | Z157: 0 | AA157: 0 | AB157: 0 | AC157: 3000-01-01 | AD157: 3000-01-01 | AE157: 0 | AF157: HFT | AG157: 0 | AH157: 10000000 | AI157: BankVal-FX | AK157: USD | AL157: 2 | AP157: Ahmad Rizal Ujang | AR157: 0 | AS157: LstYr | AT157: 2021-10-04

Sheet FundSummary
A2: Fund Summary
A4: ="Fund Manager: " & FundMng -> Fund Manager: Ahmad Rizal Ujang
A5: ="Portfolio Value (" & FundCur &")" -> Portfolio Value (USD) | C5: =SUMIFS(InPortFolio!G:G,InPortFolio!AS:AS,"Cur")-SUMIFS(InPortFolio!G:G,InPortFolio!AS:AS,"Cur",InPortFolio!C:C,"RecInt") -> 10233789.81
A6: Benchmark Name | C6: =VLOOKUP(FundCode,InFund!A:K,11,0) -> FBM KLCI
A7: No of Stock - Portfolio | C7: =COUNTIFS(InPortFolio!AS:AS,"Cur",InPortFolio!B:B,"EQT") -> 114
A8: No of Stock - Benchmark | C8: =COUNTIFS(InPortFolio!AS:AS,"Cur",InPortFolio!B:B,"EQT") -> 114
C11: 3 mths | E11: 6 mths | G11: 1 yr | I11: YTD | K11: 3 yrs rolling | M11: 3 yrs rolling
C12: Portfolio | D12: Benchmark | E12: Portfolio | F12: Benchmark | G12: Portfolio | H12: Benchmark | I12: Portfolio | J12: Benchmark | K12: Portfolio | L12: Benchmark | M12: Portfolio | N12: Benchmark
A13: Return
A14: Total return | C14: =ROUND((SUMIFS(InRiskMeasure!M:M,InRiskMeasure!A:A,"Mth3"))*100,2) & " %" -> 0 % | D14: =ROUND((SUMIFS(InRiskMeasure!N:N,InRiskMeasure!A:A,"Mth3"))*100,2) & " %" -> 0 % | E14: =ROUND((SUMIFS(InRiskMeasure!M:M,InRiskMeasure!A:A,"Mth6"))*100,2) & " %" -> 0 % | F14: =ROUND((SUMIFS(InRiskMeasure!N:N,InRiskMeasure!A:A,"Mth6"))*100,2) & " %" -> 0 % | G14: =ROUND((SUMIFS(InRiskMeasure!M:M,InRiskMeasure!A:A,"Yr1"))*100,2) & " %" -> 0 % | H14: =ROUND((SUMIFS(InRiskMeasure!N:N,InRiskMeasure!A:A,"Yr1"))*100,2) & " %" -> 0 % | I14: =ROUND((SUMIFS(InRiskMeasure!M:M,InRiskMeasure!A:A,"YTD"))*100,2) & " %" -> 0 % | J14: =ROUND((SUMIFS(InRiskMeasure!N:N,InRiskMeasure!A:A,"YTD"))*100,2) & " %" -> 0 % | K14: =ROUND((SUMIFS(InRiskMeasure!M:M,InRiskMeasure!A:A,"Yr3"))*100,2) & " %" -> 0 % | L14: =ROUND((SUMIFS(InRiskMeasure!N:N,InRiskMeasure!A:A,"Yr3"))*100,2) & " %" -> 0 % | M14: =ROUND((SUMIFS(InRiskMeasure!M:M,InRiskMeasure!A:A,"Yr5"))*100,2) & " %" -> 0 % | N14: =ROUND((SUMIFS(InRiskMeasure!N:N,InRiskMeasure!A:A,"Yr5"))*100,2) & " %" -> 0 %
A15: Maximum Drawdown | C15: =ROUND((SUMIFS(InRiskMeasure!R:R,InRiskMeasure!A:A,"Mth3"))*100,2) & " %" -> -49.45 % | D15: =ROUND((SUMIFS(InRiskMeasure!S:S,InRiskMeasure!A:A,"Mth3"))*100,2) & " %" -> 0 % | E15: =ROUND((SUMIFS(InRiskMeasure!R:R,InRiskMeasure!A:A,"Mth6"))*100,2) & " %" -> -49.45 % | F15: =ROUND((SUMIFS(InRiskMeasure!S:S,InRiskMeasure!A:A,"Mth6"))*100,2) & " %" -> 0 % | G15: =ROUND((SUMIFS(InRiskMeasure!R:R,InRiskMeasure!A:A,"Yr1"))*100,2) & " %" -> -49.45 % | H15: =ROUND((SUMIFS(InRiskMeasure!S:S,InRiskMeasure!A:A,"Yr1"))*100,2) & " %" -> 0 % | I15: =ROUND((SUMIFS(InRiskMeasure!R:R,InRiskMeasure!A:A,"YTD"))*100,2) & " %" -> -49.45 % | J15: =ROUND((SUMIFS(InRiskMeasure!S:S,InRiskMeasure!A:A,"YTD"))*100,2) & " %" -> 0 % | K15: =ROUND((SUMIFS(InRiskMeasure!R:R,InRiskMeasure!A:A,"Yr3"))*100,2) & " %" -> -49.45 % | L15: =ROUND((SUMIFS(InRiskMeasure!S:S,InRiskMeasure!A:A,"Yr3"))*100,2) & " %" -> 0 % | M15: =ROUND((SUMIFS(InRiskMeasure!R:R,InRiskMeasure!A:A,"Yr5"))*100,2) & " %" -> -49.45 % | N15: =ROUND((SUMIFS(InRiskMeasure!S:S,InRiskMeasure!A:A,"Yr5"))*100,2) & " %" -> 0 %
A17: Risk
A18: Standard deviation | C18: =(SUMIFS(InRiskMeasure!G:G,InRiskMeasure!A:A,"Mth3")) -> 0 | D18: =(SUMIFS(InRiskMeasure!H:H,InRiskMeasure!A:A,"Mth3")) -> 0 | E18: =(SUMIFS(InRiskMeasure!G:G,InRiskMeasure!A:A,"Mth6")) -> 0 | F18: =(SUMIFS(InRiskMeasure!H:H,InRiskMeasure!A:A,"Mth6")) -> 0 | G18: =(SUMIFS(InRiskMeasure!G:G,InRiskMeasure!A:A,"Yr1")) -> 0 | H18: =(SUMIFS(InRiskMeasure!H:H,InRiskMeasure!A:A,"Yr1")) -> 0 | I18: =(SUMIFS(InRiskMeasure!G:G,InRiskMeasure!A:A,"YTD")) -> 0 | J18: =(SUMIFS(InRiskMeasure!H:H,InRiskMeasure!A:A,"YTD")) -> 0 | K18: =(SUMIFS(InRiskMeasure!G:G,InRiskMeasure!A:A,"Yr3")) -> 0 | L18: =(SUMIFS(InRiskMeasure!H:H,InRiskMeasure!A:A,"Yr3")) -> 0 | M18: =(SUMIFS(InRiskMeasure!G:G,InRiskMeasure!A:A,"Yr5")) -> 0 | N18: =(SUMIFS(InRiskMeasure!H:H,InRiskMeasure!A:A,"Yr5")) -> 0
A19: Tracking Error | C19: =(SUMIFS(InRiskMeasure!I:I,InRiskMeasure!A:A,"Mth3")) -> 0 | E19: =(SUMIFS(InRiskMeasure!I:I,InRiskMeasure!A:A,"Mth6")) -> 0 | G19: =(SUMIFS(InRiskMeasure!I:I,InRiskMeasure!A:A,"Yr1")) -> 0 | I19: =(SUMIFS(InRiskMeasure!I:I,InRiskMeasure!A:A,"YTD")) -> 0 | K19: =(SUMIFS(InRiskMeasure!I:I,InRiskMeasure!A:A,"Yr3")) -> 0 | M19: =(SUMIFS(InRiskMeasure!I:I,InRiskMeasure!A:A,"Yr5")) -> 0
A21: Risk / Return
A22: Sharpe Ratio (LIBOR 3M) | C22: =IF(C18=0,0,(((SUMIFS(InRiskMeasure!M:M,InRiskMeasure!A:A,"Mth3"))-Riskfree)/C18)) -> 0 | E22: =IF(E18=0,0,((SUMIFS(InRiskMeasure!M:M,InRiskMeasure!A:A,"Mth6"))-Riskfree)/E18) -> 0 | G22: =IF(G18=0,0,((SUMIFS(InRiskMeasure!M:M,InRiskMeasure!A:A,"Yr1"))-Riskfree)/G18) -> 0 | I22: =IF(I18=0,0,((SUMIFS(InRiskMeasure!M:M,InRiskMeasure!A:A,"YTD"))-Riskfree)/I18) -> 0 | K22: =IF(K18=0,0,((SUMIFS(InRiskMeasure!M:M,InRiskMeasure!A:A,"Yr3"))-Riskfree)/K18) -> 0 | M22: =IF(M18=0,0,((SUMIFS(InRiskMeasure!M:M,InRiskMeasure!A:A,"Yr5"))-Riskfree)/M18) -> 0
A23: Treynor Measure | C23: =IF(C24=0,0,((SUMIFS(InRiskMeasure!M:M,InRiskMeasure!A:A,"Mth3"))-Riskfree)/C24) -> 0 | E23: =IF(E24=0,0,((SUMIFS(InRiskMeasure!M:M,InRiskMeasure!A:A,"Mth6"))-Riskfree)/E24) -> 0 | G23: =IF(G24=0,0,((SUMIFS(InRiskMeasure!M:M,InRiskMeasure!A:A,"Yr1"))-Riskfree)/G24) -> 0 | I23: =IF(I24=0,0,((SUMIFS(InRiskMeasure!M:M,InRiskMeasure!A:A,"Yr1"))-Riskfree)/I24) -> 0 | K23: =IF(K24=0,0,((SUMIFS(InRiskMeasure!M:M,InRiskMeasure!A:A,"Yr3"))-Riskfree)/K24) -> 0 | M23: =IF(M24=0,0,((SUMIFS(InRiskMeasure!M:M,InRiskMeasure!A:A,"Yr5"))-Riskfree)/M24) -> 0
A24: Beta | C24: =(SUMIFS(InRiskMeasure!K:K,InRiskMeasure!A:A,"Mth3")) -> 0 | E24: =(SUMIFS(InRiskMeasure!K:K,InRiskMeasure!A:A,"Mth6")) -> 0 | G24: =(SUMIFS(InRiskMeasure!K:K,InRiskMeasure!A:A,"Yr1")) -> 0 | I24: =(SUMIFS(InRiskMeasure!K:K,InRiskMeasure!A:A,"YTD")) -> 0 | K24: =(SUMIFS(InRiskMeasure!K:K,InRiskMeasure!A:A,"Yr3")) -> 0 | M24: =(SUMIFS(InRiskMeasure!K:K,InRiskMeasure!A:A,"Yr5")) -> 0
A25: Correlation | C25: =(SUMIFS(InRiskMeasure!Q:Q,InRiskMeasure!A:A,"Mth3")) -> 0 | E25: =(SUMIFS(InRiskMeasure!Q:Q,InRiskMeasure!A:A,"Mth6")) -> 0 | G25: =(SUMIFS(InRiskMeasure!Q:Q,InRiskMeasure!A:A,"Yr1")) -> 0 | I25: =(SUMIFS(InRiskMeasure!Q:Q,InRiskMeasure!A:A,"YTD")) -> 0 | K25: =(SUMIFS(InRiskMeasure!Q:Q,InRiskMeasure!A:A,"Yr3")) -> 0 | M25: =(SUMIFS(InRiskMeasure!Q:Q,InRiskMeasure!A:A,"Yr5")) -> 0
A28: Top 10 Holdings | E28: Top 10 Overweight | K28: Top 10 Underweight | S28: Stype | T28: Top10 | V28: Stype | W28: OverUnder | AA28: Stype | AB28: OverUnder
A30: Name | C30: Weightage | E30: Name | G30: Portfolio | H30: Benchmark | I30: ="+/-" -> +/- | K30: Name | M30: Portfolio | N30: Benchmark | O30: ="+/-" -> +/- | S30: Row Labels | T30: Sum of PercNAV | V30: Row Labels | W30: Sum of Excess | X30: Sum of twrr | Y30: Sum of benchmark | AA30: Row Labels | AB30: Sum of Excess | AC30: Sum of twrr | AD30: Sum of benchmark
A31: =IF(S31="","",S31) -> (blank) | C31: =IF(T31="","",ROUND(T31,2)) & " %" -> 77.35 % | E31: =IF(V31="","",V31) -> Astellas Pharma Inc. | G31: =IF(X31="","",ROUND(X31*100,2)) & " %" -> -2.94 % | H31: =IF(Y31="","",ROUND(Y31*100,2)) & " %" -> % | I31: =IF(X31="","",ROUND(X31*100,2)) & " %" -> -2.94 % | K31: =IF(AA31="","",AA31) -> SEKISUI CHEMICAL CO.,LTD. | M31: =IF(AC31="","",ROUND(AC31*100,2)) & " %" -> 4.38 % | N31: =IF(AD31="","",ROUND(AD31*100,2)) & " %" -> % | O31: =IF(AB31="","",ROUND(AB31*100,2)) & " %" -> % | S31: (blank) | T31: 77.34689387 | V31: Astellas Pharma Inc. | X31: -0.02940722982 | AA31: SEKISUI CHEMICAL CO.,LTD. | AC31: 0.0438155054
A32: Schneider Electric SE | C32: 1.17 % | E32: =IF(V32="","",V32) -> Johnson & Johnson | G32: =IF(X32="","",ROUND(X32*100,2)) & " %" -> -0.54 % | H32: =IF(Y32="","",ROUND(Y32*100,2)) & " %" -> % | I32: =IF(X32="","",ROUND(X32*100,2)) & " %" -> -0.54 % | K32: =IF(AA32="","",AA32) -> Astellas Pharma Inc. | M32: =IF(AC32="","",ROUND(AC32*100,2)) & " %" -> -2.94 % | N32: =IF(AD32="","",ROUND(AD32*100,2)) & " %" -> % | O32: =IF(AB32="","",ROUND(AB32*100,2)) & " %" -> % | S32: Schneider Electric SE | T32: 1.168500051 | V32: Johnson & Johnson | X32: -0.005426324143 | AA32: Astellas Pharma Inc. | AC32: -0.02940722982
A33: LOreal SA | C33: 1.16 % | E33: Nitori Holdings Co., Ltd. | G33: 0.17 % | H33: % | I33: 0.17 % | K33: Daiwa House Industry Co., Ltd. | M33: -0.97 % | N33: % | O33: % | S33: LOreal SA | T33: 1.161703852 | V33: Nitori Holdings Co., Ltd. | X33: 0.0016860734 | AA33: Daiwa House Industry Co., Ltd. | AC33: -0.00965653264
A34: TE Connectivity Ltd. | C34: 1.15 % | E34: Meiji Holdings Co., Ltd. | G34: 1.46 % | H34: % | I34: 1.46 % | K34: ONO Pharmaceutical Co., Ltd. | M34: -3.09 % | N34: % | O34: % | S34: TE Connectivity Ltd. | T34: 1.146064258 | V34: Meiji Holdings Co., Ltd. | X34: 0.0146073473 | AA34: ONO Pharmaceutical Co., Ltd. | AC34: -0.03087375552
A35: Target Corporation | C35: 1.14 % | E35: ZAE000026480 | G35: -98.75 % | H35: % | I35: -98.75 % | K35: Nidec Corporation | M35: -0.55 % | N35: % | O35: % | S35: Target Corporation | T35: 1.142801741 | V35: ZAE000026480 | X35: -0.9874619105 | AA35: Nidec Corporation | AC35: -0.00549654565
A36: Roche Holding Ltd Genusssch. | C36: 1.11 % | E36: ONO Pharmaceutical Co., Ltd. | G36: -3.09 % | H36: % | I36: -3.09 % | K36: (blank) | M36: -648.63 % | N36: % | O36: % | S36: Roche Holding Ltd Genusssch. | T36: 1.107541336 | V36: ONO Pharmaceutical Co., Ltd. | X36: -0.03087375552 | AA36: (blank) | AC36: -6.4863285
A37: Procter & Gamble Company | C37: 1.1 % | E37: Nidec Corporation | G37: -0.55 % | H37: % | I37: -0.55 % | K37: NIPPON PAINT HOLDINGS CO.LTD. | M37: -4.1 % | N37: % | O37: % | S37: Procter & Gamble Company | T37: 1.103966021 | V37: Nidec Corporation | X37: -0.00549654565 | AA37: NIPPON PAINT HOLDINGS CO.LTD. | AC37: -0.04102395816
A38: Fujifilm Holdings Ord Shs | C38: 1.09 % | E38: Tokyo Electron Ltd. | G38: 2.61 % | H38: % | I38: 2.61 % | K38: TE Connectivity Ltd. | M38: -0.86 % | N38: % | O38: % | S38: Fujifilm Holdings Ord Shs | T38: 1.092551881 | V38: Tokyo Electron Ltd. | X38: 0.02606796994 | AA38: TE Connectivity Ltd. | AC38: -0.008588095846
A39: ResMed Inc. | C39: 1.09 % | E39: Murata Manufacturing Co., Ltd. | G39: 0.98 % | H39: % | I39: 0.98 % | K39: Nitori Holdings Co., Ltd. | M39: 0.17 % | N39: % | O39: % | S39: ResMed Inc. | T39: 1.091974278 | V39: Murata Manufacturing Co., Ltd. | X39: 0.009814996992 | AA39: Nitori Holdings Co., Ltd. | AC39: 0.0016860734
A40: Tokyo Electron Ltd. | C40: 1.03 % | E40: (blank) | G40: -648.63 % | H40: % | I40: -648.63 % | K40: LOreal SA | M40: 6.15 % | N40: % | O40: % | S40: Tokyo Electron Ltd. | T40: 1.0288695 | V40: (blank) | X40: -6.4863285 | AA40: LOreal SA | AC40: 0.06150516884
A41: =IF(T41="","",T41) ->  | V41: ResMed Inc. | X41: -0.0007763827241 | AA41: Fujifilm Holdings Ord Shs | AC41: -0.009066551671
V42: Roche Holding Ltd Genusssch. | X42: -0.006667039768 | AA42: Mondi plc | AC42: 0.0136550231
V43: Johnson Controls International Ord Shs | X43: 0.00929761544 | AA43: Murata Manufacturing Co., Ltd. | AC43: 0.009814996992
V44: TE Connectivity Ltd. | X44: -0.008588095846 | AA44: HK0101000591 | AC44: -0.01706375881
V45: Daiwa House Industry Co., Ltd. | X45: -0.00965653264 | AA45: Intel Corporation | AC45: 0.01427604939
V46: UPM-Kymmene Oyj | X46: 0.00129053099 | AA46: Kao Corp. | AC46: 0.007327424516
V47: NIPPON PAINT HOLDINGS CO.LTD. | X47: -0.04102395816 | AA47: Johnson & Johnson | AC47: -0.005426324143
V48: LOreal SA | X48: 0.06150516884 | AA48: Tokyo Electron Ltd. | AC48: 0.02606796994
V49: Fujifilm Holdings Ord Shs | X49: -0.009066551671 | AA49: Procter & Gamble Company | AC49: 0.01496756461
V50: Schneider Electric SE | X50: 0.02976303344 | AA50: UPM-Kymmene Oyj | AC50: 0.00129053099
V51: Intel Corporation | X51: 0.01427604939 | AA51: ResMed Inc. | AC51: -0.0007763827241
V52: Mondi plc | X52: 0.0136550231 | AA52: MTR Corporation Limited | AC52: 0.002674986968
V53: Procter & Gamble Company | X53: 0.01496756461 | AA53: Target Corporation | AC53: 0.03025021249
V54: MTR Corporation Limited | X54: 0.002674986968 | AA54: Meiji Holdings Co., Ltd. | AC54: 0.0146073473
V55: Target Corporation | X55: 0.03025021249 | AA55: ZAE000026480 | AC55: -0.9874619105
V56: HK0101000591 | X56: -0.01706375881 | AA56: Schneider Electric SE | AC56: 0.02976303344
V57: Eaton Corp. Plc | X57: -0.005115107008 | AA57: Eaton Corp. Plc | AC57: -0.005115107008
V58: Otsuka Holdings Co., Ltd. | X58: -0.03699773729 | AA58: Roche Holding Ltd Genusssch. | AC58: -0.006667039768
V59: Novartis AG | X59: -0.01967836451 | AA59: Johnson Controls International Ord Shs | AC59: 0.00929761544
V60: Kao Corp. | X60: 0.007327424516 | AA60: Otsuka Holdings Co., Ltd. | AC60: -0.03699773729
V61: SEKISUI CHEMICAL CO.,LTD. | X61: 0.0438155054 | AA61: Novartis AG | AC61: -0.01967836451

Sheet Performance
A2: =FundName & " - EQUITY" -> THE - EQUITY
A4: ="PORTFOLIO VALUATION & PERFORMANCE AS AT " & UPPER(TEXT(EndDate,"dd mmm yyyy")) -> PORTFOLIO VALUATION & PERFORMANCE AS AT 29 OCT 2021
A6: ="Fund Manager: " & FundMng -> Fund Manager: Ahmad Rizal Ujang
C8: ="As at " & TEXT(EndDate,"dd mmm yyyy") -> As at 29 Oct 2021 | F8: ="As at " & TEXT(EOMONTH(EndDate,-1),"dd mmm yyyy") -> As at 30 Sep 2021 | I8: ="As at " & TEXT(VLOOKUP("LstYr",InPortFolio!AS:AT,2,0),"dd mmm yyyy") -> As at 04 Oct 2021
A9: ="VALUE OF PORTFOLIO (" & FundCur &")" -> VALUE OF PORTFOLIO (USD) | C9: Market Value | D9: Percentage | F9: Market Value | G9: Percentage | I9: Market Value | J9: Percentage
A11: By Asset Class
A12: Equities (inclusive Warrants) | C12: =SUMIFS(InPortFolio!G:G,InPortFolio!AS:AS,"Cur",InPortFolio!B:B,"EQT") -> 10039461 | D12: =ROUND((C12/CurNAV)*100,2) -> 98.1 | F12: =SUMIFS(InPortFolio!G:G,InPortFolio!AS:AS,"LstMth",InPortFolio!B:B,"EQT") -> 0 | G12: =IF(LstMthNAV=0,0,ROUND((F12/LstMthNAV)*100,2)) -> 0 | I12: =SUMIFS(InPortFolio!G:G,InPortFolio!AS:AS,"LstYr",InPortFolio!B:B,"EQT") -> 0 | J12: =ROUND((I12/LstYrNAV)*100,2) -> 0
A13: Cash & Others (incl Accrued Income) | C13: =CurNAV-C12 -> 194328.81 | D13: =ROUND((C13/CurNAV)*100,2) -> 1.9 | F13: =LstMthNAV-F12 -> 0 | G13: =IF(LstMthNAV=0,0,ROUND((F13/LstMthNAV)*100,2)) -> 0 | I13: =I14-I12 -> 10000000 | J13: =ROUND((I13/LstYrNAV)*100,2) -> 100
C14: =SUMIFS(InPortFolio!G:G,InPortFolio!AS:AS,"Cur")-SUMIFS(InPortFolio!G:G,InPortFolio!AS:AS,"Cur",InPortFolio!C:C,"RecInt") -> 10233789.81 | D14: =ROUND((C14/CurNAV)*100,2) -> 100 | F14: =SUMIFS(InPortFolio!G:G,InPortFolio!AS:AS,"LstMth") -> 0 | G14: =IF(LstMthNAV=0,0,ROUND((F14/LstMthNAV)*100,2)) -> 0 | I14: =SUMIFS(InPortFolio!G:G,InPortFolio!AS:AS,"LstYr") -> 10000000 | J14: =ROUND((I14/LstYrNAV)*100,2) -> 100
A16: PERFORMANCE OF PORTFOLIO | F16: For the month of | G16: Cumulative
G17: for the year
A18: Rate of Return in % (Net of Fees) | F18: =TEXT(EndDate,"dd mmm yyyy") -> 29 Oct 2021 | G18: =TEXT(EndDate,"dd mmm yyyy") -> 29 Oct 2021
A20: Total Portfolio | F20: =ROUND(SUMIFS(InTWRR!AA:AA,InTWRR!A:A,1)*100,2) & " %" -> 0 % | G20: =ROUND(SUMIFS(InTWRR!AA:AA,InTWRR!A:A,2)*100,2)& " %" -> 0 %
A21: Total Equities | F21: =ROUND(SUMIFS(InTWRR!O:O,InTWRR!A:A,1)*100,2)& " %" -> 0 % | G21: =ROUND(SUMIFS(InTWRR!O:O,InTWRR!A:A,2)*100,2)& " %" -> 7.19 %
A22: Target Performance (TH's Benchmark)
A23: MSCI ACWI Islamic Index | F23: =ROUND(SUMIFS(InTWRR!L:L,InTWRR!A:A,1)*100,2)& " %" -> 0 % | G23: =ROUND(SUMIFS(InTWRR!L:L,InTWRR!A:A,2)*100,2)& " %" -> 0 %
A24: Perfolio Turnover Ratio (PTR) | F24: =ROUND(SUMIFS(InTWRR!AB:AB,InTWRR!A:A,1)*100,2)& " %" -> 0 % | G24: =ROUND(SUMIFS(InTWRR!AB:AB,InTWRR!A:A,2)*100,2)& " %" -> 8.59 %

Sheet PL
A2: ="PORTFOLIO REALISED AND UNREALISED RETURN FOR "& UPPER(TEXT(EndDate,"dd mmm yyyy")) -> PORTFOLIO REALISED AND UNREALISED RETURN FOR 29 OCT 2021 | H2: ="PORTFOLIO REALISED AND UNREALISED RETURN FOR "& UPPER(TEXT(EndDate,"dd mmm yyyy")) -> PORTFOLIO REALISED AND UNREALISED RETURN FOR 29 OCT 2021
A4: ="Fund Manager: " & FundMng -> Fund Manager: Ahmad Rizal Ujang | H4: ="Fund Manager: " & FundMng -> Fund Manager: Ahmad Rizal Ujang
A6: ="Currency: " & FundCur -> Currency: USD | H6: ="Currency: " & FundCur -> Currency: USD
D8: =EndDate -> 2021-10-29 | F8: ="YTD ("& TEXT(EndDate,"dd mmm yyyy") &")" -> YTD (29 Oct 2021) | K8: =EndDate -> 2021-10-29 | L8: ="YTD ("& TEXT(EndDate,"dd mmm yyyy") &")" -> YTD (29 Oct 2021)
A9: Value of Portfolio: | H9: Value of Portfolio:
A10: =" a) at Market Value (inclusive accrued income)" -> a) at Market Value (inclusive accrued income) | D10: =K10 -> 10233789.81 | F10: =L10 -> 10233789.81 | H10: =" a) at Market Value (inclusive accrued income)" -> a) at Market Value (inclusive accrued income) | K10: =CurNAV -> 10233789.81 | L10: =K10 -> 10233789.81 | M10: *** | N10: <6* | O10: =SUM(SUMIFS(InTB!M:M,InTB!B:B,EndDate,InTB!G:G,"<6*")) -> 10233789.8 | P10: =SUM(SUMIFS(InTB!M:M,InTB!B:B,StartDate,InTB!G:G,"<6*")) -> 0
A11: =" b) at Book Value (inclusive accrued income)" -> b) at Book Value (inclusive accrued income) | D11: =K11 -> 10164110.23 | F11: =L11 -> 10164110.23 | H11: =" b) at Book Value (inclusive accrued income)" -> b) at Book Value (inclusive accrued income) | K11: =SUMIFS(InPortFolio!AR:AR,InPortFolio!AS:AS,"Cur") -> 10164110.23 | L11: =K11 -> 10164110.23
A12: NET UNREALISED GAIN / (LOSS) | D12: =K12 -> 69679.58 | F12: =L12 -> 69679.58 | H12: NET UNREALISED GAIN / (LOSS) | K12: =K10-K11 -> 69679.58 | L12: =L10-L11 -> 69679.58 | M12: *** | N12: {"660*","689*","960*","970*","989*","699*","999*"} | O12: =-SUM(SUMIFS(InTB!M:M,InTB!B:B,EndDate,InTB!G:G,{"660*","689*","960*","970*","989*","699*","999*"})) -> 234509.4543 | P12: =-SUM(SUMIFS(InTB!M:M,InTB!B:B,StartDate,InTB!G:G,{"660*","689*","960*","970*","989*","699*","999*"}))*(1-Mthflag) -> 0
A14: Profit and Income | H14: Profit and Income | M14: Asset | N14: ShortGL | O14: =EndDate -> 2021-10-29 | P14: =StartDate -> 2021-09-30
A15: Add: | B15: Realised Profit / (Loss) on Share Trading | D15: =K15 -> -315.59 | F15: =L15 -> -315.59 | H15: Add: | I15: Realised Profit / (Loss) on Share Trading | K15: =SUM(K16:K17) -> -315.59 | L15: =SUM(L16:L17) -> -315.59
B16: Net Dividend Income (inclusive accrued income) | D16: =K18 -> 460.7 | F16: =L18 -> 460.7 | J16: Local | K16: =O16-P16 -> 0 | L16: =O16 -> 0 | M16: *** | N16: {"600*","601*"} | O16: =-SUM(SUMIFS(InTB!M:M,InTB!B:B,EndDate,InTB!F:F,M16,InTB!G:G,{"600*","601*"}))-O17 -> 0 | P16: =-SUM(SUMIFS(InTB!M:M,InTB!B:B,StartDate,InTB!F:F,M16,InTB!G:G,{"600*","601*"}))*(1-Mthflag)-P17 -> 0
B17: Tax Recoverable (inclusive accrued income) | D17: =K23 -> 0 | F17: =L23 -> 0 | J17: Foreign | K17: =O17-P17 -> -315.59 | L17: =O17 -> -315.59 | M17: {**5,**6} | N17: {"600*","601*"} | O17: =-(SUM(SUMIFS(InTB!M:M,InTB!B:B,EndDate,InTB!F:F,"**5",InTB!G:G,"600*"))+SUM(SUMIFS(InTB!M:M,InTB!B:B,EndDate,InTB!F:F,"**6",InTB!G:G,"600*"))+SUM(SUMIFS(InTB!M:M,InTB!B:B,EndDate,InTB!F:F,"**5",InTB!G:G,"601*"))+SUM(SUMIFS(InTB!M:M,InTB!B:B,EndDate,InTB!F:F,"**6",InTB!G:G,"601*"))) -> -315.59 | P17: =-(SUM(SUMIFS(InTB!M:M,InTB!B:B,StartDate,InTB!F:F,"**5",InTB!G:G,"600*"))+SUM(SUMIFS(InTB!M:M,InTB!B:B,StartDate,InTB!F:F,"**6",InTB!G:G,"600*"))+SUM(SUMIFS(InTB!M:M,InTB!B:B,StartDate,InTB!F:F,"**5",InTB!G:G,"601*"))+SUM(SUMIFS(InTB!M:M,InTB!B:B,StartDate,InTB!F:F,"**6",InTB!G:G,"601*")))*(1-Mthflag) -> 0
B18: Profit / Hibah from Placements / Deposits (inclusive accrued income) | D18: =K24 -> 0 | F18: =L24 -> 0 | I18: Net Dividend Income (inclusive accrued income) | K18: =SUM(K19:K22) -> 460.7 | L18: =SUM(L19:L22) -> 460.7
B19: Other Income | D19: =K28 -> 0 | F19: =L28 -> 0 | J19: Dividend Income - Local (TA) | K19: =O19-P19 -> 0 | L19: =O19 -> 0 | M19: {"010","020","030","410","411","430","431","440","441","460","604"} | N19: 635000 | O19: =-SUM(SUMIFS(InTB!M:M,InTB!B:B,EndDate,InTB!F:F,{"010","020","030","410","411","430","431","440","441","460","604"},InTB!G:G,N19)) -> 0 | P19: =-SUM(SUMIFS(InTB!M:M,InTB!B:B,StartDate,InTB!F:F,{"010","020","030","410","411","430","431","440","441","460","604"},InTB!G:G,N19))*(1-Mthflag) -> 0
B20: Realised Fx Profit / (Loss) | D20: =K31 -> -795.66 | F20: =L31 -> -795.66 | J20: Dividend Income - Local (TE) | K20: =O20-P20 -> 0 | L20: =O20 -> 0 | M20: {"010","020","030","410","411","430","431","440","441","460","604"} | N20: 636000 | O20: =-SUM(SUMIFS(InTB!M:M,InTB!B:B,EndDate,InTB!F:F,{"010","020","030","410","411","430","431","440","441","460","604"},InTB!G:G,N20)) -> 0 | P20: =-SUM(SUMIFS(InTB!M:M,InTB!B:B,StartDate,InTB!F:F,{"010","020","030","410","411","430","431","440","441","460","604"},InTB!G:G,N20))*(1-Mthflag) -> 0
A21: Total Profit and Income | D21: =K35 -> -650.55 | F21: =L35 -> -650.55 | J21: Dividend Income - Foreign (TA) | K21: 460.7 | L21: 460.7 | M21: {"015","025","415","416","465"} | N21: 635000 | O21: =-SUM(SUMIFS(InTB!M:M,InTB!B:B,EndDate,InTB!F:F,{"015","025","415","416","465"},InTB!G:G,N21)) -> 460.7 | P21: =-SUM(SUMIFS(InTB!M:M,InTB!B:B,StartDate,InTB!F:F,{"015","025","415","416","465"},InTB!G:G,N21))*(1-Mthflag) -> 0
J22: Dividend Income - Foreign (TE) | K22: 0 | L22: 0 | M22: {"015","025","415","416","465"} | N22: 636000 | O22: =-SUM(SUMIFS(InTB!M:M,InTB!B:B,EndDate,InTB!F:F,{"015","025","415","416","465"},InTB!G:G,N22)) -> 0 | P22: =-SUM(SUMIFS(InTB!M:M,InTB!B:B,StartDate,InTB!F:F,{"015","025","415","416","465"},InTB!G:G,N22))*(1-Mthflag) -> 0
A23: Less: | B23: Management Fees | D23: =K37 -> 0 | F23: =L37 -> 0 | I23: Tax Recoverable (inclusive accrued income) | K23: =O23-P23 -> 0 | L23: =O23 -> 0 | M23: *** | N23: {"637000","937000"} | O23: =-SUM(SUMIFS(InTB!M:M,InTB!B:B,EndDate,InTB!F:F,M23,InTB!G:G,{"637000","937000"})) -> 0 | P23: =-SUM(SUMIFS(InTB!M:M,InTB!B:B,StartDate,InTB!F:F,M23,InTB!G:G,{"637000","937000"}))*(1-Mthflag) -> 0
B24: GST / VAT on Management Fees | D24: =K38 -> 0 | F24: =L38 -> 0 | I24: Profit / Hibah from Placements / Deposits (inclusive accrued income) | K24: =SUM(K25:K27) -> 0 | L24: =SUM(L25:L27) -> 0
B25: Performance Fees | D25: =K39 -> 0 | F25: =L39 -> 0 | J25: PROFIT INCOME - MONEY MARKET PLACEMENT | K25: =O25-P25 -> 0 | L25: =O25 -> 0 | M25: 2** | N25: {"630*","638*","637*","639*","938*","939*","937*"} | O25: =-SUM(SUMIFS(InTB!M:M,InTB!B:B,EndDate,InTB!F:F,M25,InTB!G:G,{"630*","638*","637*","639*","938*","939*","937*"})) -> 0 | P25: =-SUM(SUMIFS(InTB!M:M,InTB!B:B,StartDate,InTB!F:F,M25,InTB!G:G,{"630*","638*","637*","639*","938*","939*","937*"}))*(1-Mthflag) -> 0
B26: Custodee Fee | D26: =K40 -> 0 | F26: =L40 -> 0 | J26: PROFIT Income - Bank | K26: 0 | L26: 0 | M26: *** | N26: {"640002","640005"} | O26: =-SUM(SUMIFS(InTB!M:M,InTB!B:B,EndDate,InTB!F:F,M26,InTB!G:G,{"640002","640005"})) -> 0 | P26: =-SUM(SUMIFS(InTB!M:M,InTB!B:B,StartDate,InTB!F:F,M26,InTB!G:G,{"640002","640005"}))*(1-Mthflag) -> 0
B27: Audit Fee | D27: =K44 -> 0 | F27: =L44 -> 0 | J27: PROFIT Income - loan stock | K27: 0 | L27: 0 | M27: 15* | N27: {"630*","638*","637*","639*","938*","939*","937*"} | O27: =-SUM(SUMIFS(InTB!M:M,InTB!B:B,EndDate,InTB!F:F,M27,InTB!G:G,{"630*","638*","637*","639*","938*","939*","937*"})) -> 0 | P27: =-SUM(SUMIFS(InTB!M:M,InTB!B:B,StartDate,InTB!F:F,M27,InTB!G:G,{"630*","638*","637*","639*","938*","939*","937*"}))*(1-Mthflag) -> 0
B28: Bank Charges | D28: =K45 -> 0 | F28: =L45 -> 0 | I28: Other Income | K28: =SUM(K29:K30) -> 0 | L28: =SUM(L29:L30) -> 0
B29: GST / VAT on Bank Charges | D29: =K46 -> 0 | F29: =L46 -> 0 | J29: OTHER INCOME | K29: =O29-P29 -> 0 | L29: =O29 -> 0 | M29: *** | N29: {"640003","640004","640006"} | O29: =-SUM(SUMIFS(InTB!M:M,InTB!B:B,EndDate,InTB!F:F,M29,InTB!G:G,{"640003","640004","640006"})) -> 0 | P29: =-SUM(SUMIFS(InTB!M:M,InTB!B:B,StartDate,InTB!F:F,M29,InTB!G:G,{"640003","640004","640006"}))*(1-Mthflag) -> 0
B30: Other Expenses | D30: =K47 -> 0 | F30: =L47 -> 0 | J30: REBATES FROM MANAGEMENT FEE | K30: 0 | L30: 0 | M30: *** | N30: 640001 | O30: =-SUM(SUMIFS(InTB!M:M,InTB!B:B,EndDate,InTB!F:F,M30,InTB!G:G,N30)) -> 0 | P30: =-SUM(SUMIFS(InTB!M:M,InTB!B:B,StartDate,InTB!F:F,M30,InTB!G:G,N30))*(1-Mthflag) -> 0
A31: Total Charges | D31: =K77 -> 0 | F31: =L77 -> 0 | I31: Realised Fx Profit / (Loss) | K31: =SUM(K33:K34) -> -795.66 | L31: =SUM(L33:L34) -> -795.66 | O31: =-SUM(SUMIFS(InTB!M:M,InTB!B:B,EndDate,InTB!F:F,M31,InTB!G:G,N31)) -> 0 | P31: =-SUM(SUMIFS(InTB!M:M,InTB!B:B,StartDate,InTB!F:F,M31,InTB!G:G,N31))*(1-Mthflag) -> 0
A33: NET Realised Income | D33: =K78 -> -650.55 | F33: =L78 -> -650.55 | J33: NET GAIN/(LOSS) ON FORWARD CONTRACT - REALISED | K33: =O33-P33 -> 0 | L33: =O33 -> 0 | M33: *** | N33: {"603*","604*"} | O33: =-(SUM(SUMIFS(InTB!M:M,InTB!B:B,EndDate,InTB!F:F,M33,InTB!G:G,"603*"))+SUM(SUMIFS(InTB!M:M,InTB!B:B,EndDate,InTB!F:F,M33,InTB!G:G,"604*"))) -> 0 | P33: =-(SUM(SUMIFS(InTB!M:M,InTB!B:B,StartDate,InTB!F:F,M33,InTB!G:G,"603*"))+SUM(SUMIFS(InTB!M:M,InTB!B:B,StartDate,InTB!F:F,M33,InTB!G:G,"604*")))*(1-Mthflag) -> 0
J34: NET GAIN/ (LOSS) ON FOREIGN EXCHANGE - REALISED | K34: -795.66 | L34: -795.66 | M34: *** | N34: 650000 | O34: =-SUM(SUMIFS(InTB!M:M,InTB!B:B,EndDate,InTB!F:F,M34,InTB!G:G,N34)) -> -795.66 | P34: =-SUM(SUMIFS(InTB!M:M,InTB!B:B,StartDate,InTB!F:F,M34,InTB!G:G,N34))*(1-Mthflag) -> 0
H35: Total Profit and Income | K35: =K15+K18+K23+K24+K28+K31 -> -650.55 | L35: =L15+L18+L23+L24+L28+L31 -> -650.55
H37: Less: | I37: Management Fees | K37: =O37-P37 -> 0 | L37: =O37 -> 0 | N37: 710106 | O37: =-SUM(SUMIFS(InTB!M:M,InTB!B:B,EndDate,InTB!G:G,N37)) -> 0 | P37: =-SUM(SUMIFS(InTB!M:M,InTB!B:B,StartDate,InTB!G:G,N37))*(1-Mthflag) -> 0
I38: GST / VAT on Management Fees | K38: =O38-P38 -> 0 | L38: =O38 -> 0 | N38: {"710780","710880"} | O38: =-SUM(SUMIFS(InTB!M:M,InTB!B:B,EndDate,InTB!G:G,{"710780","710880"})) -> 0 | P38: =-SUM(SUMIFS(InTB!M:M,InTB!B:B,StartDate,InTB!G:G,{"710780","710880"}))*(1-Mthflag) -> 0
I39: Performance Fees | K39: 0 | L39: 0 | N39: {"710126","710151"} | O39: =-SUM(SUMIFS(InTB!M:M,InTB!B:B,EndDate,InTB!G:G,{"710126","710151"})) -> 0 | P39: =-SUM(SUMIFS(InTB!M:M,InTB!B:B,StartDate,InTB!G:G,{"710126","710151"}))*(1-Mthflag) -> 0
I40: Custodee Fee | K40: =SUM(K41:K43) -> 0 | L40: =SUM(L41:L43) -> 0
J41: Annual custodian fees | K41: 0 | L41: 0 | N41: 710122 | O41: =-SUM(SUMIFS(InTB!M:M,InTB!B:B,EndDate,InTB!G:G,N41)) -> 0 | P41: =-SUM(SUMIFS(InTB!M:M,InTB!B:B,StartDate,InTB!G:G,N41))*(1-Mthflag) -> 0
J42: Custodian fee per foreign transaction | K42: 0 | L42: 0 | N42: 700301 | O42: =-SUM(SUMIFS(InTB!M:M,InTB!B:B,EndDate,InTB!G:G,N42)) -> 0 | P42: =-SUM(SUMIFS(InTB!M:M,InTB!B:B,StartDate,InTB!G:G,N42))*(1-Mthflag) -> 0
J43: FOREIGN BROKERAGE FEE | K43: 0 | L43: 0 | N43: {"700300","799900","799970","799980"} | O43: =-SUM(SUMIFS(InTB!M:M,InTB!B:B,EndDate,InTB!G:G,{"700300","799900","799970","799980"})) -> 0 | P43: =-SUM(SUMIFS(InTB!M:M,InTB!B:B,StartDate,InTB!G:G,{"700300","799900","799970","799980"}))*(1-Mthflag) -> 0
I44: Audit Fee | K44: 0 | L44: 0 | N44: 710101 | O44: =-SUM(SUMIFS(InTB!M:M,InTB!B:B,EndDate,InTB!G:G,N44)) -> 0 | P44: =-SUM(SUMIFS(InTB!M:M,InTB!B:B,StartDate,InTB!G:G,N44))*(1-Mthflag) -> 0
I45: Bank Charges | K45: 0 | L45: 0 | N45: 710102 | O45: =-SUM(SUMIFS(InTB!M:M,InTB!B:B,EndDate,InTB!G:G,N45)) -> 0 | P45: =-SUM(SUMIFS(InTB!M:M,InTB!B:B,StartDate,InTB!G:G,N45))*(1-Mthflag) -> 0
I46: GST / VAT on Bank Charges | K46: 0 | L46: 0 | N46: 710876 | O46: =-SUM(SUMIFS(InTB!M:M,InTB!B:B,EndDate,InTB!G:G,N46)) -> 0 | P46: =-SUM(SUMIFS(InTB!M:M,InTB!B:B,StartDate,InTB!G:G,N46))*(1-Mthflag) -> 0
I47: Other Expenses | K47: =SUM(K48:K76) -> 0 | L47: =SUM(L48:L76) -> 0 | O47: =-SUM(SUMIFS(InTB!M:M,InTB!B:B,EndDate,InTB!G:G,N47)) -> 0 | P47: =-SUM(SUMIFS(InTB!M:M,InTB!B:B,StartDate,InTB!G:G,N47))*(1-Mthflag) -> 0
J48: Printing | K48: 0 | L48: 0 | N48: 710108 | O48: =-SUM(SUMIFS(InTB!M:M,InTB!B:B,EndDate,InTB!G:G,N48)) -> 0 | P48: =-SUM(SUMIFS(InTB!M:M,InTB!B:B,StartDate,InTB!G:G,N48))*(1-Mthflag) -> 0
J49: Postage | K49: 0 | L49: 0 | N49: 710107 | O49: =-SUM(SUMIFS(InTB!M:M,InTB!B:B,EndDate,InTB!G:G,N49)) -> 0 | P49: =-SUM(SUMIFS(InTB!M:M,InTB!B:B,StartDate,InTB!G:G,N49))*(1-Mthflag) -> 0
J50: Trustee Fee | K50: =O50-P50 -> 0 | L50: 0 | N50: 710113 | O50: =-SUM(SUMIFS(InTB!M:M,InTB!B:B,EndDate,InTB!G:G,N50)) -> 0 | P50: =-SUM(SUMIFS(InTB!M:M,InTB!B:B,StartDate,InTB!G:G,N50))*(1-Mthflag) -> 0
J51: CDS deposit fee | K51: 0 | L51: 0 | N51: 710123 | O51: =-SUM(SUMIFS(InTB!M:M,InTB!B:B,EndDate,InTB!G:G,N51)) -> 0 | P51: =-SUM(SUMIFS(InTB!M:M,InTB!B:B,StartDate,InTB!G:G,N51))*(1-Mthflag) -> 0
J52: CDS fee | K52: 0 | L52: 0 | N52: 710120 | O52: =-SUM(SUMIFS(InTB!M:M,InTB!B:B,EndDate,InTB!G:G,N52)) -> 0 | P52: =-SUM(SUMIFS(InTB!M:M,InTB!B:B,StartDate,InTB!G:G,N52))*(1-Mthflag) -> 0
J53: ADR Charges | K53: 0 | L53: 0 | N53: 710134 | O53: =-SUM(SUMIFS(InTB!M:M,InTB!B:B,EndDate,InTB!G:G,N53)) -> 0 | P53: =-SUM(SUMIFS(InTB!M:M,InTB!B:B,StartDate,InTB!G:G,N53))*(1-Mthflag) -> 0
J54: Cash distribution expenses | K54: 0 | L54: 0 | N54: 710116 | O54: =-SUM(SUMIFS(InTB!M:M,InTB!B:B,EndDate,InTB!G:G,N54)) -> 0 | P54: =-SUM(SUMIFS(InTB!M:M,InTB!B:B,StartDate,InTB!G:G,N54))*(1-Mthflag) -> 0
J55: CDS transfer fee | K55: 0 | L55: 0 | N55: 710121 | O55: =-SUM(SUMIFS(InTB!M:M,InTB!B:B,EndDate,InTB!G:G,N55)) -> 0 | P55: =-SUM(SUMIFS(InTB!M:M,InTB!B:B,StartDate,InTB!G:G,N55))*(1-Mthflag) -> 0
J56: Online service charges | K56: 0 | L56: 0 | N56: 710118 | O56: =-SUM(SUMIFS(InTB!M:M,InTB!B:B,EndDate,InTB!G:G,N56)) -> 0 | P56: =-SUM(SUMIFS(InTB!M:M,InTB!B:B,StartDate,InTB!G:G,N56))*(1-Mthflag) -> 0
J57: SSTS custodian charges | K57: 0 | L57: 0 | N57: 700302 | O57: =-SUM(SUMIFS(InTB!M:M,InTB!B:B,EndDate,InTB!G:G,N57)) -> 0 | P57: =-SUM(SUMIFS(InTB!M:M,InTB!B:B,StartDate,InTB!G:G,N57))*(1-Mthflag) -> 0
J58: SSTS charges | K58: 0 | L58: 0 | N58: 710136 | O58: =-SUM(SUMIFS(InTB!M:M,InTB!B:B,EndDate,InTB!G:G,N58)) -> 0 | P58: =-SUM(SUMIFS(InTB!M:M,InTB!B:B,StartDate,InTB!G:G,N58))*(1-Mthflag) -> 0
J59: Trustee's fee (Registration Services) | K59: 0 | L59: 0 | N59: 710114 | O59: =-SUM(SUMIFS(InTB!M:M,InTB!B:B,EndDate,InTB!G:G,N59)) -> 0 | P59: =-SUM(SUMIFS(InTB!M:M,InTB!B:B,StartDate,InTB!G:G,N59))*(1-Mthflag) -> 0
J60: Services charges | K60: 0 | L60: 0 | N60: 710111 | O60: =-SUM(SUMIFS(InTB!M:M,InTB!B:B,EndDate,InTB!G:G,N60)) -> 0 | P60: =-SUM(SUMIFS(InTB!M:M,InTB!B:B,StartDate,InTB!G:G,N60))*(1-Mthflag) -> 0
J61: Shariah Advisory Fees | K61: 0 | L61: 0 | N61: 710112 | O61: =-SUM(SUMIFS(InTB!M:M,InTB!B:B,EndDate,InTB!G:G,N61)) -> 0 | P61: =-SUM(SUMIFS(InTB!M:M,InTB!B:B,StartDate,InTB!G:G,N61))*(1-Mthflag) -> 0
J62: Up-Front Fee | K62: 0 | L62: 0 | N62: 710205 | O62: =-SUM(SUMIFS(InTB!M:M,InTB!B:B,EndDate,InTB!G:G,N62)) -> 0 | P62: =-SUM(SUMIFS(InTB!M:M,InTB!B:B,StartDate,InTB!G:G,N62))*(1-Mthflag) -> 0
J63: Administration Fee (IPO) | K63: 0 | L63: 0 | N63: 710206 | O63: =-SUM(SUMIFS(InTB!M:M,InTB!B:B,EndDate,InTB!G:G,N63)) -> 0 | P63: =-SUM(SUMIFS(InTB!M:M,InTB!B:B,StartDate,InTB!G:G,N63))*(1-Mthflag) -> 0
J64: Exit Fee/Penalty Fee | K64: 0 | L64: 0 | N64: 710207 | O64: =-SUM(SUMIFS(InTB!M:M,InTB!B:B,EndDate,InTB!G:G,N64)) -> 0 | P64: =-SUM(SUMIFS(InTB!M:M,InTB!B:B,StartDate,InTB!G:G,N64))*(1-Mthflag) -> 0
J65: GST on Service Charge | K65: 0 | L65: 0 | N65: 710872 | O65: =-SUM(SUMIFS(InTB!M:M,InTB!B:B,EndDate,InTB!G:G,N65)) -> 0 | P65: =-SUM(SUMIFS(InTB!M:M,InTB!B:B,StartDate,InTB!G:G,N65))*(1-Mthflag) -> 0
J66: Investment Commitee Fees | K66: 0 | L66: 0 | N66: 710135 | O66: =-SUM(SUMIFS(InTB!M:M,InTB!B:B,EndDate,InTB!G:G,N66)) -> 0 | P66: =-SUM(SUMIFS(InTB!M:M,InTB!B:B,StartDate,InTB!G:G,N66))*(1-Mthflag) -> 0
J67: Professional fees | K67: 0 | L67: 0 | N67: 710109 | O67: =-SUM(SUMIFS(InTB!M:M,InTB!B:B,EndDate,InTB!G:G,N67)) -> 0 | P67: =-SUM(SUMIFS(InTB!M:M,InTB!B:B,StartDate,InTB!G:G,N67))*(1-Mthflag) -> 0
J68: Tax Disbursement | K68: 0 | L68: 0 | N68: 710105 | O68: =-SUM(SUMIFS(InTB!M:M,InTB!B:B,EndDate,InTB!G:G,N68)) -> 0 | P68: =-SUM(SUMIFS(InTB!M:M,InTB!B:B,StartDate,InTB!G:G,N68))*(1-Mthflag) -> 0
J69: License Fees | K69: 0 | L69: 0 | N69: {"710110","710208","710209"} | O69: =-SUM(SUMIFS(InTB!M:M,InTB!B:B,EndDate,InTB!G:G,{"710110","710208","710209"})) -> 0 | P69: =-SUM(SUMIFS(InTB!M:M,InTB!B:B,StartDate,InTB!G:G,{"710110","710208","710209"}))*(1-Mthflag) -> 0
J70: Nominee's charges | K70: 0 | L70: 0 | N70: 710117 | O70: =-SUM(SUMIFS(InTB!M:M,InTB!B:B,EndDate,InTB!G:G,N70)) -> 0 | P70: =-SUM(SUMIFS(InTB!M:M,InTB!B:B,StartDate,InTB!G:G,N70))*(1-Mthflag) -> 0
J71: Dividend postage and handling fees | K71: 0 | L71: 0 | N71: {"799010","799040"} | O71: =-SUM(SUMIFS(InTB!M:M,InTB!B:B,EndDate,InTB!G:G,{"799010","799040"})) -> 0 | P71: =-SUM(SUMIFS(InTB!M:M,InTB!B:B,StartDate,InTB!G:G,{"799010","799040"}))*(1-Mthflag) -> 0
J72: Audit Disbursement | K72: 0 | L72: 0 | N72: 710119 | O72: =-SUM(SUMIFS(InTB!M:M,InTB!B:B,EndDate,InTB!G:G,N72)) -> 0 | P72: =-SUM(SUMIFS(InTB!M:M,InTB!B:B,StartDate,InTB!G:G,N72))*(1-Mthflag) -> 0
J73: Listed Securities Investment Cost | K73: 0 | L73: 0 | N73: {"710660","799000","799100"} | O73: =-SUM(SUMIFS(InTB!M:M,InTB!B:B,EndDate,InTB!G:G,{"710660","799000","799100"})) -> 0 | P73: =-SUM(SUMIFS(InTB!M:M,InTB!B:B,StartDate,InTB!G:G,{"710660","799000","799100"}))*(1-Mthflag) -> 0
J74: TAX AGENT'S FEE | K74: 0 | L74: 0 | N74: {"710115","710773","710873"} | O74: =-SUM(SUMIFS(InTB!M:M,InTB!B:B,EndDate,InTB!G:G,{"710115","710773","710873"})) -> 0 | P74: =-SUM(SUMIFS(InTB!M:M,InTB!B:B,StartDate,InTB!G:G,{"710115","710773","710873"}))*(1-Mthflag) -> 0
J75: Management Expenses | K75: 0 | L75: 0 | N75: 710125 | O75: =-SUM(SUMIFS(InTB!M:M,InTB!B:B,EndDate,InTB!G:G,N75)) -> 0 | P75: =-SUM(SUMIFS(InTB!M:M,InTB!B:B,StartDate,InTB!G:G,N75))*(1-Mthflag) -> 0
J76: General Expenses | K76: 0 | L76: 0 | N76: {"710103","710104","710124","710132","710150","710210","710211","710212","710301","710302"} | O76: =-SUM(SUMIFS(InTB!M:M,InTB!B:B,EndDate,InTB!G:G,{"710103","710104","710124","710132","710150","710210","710211","710212","710301","710302"})) -> 0 | P76: =-SUM(SUMIFS(InTB!M:M,InTB!B:B,StartDate,InTB!G:G,{"710103","710104","710124","710132","710150","710210","710211","710212","710301","710302"}))*(1-Mthflag) -> 0
H77: Total Charges | K77: =K37+K38+K39+K40+K44+K45+K46+K47 -> 0 | L77: =L37+L38+L39+L40+L44+L45+L46+L47 -> 0
H78: NET Realised Income | K78: =K35+K77 -> -650.55 | L78: =L35+L77 -> -650.55

Sheet HoldingSector
A1: =IF(I1="","",IF(I1="Grand Total","TOTAL EQUITIES BY SECTOR",I1)) ->  | B1: =IF(K1="","",K1) ->  | C1: =IF(L1="","",L1) ->  | D1: =IF(K1="","",L1-K1) ->  | E1: =IF(K1="","",(K1/SUMIFS(InPortFolio!AR:AR,InPortFolio!AS:AS,"Cur")*100)) ->  | F1: =IF(L1="","",ROUND((L1/CurNAV)*100,2)) -> 
A2: ="PORTFOLIO NET ASSET VALUE MIX AS AT " & UPPER(TEXT(EndDate,"dd mmm yyyy")) -> PORTFOLIO NET ASSET VALUE MIX AS AT 29 OCT 2021
A4: ="Fund Manager: " & FundMng -> Fund Manager: Ahmad Rizal Ujang
A6: ="Currency: " & FundCur -> Currency: USD
I7: qProductType | J7: EQT
A8: SECTOR (GICS) | B8: TOTAL BOOK VALUE + ACCRUED INCOME | C8: TOTAL CURRENT VALUE + ACCRUED INCOME | D8: TOTAL UNREALISED PROFIT/ (LOSS) | E8: HOLDING ON BOOK VALUE | F8: HOLDING ON CURRENT VALUE | I8: sPeriod | J8: Cur
B9: ="(" & FundCur &")" -> (USD) | C9: ="(" & FundCur &")" -> (USD) | D9: ="(" & FundCur &")" -> (USD) | E9: % | F9: %
I10: Row Labels | J10: nav | K10: Sum of CostFC | L10: Sum of MarketValueFC
A11: Consumer Discretionary | B11: 175124.9 | C11: 181635.19 | D11: 6510.29 | E11: 1.722973246 | F11: 1.77 | I11: Consumer Discretionary | J11: 10064008.12 | K11: 175124.9 | L11: 181635.19
A12: Consumer Staples | B12: 371281.65 | C12: 381822.09 | D12: 10540.44 | E12: 3.65286918 | F12: 3.73 | I12: Consumer Staples | J12: 10064008.12 | K12: 371281.65 | L12: 381822.09
A13: Health Care | B13: 503156.07 | C13: 496786.99 | D13: -6369.08 | E13: 4.95032087 | F13: 4.85 | I13: Health Care | J13: 10064008.12 | K13: 503156.07 | L13: 496786.99
A14: Industrials | B14: 329343.72 | C14: 333262.23 | D14: 3918.51 | E14: 3.240261199 | F14: 3.26 | I14: Industrials | J14: 10064008.12 | K14: 329343.72 | L14: 333262.23
A15: Information Technology | B15: 529261.72 | C15: 533640.38 | D15: 4378.66 | E15: 5.207162339 | F15: 5.21 | I15: Information Technology | J15: 10064008.12 | K15: 529261.72 | L15: 533640.38
A16: Materials | B16: 230343.09 | C16: 229723.03 | D16: -620.06 | E16: 2.26623959 | F16: 2.24 | I16: Materials | J16: 10064008.12 | K16: 230343.09 | L16: 229723.03
A17: (blank) | B17: 7732081.17 | C17: 7784197.68 | D17: 52116.51 | E17: 76.07238602 | F17: 76.06 | I17: (blank) | J17: 10064008.12 | K17: 7732081.17 | L17: 7784197.68
A18: Utilities | B18: 35779.12 | C18: 35283.54 | D18: -495.58 | E18: 0.3520142855 | F18: 0.34 | I18: Utilities | J18: 10064008.12 | K18: 35779.12 | L18: 35283.54
A19: Real Estate | B19: 63409.98 | C19: 63109.87 | D19: -300.11 | E19: 0.623861593 | F19: 0.62 | I19: Real Estate | J19: 10064008.12 | K19: 63409.98 | L19: 63109.87
A20: TOTAL EQUITIES BY SECTOR | B20: 9969781.42 | C20: 10039461 | D20: 69679.58 | E20: 98.08808833 | F20: 98.1 | I20: Grand Total | K20: 9969781.42 | L20: 10039461
A22: CASH | B22: 486436.77 | C22: 486436.77 | E22: 4.785827377 | F22: 4.753241751
A23: PLACEMENTS / DEPOSITS | B23: 0 | C23: 0 | E23: 0 | F23: 0
A24: ACCRUED PROFIT FROM DEPOSITS | B24: 0 | C24: 0 | E24: 0 | F24: 0
A25: ACCRUED DIVIDENDS | B25: 388.8 | C25: 388.8 | E25: 0.003825224158 | F25: 0.003799179065
A26: OTHER RECEIVABLES /(PAYABLES) | B26: -292496.76 | C26: -292496.76 | E26: -2.877740927 | F26: -2.858147035
A27: TOTAL CASH & OTHERS | B27: 194328.81 | C27: 194328.81 | E27: 1.911911674 | F27: 1.898893896
A29: TOTAL NET ASSET VALUE | B29: 10164110.23 | C29: 10233789.81 | E29: 100 | F29: 100

Sheet HoldingCountry
A1: =IF(I1="","",IF(I1="Grand Total","TOTAL EQUITIES BY COUNTRY",I1)) ->  | B1: =IF(K1="","",K1) ->  | C1: =IF(L1="","",L1) ->  | D1: =IF(K1="","",L1-K1) ->  | E1: =IF(K1="","",(K1/SUMIFS(InPortFolio!AR:AR,InPortFolio!AS:AS,"Cur")*100)) ->  | F1: =IF(L1="","",ROUND((L1/CurNAV)*100,2)) -> 
A2: ="PORTFOLIO NET ASSET VALUE MIX AS AT " & UPPER(TEXT(EndDate,"dd mmm yyyy")) -> PORTFOLIO NET ASSET VALUE MIX AS AT 29 OCT 2021
A4: ="Fund Manager: " & FundMng -> Fund Manager: Ahmad Rizal Ujang
A6: ="Currency: " & FundCur -> Currency: USD
I7: qProductType | J7: EQT
A8: EXPOSURE COUNTRY | B8: TOTAL BOOK VALUE + ACCRUED INCOME | C8: TOTAL CURRENT VALUE + ACCRUED INCOME | D8: TOTAL UNREALISED PROFIT/ (LOSS) | E8: HOLDING ON BOOK VALUE | F8: HOLDING ON CURRENT VALUE | I8: sPeriod | J8: Cur
B9: ="(" & FundCur &")" -> (USD) | C9: ="(" & FundCur &")" -> (USD) | D9: ="(" & FundCur &")" -> (USD) | E9: % | F9: %
I10: Row Labels | J10: nav | K10: Sum of CostFC | L10: Sum of MarketValueFC
A11: Hong Kong | B11: 85586.79 | C11: 85225.55 | D11: -361.24 | E11: 0.8420490143 | F11: 0.83 | I11: Hong Kong | J11: 10064008.12 | K11: 85586.79 | L11: 85225.55
A12: Japan | B12: 973689.12 | C12: 976858.64 | D12: 3169.52 | E12: 9.57967887 | F12: 9.55 | I12: Japan | J12: 10064008.12 | K12: 973689.12 | L12: 976858.64
A13: (blank) | B13: 7732081.17 | C13: 7784197.68 | D13: 52116.51 | E13: 76.07238602 | F13: 76.06 | I13: (blank) | J13: 10064008.12 | K13: 7732081.17 | L13: 7784197.68
A14: Switzerland | B14: 112407.11 | C14: 111463.05 | D14: -944.06 | E14: 1.105921792 | F14: 1.09 | I14: Switzerland | J14: 10064008.12 | K14: 112407.11 | L14: 111463.05
A15: United States Of America | B15: 651135.85 | C15: 656036.75 | D15: 4900.9 | E15: 6.406225781 | F15: 6.41 | I15: United States Of America | J15: 10064008.12 | K15: 651135.85 | L15: 656036.75
A16: Finland | B16: 89773.95 | C16: 89781.31 | D16: 7.36 | E16: 0.8832445533 | F16: 0.88 | I16: Finland | J16: 10064008.12 | K16: 89773.95 | L16: 89781.31
A17: France | B17: 224528.09 | C17: 234511.91 | D17: 9983.82 | E17: 2.209028483 | F17: 2.29 | I17: France | J17: 10064008.12 | K17: 224528.09 | L17: 234511.91
A18: UNITED KINGDOM | B18: 100579.34 | C18: 101386.11 | D18: 806.77 | E18: 0.9895538097 | F18: 0.99 | I18: UNITED KINGDOM | J18: 10064008.12 | K18: 100579.34 | L18: 101386.11
A19: TOTAL EQUITIES BY COUNTRY | B19: 9969781.42 | C19: 10039461 | D19: 69679.58 | E19: 98.08808833 | F19: 98.1 | I19: Grand Total | K19: 9969781.42 | L19: 10039461
A21: CASH | B21: 486436.77 | C21: 486436.77 | E21: 4.785827377 | F21: 4.753241751
A22: PLACEMENTS / DEPOSITS | B22: 0 | C22: 0 | E22: 0 | F22: 0
A23: ACCRUED PROFIT FROM DEPOSITS | B23: 0 | C23: 0 | E23: 0 | F23: 0
A24: ACCRUED DIVIDENDS | B24: 388.8 | C24: 388.8 | E24: 0.003825224158 | F24: 0.003799179065
A25: OTHER RECEIVABLES /(PAYABLES) | B25: -292496.76 | C25: -292496.76 | E25: -2.877740927 | F25: -2.858147035
A26: TOTAL CASH & OTHERS | B26: 194328.81 | C26: 194328.81 | E26: 1.911911674 | F26: 1.898893896
A28: TOTAL NET ASSET VALUE | B28: 10164110.23 | C28: 10233789.81 | E28: 100 | F28: 100

Sheet HoldingCurrency
A1: =IF(I1="","",IF(I1="Grand Total","TOTAL EQUITIES BY LOCAL CURRENCY",I1)) ->  | B1: =IF(K1="","",K1) ->  | C1: =IF(L1="","",L1) ->  | D1: =IF(K1="","",L1-K1) ->  | E1: =IF(K1="","",(K1/SUMIFS(InPortFolio!AR:AR,InPortFolio!AS:AS,"Cur")*100)) ->  | F1: =IF(L1="","",ROUND((L1/CurNAV)*100,2)) -> 
A2: ="PORTFOLIO NET ASSET VALUE MIX AS AT " & UPPER(TEXT(EndDate,"dd mmm yyyy")) -> PORTFOLIO NET ASSET VALUE MIX AS AT 29 OCT 2021
A4: ="Fund Manager: " & FundMng -> Fund Manager: Ahmad Rizal Ujang
A6: ="Currency: " & FundCur -> Currency: USD
I7: qProductType | J7: EQT
A8: LOCAL CURRENCY | B8: TOTAL BOOK VALUE + ACCRUED INCOME | C8: TOTAL CURRENT VALUE + ACCRUED INCOME | D8: TOTAL UNREALISED PROFIT/ (LOSS) | E8: HOLDING ON BOOK VALUE | F8: HOLDING ON CURRENT VALUE | I8: sPeriod | J8: Cur
B9: ="(" & FundCur &")" -> (USD) | C9: ="(" & FundCur &")" -> (USD) | D9: ="(" & FundCur &")" -> (USD) | E9: % | F9: %
I10: Row Labels | J10: nav | K10: Sum of CostFC | L10: Sum of MarketValueFC
A11: Hong Kong Dollar | B11: 85586.79 | C11: 85225.55 | D11: -361.24 | E11: 0.8420490143 | F11: 0.83 | I11: Hong Kong Dollar | J11: 10064008.12 | K11: 85586.79 | L11: 85225.55
A12: Japanese Yen | B12: 973689.12 | C12: 976858.64 | D12: 3169.52 | E12: 9.57967887 | F12: 9.55 | I12: Japanese Yen | J12: 10064008.12 | K12: 973689.12 | L12: 976858.64
A13: (blank) | B13: 7732081.17 | C13: 7784197.68 | D13: 52116.51 | E13: 76.07238602 | F13: 76.06 | I13: (blank) | J13: 10064008.12 | K13: 7732081.17 | L13: 7784197.68
A14: Swiss Franc | B14: 112407.11 | C14: 111463.05 | D14: -944.06 | E14: 1.105921792 | F14: 1.09 | I14: Swiss Franc | J14: 10064008.12 | K14: 112407.11 | L14: 111463.05
A15: US Dollar | B15: 651135.85 | C15: 656036.75 | D15: 4900.9 | E15: 6.406225781 | F15: 6.41 | I15: US Dollar | J15: 10064008.12 | K15: 651135.85 | L15: 656036.75
A16: Euro | B16: 314302.04 | C16: 324293.22 | D16: 9991.18 | E16: 3.092273036 | F16: 3.17 | I16: Euro | J16: 10064008.12 | K16: 314302.04 | L16: 324293.22
A17: Pound Sterling | B17: 100579.34 | C17: 101386.11 | D17: 806.77 | E17: 0.9895538097 | F17: 0.99 | I17: Pound Sterling | J17: 10064008.12 | K17: 100579.34 | L17: 101386.11
A18: TOTAL EQUITIES BY LOCAL CURRENCY | B18: 9969781.42 | C18: 10039461 | D18: 69679.58 | E18: 98.08808833 | F18: 98.1 | I18: Grand Total | K18: 9969781.42 | L18: 10039461
A20: CASH | B20: 486436.77 | C20: 486436.77 | E20: 4.785827377 | F20: 4.753241751
A21: PLACEMENTS / DEPOSITS | B21: 0 | C21: 0 | E21: 0 | F21: 0
A22: ACCRUED PROFIT FROM DEPOSITS | B22: 0 | C22: 0 | E22: 0 | F22: 0
A23: ACCRUED DIVIDENDS | B23: 388.8 | C23: 388.8 | E23: 0.003825224158 | F23: 0.003799179065
A24: OTHER RECEIVABLES /(PAYABLES) | B24: -292496.76 | C24: -292496.76 | E24: -2.877740927 | F24: -2.858147035
A25: TOTAL CASH & OTHERS | B25: 194328.81 | C25: 194328.81 | E25: 1.911911674 | F25: 1.898893896
A27: TOTAL NET ASSET VALUE | B27: 10164110.23 | C27: 10233789.81 | E27: 100 | F27: 100

Sheet HoldingAll
A1: =IF(R1="","",IF(R1="Grand Total","Total",R1)) ->  | B1: =IF(S1="","",S1) ->  | C1: =IF(T1="","",T1) ->  | D1: =IF(U1="","",U1) ->  | E1: =IF(V1="","",V1) ->  | F1: =IF(X1="","",X1) ->  | G1: =IF(OR(F1="",A1="Total"),"",ROUND(H1/F1,4)) ->  | H1: =IF(Y1="","",Y1) ->  | I1: =IF(OR(F1="",A1="Total"),"",ROUND(J1/F1,4)) ->  | J1: =IF(Z1="","",Z1) ->  | K1: =IF(J1="","",J1-H1) ->  | L1: =IF(AA1="","",AA1) ->  | M1: =IF(AB1="","",AB1) ->  | N1: =IF(W1="","",ROUND(W1*100,2)) ->  | O1: =IF(L1="","",L1+M1) ->  | P1: =IF(H1="","",ROUND((O1/H1)*100,2)) -> 
A2: =FundName & " - Equity" -> THE - Equity
A3: Equities Holdings Report (All)
A4: ="as at " & TEXT(EndDate,"dd mmm yyyy") -> as at 29 Oct 2021
A6: Security Description | B6: Bloomberg Ticker | C6: Local Currency | D6: Country/ Market | E6: Sector (GICS) | F6: Units | G6: Avg .Cost/ Unit | H6: Investment Cost | I6: Market Value/ Unit | J6: Market Value | K6: Unrealised Gain/(Loss) | L6: Total Realised Gain/(Loss) on trading | M6: Total Dividend received | N6: TWRR | O6: Total Return on Investment (ROI) | P6: Total Return on Investment (ROI)
C7: (CCY) | G7: ="(" & FundCur &")" -> (USD) | H7: (USD) | I7: (USD) | J7: (USD) | K7: (USD) | L7: (USD) | M7: (USD) | N7: % | O7: ="(" & FundCur &")" -> (USD) | P7: %
R8: Row Labels | S8: qStockCode | T8: StockCurrency | U8: CountryName | V8: SectorName | W8: TWRR | X8: Sum of UnitFaceValue | Y8: Sum of CostFC | Z8: Sum of MarketValueFC | AA8: Sum of RealisedGnL | AB8: Sum of DivReceived
A9: Astellas Pharma Inc. | B9: JP3942400007 | C9: JPY | D9: Japan | E9: Health Care | F9: 5649 | G9: 17.2635 | H9: 97521.29 | I9: 16.8424 | J9: 95142.62 | K9: -2378.67 | L9: 0 | M9: 0 | N9: -2.94 | O9: 0 | P9: 0 | R9: Astellas Pharma Inc. | S9: JP3942400007 | T9: JPY | U9: Japan | V9: Health Care | W9: -0.02940722982 | X9: 5649 | Y9: 97521.29 | Z9: 95142.62 | AA9: 0 | AB9: 0
A10: Daiwa House Industry Co., Ltd. | B10: JP3505000004 | C10: JPY | D10: Japan | E10: Real Estate | F10: 1915 | G10: 33.1123 | H10: 63409.98 | I10: 32.9555 | J10: 63109.87 | K10: -300.11 | L10: 0 | M10: 0 | N10: -0.97 | O10: 0 | P10: 0 | R10: Daiwa House Industry Co., Ltd. | S10: JP3505000004 | T10: JPY | U10: Japan | V10: Real Estate | W10: -0.00965653264 | X10: 1915 | Y10: 63409.98 | Z10: 63109.87 | AA10: 0 | AB10: 0
A11: Fujifilm Holdings Ord Shs | B11: JP3814000000 | C11: JPY | D11: Japan | E11: Information Technology | F11: 1422 | G11: 77.8388 | H11: 110686.76 | I11: 77.3238 | J11: 109954.51 | K11: -732.25 | L11: 0 | M11: 0 | N11: -0.91 | O11: 0 | P11: 0 | R11: Fujifilm Holdings Ord Shs | S11: JP3814000000 | T11: JPY | U11: Japan | V11: Information Technology | W11: -0.009066551671 | X11: 1422 | Y11: 110686.76 | Z11: 109954.51 | AA11: 0 | AB11: 0
A12: HK0101000591 | B12: HK0101000591 | C12: HKD | D12: Hong Kong | E12: Utilities | F12: 7000 | G12: 2.3631 | H12: 16542.03 | I12: 2.3223 | J12: 16256.25 | K12: -285.78 | L12: 0 | M12: 0 | N12: -1.71 | O12: 0 | P12: 0 | R12: HK0101000591 | S12: HK0101000591 | T12: HKD | U12: Hong Kong | V12: Utilities | W12: -0.01706375881 | X12: 7000 | Y12: 16542.03 | Z12: 16256.25 | AA12: 0 | AB12: 0
A13: Intel Corporation | B13: US4581401001 | C13: USD | D13: United States Of America | E13: Information Technology | F13: 2113 | G13: 48.31 | H13: 102079.03 | I13: 49 | J13: 103537 | K13: 1457.97 | L13: 0 | M13: 0 | N13: 1.43 | O13: 0 | P13: 0 | R13: Intel Corporation | S13: US4581401001 | T13: USD | U13: United States Of America | V13: Information Technology | W13: 0.01427604939 | X13: 2113 | Y13: 102079.03 | Z13: 103537 | AA13: 0 | AB13: 0
A14: Johnson & Johnson | B14: US4781601046 | C14: USD | D14: United States Of America | E14: Health Care | F14: 621 | G14: 163.75 | H14: 101688.75 | I14: 162.88 | J14: 101148.48 | K14: -540.27 | L14: 0 | M14: 0 | N14: -0.54 | O14: 0 | P14: 0 | R14: Johnson & Johnson | S14: US4781601046 | T14: USD | U14: United States Of America | V14: Health Care | W14: -0.005426324143 | X14: 621 | Y14: 101688.75 | Z14: 101148.48 | AA14: 0 | AB14: 0
A15: Kao Corp. | B15: JP3205800000 | C15: JPY | D15: Japan | E15: Consumer Staples | F15: 1783 | G15: 55.8093 | H15: 99507.98 | I15: 56.5015 | J15: 100742.16 | K15: 1234.18 | L15: 0 | M15: 0 | N15: 0.73 | O15: 0 | P15: 0 | R15: Kao Corp. | S15: JP3205800000 | T15: JPY | U15: Japan | V15: Consumer Staples | W15: 0.007327424516 | X15: 1783 | Y15: 99507.98 | Z15: 100742.16 | AA15: 0 | AB15: 0
A16: LOreal SA | B16: FR0000120321 | C16: EUR | D16: France | E16: Consumer Staples | F16: 256 | G16: 430.8214 | H16: 110290.27 | I16: 456.6952 | J16: 116913.97 | K16: 6623.7 | L16: 0 | M16: 0 | N16: 6.15 | O16: 0 | P16: 0 | R16: LOreal SA | S16: FR0000120321 | T16: EUR | U16: France | V16: Consumer Staples | W16: 0.06150516884 | X16: 256 | Y16: 110290.27 | Z16: 116913.97 | AA16: 0 | AB16: 0
A17: Meiji Holdings Co., Ltd. | B17: JP3918000005 | C17: JPY | D17: Japan | E17: Consumer Staples | F17: 840 | G17: 61.9466 | H17: 52035.18 | I17: 63.1699 | J17: 53062.73 | K17: 1027.55 | L17: 0 | M17: 0 | N17: 1.46 | O17: 0 | P17: 0 | R17: Meiji Holdings Co., Ltd. | S17: JP3918000005 | T17: JPY | U17: Japan | V17: Consumer Staples | W17: 0.0146073473 | X17: 840 | Y17: 52035.18 | Z17: 53062.73 | AA17: 0 | AB17: 0
A18: Mondi plc | B18: GB00B1CRLC47 | C18: GBP | D18: UNITED KINGDOM | E18: Materials | F18: 4056 | G18: 24.7977 | H18: 100579.34 | I18: 24.9966 | J18: 101386.11 | K18: 806.77 | L18: 0 | M18: 0 | N18: 1.37 | O18: 0 | P18: 0 | R18: Mondi plc | S18: GB00B1CRLC47 | T18: GBP | U18: UNITED KINGDOM | V18: Materials | W18: 0.0136550231 | X18: 4056 | Y18: 100579.34 | Z18: 101386.11 | AA18: 0 | AB18: 0
A19: MTR Corporation Limited | B19: HK0066009694 | C19: HKD | D19: Hong Kong | E19: Industrials | F19: 9160 | G19: 5.4375 | H19: 49807.67 | I19: 5.4522 | J19: 49942.01 | K19: 134.34 | L19: 0 | M19: 0 | N19: 0.27 | O19: 0 | P19: 0 | R19: MTR Corporation Limited | S19: HK0066009694 | T19: HKD | U19: Hong Kong | V19: Industrials | W19: 0.002674986968 | X19: 9160 | Y19: 49807.67 | Z19: 49942.01 | AA19: 0 | AB19: 0
A20: Murata Manufacturing Co., Ltd. | B20: JP3914400001 | C20: JPY | D20: Japan | E20: Information Technology | F20: 1332 | G20: 74.8975 | H20: 99763.51 | I20: 76.0235 | J20: 101263.36 | K20: 1499.85 | L20: 0 | M20: 0 | N20: 0.98 | O20: 0 | P20: 0 | R20: Murata Manufacturing Co., Ltd. | S20: JP3914400001 | T20: JPY | U20: Japan | V20: Information Technology | W20: 0.009814996992 | X20: 1332 | Y20: 99763.51 | Z20: 101263.36 | AA20: 0 | AB20: 0
A21: Nidec Corporation | B21: JP3734800000 | C21: JPY | D21: Japan | E21: Industrials | F21: 900 | G21: 110.4686 | H21: 99421.74 | I21: 110.4375 | J21: 99393.78 | K21: -27.96 | L21: 0 | M21: 0 | N21: -0.55 | O21: 0 | P21: 0 | R21: Nidec Corporation | S21: JP3734800000 | T21: JPY | U21: Japan | V21: Industrials | W21: -0.00549654565 | X21: 900 | Y21: 99421.74 | Z21: 99393.78 | AA21: 0 | AB21: 0
A22: NIPPON PAINT HOLDINGS CO.LTD. | B22: JP3749400002 | C22: JPY | D22: Japan | E22: Materials | F22: 3600 | G22: 11.1083 | H22: 39989.8 | I22: 10.7099 | J22: 38555.61 | K22: -1434.19 | L22: 0 | M22: 0 | N22: -4.1 | O22: 0 | P22: 0 | R22: NIPPON PAINT HOLDINGS CO.LTD. | S22: JP3749400002 | T22: JPY | U22: Japan | V22: Materials | W22: -0.04102395816 | X22: 3600 | Y22: 39989.8 | Z22: 38555.61 | AA22: 0 | AB22: 0
A23: Nitori Holdings Co., Ltd. | B23: JP3756100008 | C23: JPY | D23: Japan | E23: Industrials | F23: 362 | G23: 181.9793 | H23: 65876.49 | I23: 183.2279 | J23: 66328.5 | K23: 452.01 | L23: 0 | M23: 0 | N23: 0.17 | O23: 0 | P23: 0 | R23: Nitori Holdings Co., Ltd. | S23: JP3756100008 | T23: JPY | U23: Japan | V23: Industrials | W23: 0.0016860734 | X23: 362 | Y23: 65876.49 | Z23: 66328.5 | AA23: 0 | AB23: 0
A24: ONO Pharmaceutical Co., Ltd. | B24: JP3197600004 | C24: JPY | D24: Japan | E24: Health Care | F24: 1340 | G24: 21.519 | H24: 28835.47 | I24: 20.9585 | J24: 28084.43 | K24: -751.04 | L24: 0 | M24: 0 | N24: -3.09 | O24: 0 | P24: 0 | R24: ONO Pharmaceutical Co., Ltd. | S24: JP3197600004 | T24: JPY | U24: Japan | V24: Health Care | W24: -0.03087375552 | X24: 1340 | Y24: 28835.47 | Z24: 28084.43 | AA24: 0 | AB24: 0
A25: Otsuka Holdings Co., Ltd. | B25: JP3188220002 | C25: JPY | D25: Japan | E25: Health Care | F25: 1293 | G25: 40.789 | H25: 52740.19 | I25: 39.4834 | J25: 51052.03 | K25: -1688.16 | L25: 0 | M25: 0 | N25: -3.7 | O25: 0 | P25: 0 | R25: Otsuka Holdings Co., Ltd. | S25: JP3188220002 | T25: JPY | U25: Japan | V25: Health Care | W25: -0.03699773729 | X25: 1293 | Y25: 52740.19 | Z25: 51052.03 | AA25: 0 | AB25: 0
A26: Procter & Gamble Company | B26: US7427181091 | C26: USD | D26: United States Of America | E26: Consumer Staples | F26: 777 | G26: 140.86 | H26: 109448.22 | I26: 142.99 | J26: 111103.23 | K26: 1655.01 | L26: 0 | M26: 0 | N26: 1.5 | O26: 0 | P26: 0 | R26: Procter & Gamble Company | S26: US7427181091 | T26: USD | U26: United States Of America | V26: Consumer Staples | W26: 0.01496756461 | X26: 777 | Y26: 109448.22 | Z26: 111103.23 | AA26: 0 | AB26: 0
A27: ResMed Inc. | B27: US7611521078 | C27: USD | D27: United States Of America | E27: Health Care | F27: 418 | G27: 263.07 | H27: 109963.26 | I27: 262.91 | J27: 109896.38 | K27: -66.88 | L27: 0 | M27: 0 | N27: -0.08 | O27: 0 | P27: 0 | R27: ResMed Inc. | S27: US7611521078 | T27: USD | U27: United States Of America | V27: Health Care | W27: -0.0007763827241 | X27: 418 | Y27: 109963.26 | Z27: 109896.38 | AA27: 0 | AB27: 0
A28: Roche Holding Ltd Genusssch. | B28: CH0012032048 | C28: CHF | D28: Switzerland | E28: Health Care | F28: 288 | G28: 390.3025 | H28: 112407.11 | I28: 387.0245 | J28: 111463.05 | K28: -944.06 | L28: 0 | M28: 0 | N28: -0.67 | O28: 0 | P28: 0 | R28: Roche Holding Ltd Genusssch. | S28: CH0012032048 | T28: CHF | U28: Switzerland | V28: Health Care | W28: -0.006667039768 | X28: 288 | Y28: 112407.11 | Z28: 111463.05 | AA28: 0 | AB28: 0
A29: Schneider Electric SE | B29: FR0000121972 | C29: EUR | D29: France | E29: Industrials | F29: 683 | G29: 167.2589 | H29: 114237.82 | I29: 172.1785 | J29: 117597.94 | K29: 3360.12 | L29: 0 | M29: 0 | N29: 2.98 | O29: 0 | P29: 0 | R29: Schneider Electric SE | S29: FR0000121972 | T29: EUR | U29: France | V29: Industrials | W29: 0.02976303344 | X29: 683 | Y29: 114237.82 | Z29: 117597.94 | AA29: 0 | AB29: 0
A30: SEKISUI CHEMICAL CO.,LTD. | B30: JP3419400001 | C30: JPY | D30: Japan | E30: Consumer Discretionary | F30: 4066 | G30: 15.6183 | H30: 63503.91 | I30: 16.3855 | J30: 66623.53 | K30: 3119.62 | L30: 0 | M30: 0 | N30: 4.38 | O30: 0 | P30: 0 | R30: SEKISUI CHEMICAL CO.,LTD. | S30: JP3419400001 | T30: JPY | U30: Japan | V30: Consumer Discretionary | W30: 0.0438155054 | X30: 4066 | Y30: 63503.91 | Z30: 66623.53 | AA30: 0 | AB30: 0
A31: Target Corporation | B31: US87612E1064 | C31: USD | D31: United States Of America | E31: Consumer Discretionary | F31: 443 | G31: 251.9661 | H31: 111620.99 | I31: 259.62 | J31: 115011.66 | K31: 3390.67 | L31: 0 | M31: 0 | N31: 3.03 | O31: 0 | P31: 0 | R31: Target Corporation | S31: US87612E1064 | T31: USD | U31: United States Of America | V31: Consumer Discretionary | W31: 0.03025021249 | X31: 443 | Y31: 111620.99 | Z31: 115011.66 | AA31: 0 | AB31: 0
A32: TE Connectivity Ltd. | B32: CH0102993182 | C32: USD | D32: United States Of America | E32: Information Technology | F32: 790 | G32: 147.2603 | H32: 116335.6 | I32: 146 | J32: 115340 | K32: -995.6 | L32: 0 | M32: 0 | N32: -0.86 | O32: 0 | P32: 0 | R32: TE Connectivity Ltd. | S32: CH0102993182 | T32: USD | U32: United States Of America | V32: Information Technology | W32: -0.008588095846 | X32: 790 | Y32: 116335.6 | Z32: 115340 | AA32: 0 | AB32: 0
A33: Tokyo Electron Ltd. | B33: JP3571400005 | C33: JPY | D33: Japan | E33: Information Technology | F33: 223 | G33: 450.21 | H33: 100396.82 | I33: 464.3296 | J33: 103545.51 | K33: 3148.69 | L33: 0 | M33: 0 | N33: 2.61 | O33: 0 | P33: 0 | R33: Tokyo Electron Ltd. | S33: JP3571400005 | T33: JPY | U33: Japan | V33: Information Technology | W33: 0.02606796994 | X33: 223 | Y33: 100396.82 | Z33: 103545.51 | AA33: 0 | AB33: 0
A34: UPM-Kymmene Oyj | B34: FI0009005987 | C34: EUR | D34: Finland | E34: Materials | F34: 2544 | G34: 35.2885 | H34: 89773.95 | I34: 35.2914 | J34: 89781.31 | K34: 7.36 | L34: 0 | M34: 0 | N34: 0.13 | O34: 0 | P34: 0 | R34: UPM-Kymmene Oyj | S34: FI0009005987 | T34: EUR | U34: Finland | V34: Materials | W34: 0.00129053099 | X34: 2544 | Y34: 89773.95 | Z34: 89781.31 | AA34: 0 | AB34: 0
A35: ZAE000026480 | B35: ZAE000026480 | C35: HKD | D35: Hong Kong | E35: Utilities | F35: 2150 | G35: 8.9475 | H35: 19237.09 | I35: 8.8499 | J35: 19027.29 | K35: -209.8 | L35: 0 | M35: 0 | N35: -98.75 | O35: 0 | P35: 0 | R35: ZAE000026480 | S35: ZAE000026480 | T35: HKD | U35: Hong Kong | V35: Utilities | W35: -0.9874619105 | X35: 2150 | Y35: 19237.09 | Z35: 19027.29 | AA35: 0 | AB35: 0
A36: Total | F36: 56024 | H36: 2237700.25 | J36: 2255263.32 | K36: 17563.07 | L36: 0 | M36: 0 | O36: 0 | P36: 0 | R36: Grand Total | X36: 56024 | Y36: 2237700.25 | Z36: 2255263.32 | AA36: 0 | AB36: 0

Sheet HoldingNoShariah
A1: =IF(R1="","",IF(R1="Grand Total","Total",R1)) ->  | B1: =IF(S1="","",S1) ->  | C1: =IF(T1="","",T1) ->  | D1: =IF(U1="","",U1) ->  | E1: =IF(V1="","",V1) ->  | F1: =IF(X1="","",X1) ->  | G1: =IF(OR(F1="",A1="Total"),"",ROUND(H1/F1,4)) ->  | H1: =IF(Y1="","",Y1) ->  | I1: =IF(OR(F1="",A1="Total"),"",ROUND(J1/F1,4)) ->  | J1: =IF(Z1="","",Z1) ->  | K1: =IF(J1="","",J1-H1) -> 
A2: =FundName & " - Equity" -> THE - Equity
A3: Equities Holdings Report (Non-Shariah Compliant)
A4: ="as at " & TEXT(EndDate,"dd mmm yyyy") -> as at 29 Oct 2021
A6: Security Description | B6: Bloomberg Ticker | C6: Local Currency | D6: Country/ Market | E6: Sector (GICS) | F6: Units | G6: Avg .Cost/ Unit | H6: Investment Cost | I6: Market Value/ Unit | J6: Market Value | K6: Unrealised Gain/(Loss) | R6: IslamicFlag | S6: 1
C7: (CCY) | G7: ="(" & FundCur &")" -> (USD) | H7: ="(" & FundCur &")" -> (USD) | I7: ="(" & FundCur &")" -> (USD) | J7: ="(" & FundCur &")" -> (USD) | K7: ="(" & FundCur &")" -> (USD)
R8: Row Labels | S8: qStockCode | T8: StockCurrency | U8: CountryName | V8: SectorName | W8: TWRR | X8: Sum of UnitFaceValue | Y8: Sum of CostFC | Z8: Sum of MarketValueFC | AA8: Sum of RealisedGnL | AB8: Sum of DivReceived
A9: Astellas Pharma Inc. | B9: JP3942400007 | C9: JPY | D9: Japan | E9: Health Care | F9: 5649 | G9: 17.2635 | H9: 97521.29 | I9: 16.8424 | J9: 95142.62 | K9: -2378.67 | R9: Astellas Pharma Inc. | S9: JP3942400007 | T9: JPY | U9: Japan | V9: Health Care | W9: -0.02940722982 | X9: 5649 | Y9: 97521.29 | Z9: 95142.62 | AA9: 0 | AB9: 0
A10: Daiwa House Industry Co., Ltd. | B10: JP3505000004 | C10: JPY | D10: Japan | E10: Real Estate | F10: 1915 | G10: 33.1123 | H10: 63409.98 | I10: 32.9555 | J10: 63109.87 | K10: -300.11 | R10: Daiwa House Industry Co., Ltd. | S10: JP3505000004 | T10: JPY | U10: Japan | V10: Real Estate | W10: -0.00965653264 | X10: 1915 | Y10: 63409.98 | Z10: 63109.87 | AA10: 0 | AB10: 0
A11: Fujifilm Holdings Ord Shs | B11: JP3814000000 | C11: JPY | D11: Japan | E11: Information Technology | F11: 1422 | G11: 77.8388 | H11: 110686.76 | I11: 77.3238 | J11: 109954.51 | K11: -732.25 | R11: Fujifilm Holdings Ord Shs | S11: JP3814000000 | T11: JPY | U11: Japan | V11: Information Technology | W11: -0.009066551671 | X11: 1422 | Y11: 110686.76 | Z11: 109954.51 | AA11: 0 | AB11: 0
A12: HK0101000591 | B12: HK0101000591 | C12: HKD | D12: Hong Kong | E12: Utilities | F12: 7000 | G12: 2.3631 | H12: 16542.03 | I12: 2.3223 | J12: 16256.25 | K12: -285.78 | R12: HK0101000591 | S12: HK0101000591 | T12: HKD | U12: Hong Kong | V12: Utilities | W12: -0.01706375881 | X12: 7000 | Y12: 16542.03 | Z12: 16256.25 | AA12: 0 | AB12: 0
A13: Intel Corporation | B13: US4581401001 | C13: USD | D13: United States Of America | E13: Information Technology | F13: 2113 | G13: 48.31 | H13: 102079.03 | I13: 49 | J13: 103537 | K13: 1457.97 | R13: Intel Corporation | S13: US4581401001 | T13: USD | U13: United States Of America | V13: Information Technology | W13: 0.01427604939 | X13: 2113 | Y13: 102079.03 | Z13: 103537 | AA13: 0 | AB13: 0
A14: Johnson & Johnson | B14: US4781601046 | C14: USD | D14: United States Of America | E14: Health Care | F14: 621 | G14: 163.75 | H14: 101688.75 | I14: 162.88 | J14: 101148.48 | K14: -540.27 | R14: Johnson & Johnson | S14: US4781601046 | T14: USD | U14: United States Of America | V14: Health Care | W14: -0.005426324143 | X14: 621 | Y14: 101688.75 | Z14: 101148.48 | AA14: 0 | AB14: 0
A15: Kao Corp. | B15: JP3205800000 | C15: JPY | D15: Japan | E15: Consumer Staples | F15: 1783 | G15: 55.8093 | H15: 99507.98 | I15: 56.5015 | J15: 100742.16 | K15: 1234.18 | R15: Kao Corp. | S15: JP3205800000 | T15: JPY | U15: Japan | V15: Consumer Staples | W15: 0.007327424516 | X15: 1783 | Y15: 99507.98 | Z15: 100742.16 | AA15: 0 | AB15: 0
A16: Meiji Holdings Co., Ltd. | B16: JP3918000005 | C16: JPY | D16: Japan | E16: Consumer Staples | F16: 840 | G16: 61.9466 | H16: 52035.18 | I16: 63.1699 | J16: 53062.73 | K16: 1027.55 | R16: Meiji Holdings Co., Ltd. | S16: JP3918000005 | T16: JPY | U16: Japan | V16: Consumer Staples | W16: 0.0146073473 | X16: 840 | Y16: 52035.18 | Z16: 53062.73 | AA16: 0 | AB16: 0
A17: MTR Corporation Limited | B17: HK0066009694 | C17: HKD | D17: Hong Kong | E17: Industrials | F17: 9160 | G17: 5.4375 | H17: 49807.67 | I17: 5.4522 | J17: 49942.01 | K17: 134.34 | R17: MTR Corporation Limited | S17: HK0066009694 | T17: HKD | U17: Hong Kong | V17: Industrials | W17: 0.002674986968 | X17: 9160 | Y17: 49807.67 | Z17: 49942.01 | AA17: 0 | AB17: 0
A18: Murata Manufacturing Co., Ltd. | B18: JP3914400001 | C18: JPY | D18: Japan | E18: Information Technology | F18: 1332 | G18: 74.8975 | H18: 99763.51 | I18: 76.0235 | J18: 101263.36 | K18: 1499.85 | R18: Murata Manufacturing Co., Ltd. | S18: JP3914400001 | T18: JPY | U18: Japan | V18: Information Technology | W18: 0.009814996992 | X18: 1332 | Y18: 99763.51 | Z18: 101263.36 | AA18: 0 | AB18: 0
A19: Nidec Corporation | B19: JP3734800000 | C19: JPY | D19: Japan | E19: Industrials | F19: 900 | G19: 110.4686 | H19: 99421.74 | I19: 110.4375 | J19: 99393.78 | K19: -27.96 | R19: Nidec Corporation | S19: JP3734800000 | T19: JPY | U19: Japan | V19: Industrials | W19: -0.00549654565 | X19: 900 | Y19: 99421.74 | Z19: 99393.78 | AA19: 0 | AB19: 0
A20: NIPPON PAINT HOLDINGS CO.LTD. | B20: JP3749400002 | C20: JPY | D20: Japan | E20: Materials | F20: 3600 | G20: 11.1083 | H20: 39989.8 | I20: 10.7099 | J20: 38555.61 | K20: -1434.19 | R20: NIPPON PAINT HOLDINGS CO.LTD. | S20: JP3749400002 | T20: JPY | U20: Japan | V20: Materials | W20: -0.04102395816 | X20: 3600 | Y20: 39989.8 | Z20: 38555.61 | AA20: 0 | AB20: 0
A21: Nitori Holdings Co., Ltd. | B21: JP3756100008 | C21: JPY | D21: Japan | E21: Industrials | F21: 362 | G21: 181.9793 | H21: 65876.49 | I21: 183.2279 | J21: 66328.5 | K21: 452.01 | R21: Nitori Holdings Co., Ltd. | S21: JP3756100008 | T21: JPY | U21: Japan | V21: Industrials | W21: 0.0016860734 | X21: 362 | Y21: 65876.49 | Z21: 66328.5 | AA21: 0 | AB21: 0
A22: ONO Pharmaceutical Co., Ltd. | B22: JP3197600004 | C22: JPY | D22: Japan | E22: Health Care | F22: 1340 | G22: 21.519 | H22: 28835.47 | I22: 20.9585 | J22: 28084.43 | K22: -751.04 | R22: ONO Pharmaceutical Co., Ltd. | S22: JP3197600004 | T22: JPY | U22: Japan | V22: Health Care | W22: -0.03087375552 | X22: 1340 | Y22: 28835.47 | Z22: 28084.43 | AA22: 0 | AB22: 0
A23: Otsuka Holdings Co., Ltd. | B23: JP3188220002 | C23: JPY | D23: Japan | E23: Health Care | F23: 1293 | G23: 40.789 | H23: 52740.19 | I23: 39.4834 | J23: 51052.03 | K23: -1688.16 | R23: Otsuka Holdings Co., Ltd. | S23: JP3188220002 | T23: JPY | U23: Japan | V23: Health Care | W23: -0.03699773729 | X23: 1293 | Y23: 52740.19 | Z23: 51052.03 | AA23: 0 | AB23: 0
A24: Procter & Gamble Company | B24: US7427181091 | C24: USD | D24: United States Of America | E24: Consumer Staples | F24: 777 | G24: 140.86 | H24: 109448.22 | I24: 142.99 | J24: 111103.23 | K24: 1655.01 | R24: Procter & Gamble Company | S24: US7427181091 | T24: USD | U24: United States Of America | V24: Consumer Staples | W24: 0.01496756461 | X24: 777 | Y24: 109448.22 | Z24: 111103.23 | AA24: 0 | AB24: 0
A25: ResMed Inc. | B25: US7611521078 | C25: USD | D25: United States Of America | E25: Health Care | F25: 418 | G25: 263.07 | H25: 109963.26 | I25: 262.91 | J25: 109896.38 | K25: -66.88 | R25: ResMed Inc. | S25: US7611521078 | T25: USD | U25: United States Of America | V25: Health Care | W25: -0.0007763827241 | X25: 418 | Y25: 109963.26 | Z25: 109896.38 | AA25: 0 | AB25: 0
A26: Roche Holding Ltd Genusssch. | B26: CH0012032048 | C26: CHF | D26: Switzerland | E26: Health Care | F26: 288 | G26: 390.3025 | H26: 112407.11 | I26: 387.0245 | J26: 111463.05 | K26: -944.06 | R26: Roche Holding Ltd Genusssch. | S26: CH0012032048 | T26: CHF | U26: Switzerland | V26: Health Care | W26: -0.006667039768 | X26: 288 | Y26: 112407.11 | Z26: 111463.05 | AA26: 0 | AB26: 0
A27: SEKISUI CHEMICAL CO.,LTD. | B27: JP3419400001 | C27: JPY | D27: Japan | E27: Consumer Discretionary | F27: 4066 | G27: 15.6183 | H27: 63503.91 | I27: 16.3855 | J27: 66623.53 | K27: 3119.62 | R27: SEKISUI CHEMICAL CO.,LTD. | S27: JP3419400001 | T27: JPY | U27: Japan | V27: Consumer Discretionary | W27: 0.0438155054 | X27: 4066 | Y27: 63503.91 | Z27: 66623.53 | AA27: 0 | AB27: 0
A28: Target Corporation | B28: US87612E1064 | C28: USD | D28: United States Of America | E28: Consumer Discretionary | F28: 443 | G28: 251.9661 | H28: 111620.99 | I28: 259.62 | J28: 115011.66 | K28: 3390.67 | R28: Target Corporation | S28: US87612E1064 | T28: USD | U28: United States Of America | V28: Consumer Discretionary | W28: 0.03025021249 | X28: 443 | Y28: 111620.99 | Z28: 115011.66 | AA28: 0 | AB28: 0
A29: TE Connectivity Ltd. | B29: CH0102993182 | C29: USD | D29: United States Of America | E29: Information Technology | F29: 790 | G29: 147.2603 | H29: 116335.6 | I29: 146 | J29: 115340 | K29: -995.6 | R29: TE Connectivity Ltd. | S29: CH0102993182 | T29: USD | U29: United States Of America | V29: Information Technology | W29: -0.008588095846 | X29: 790 | Y29: 116335.6 | Z29: 115340 | AA29: 0 | AB29: 0
A30: Tokyo Electron Ltd. | B30: JP3571400005 | C30: JPY | D30: Japan | E30: Information Technology | F30: 223 | G30: 450.21 | H30: 100396.82 | I30: 464.3296 | J30: 103545.51 | K30: 3148.69 | R30: Tokyo Electron Ltd. | S30: JP3571400005 | T30: JPY | U30: Japan | V30: Information Technology | W30: 0.02606796994 | X30: 223 | Y30: 100396.82 | Z30: 103545.51 | AA30: 0 | AB30: 0
A31: UPM-Kymmene Oyj | B31: FI0009005987 | C31: EUR | D31: Finland | E31: Materials | F31: 2544 | G31: 35.2885 | H31: 89773.95 | I31: 35.2914 | J31: 89781.31 | K31: 7.36 | R31: UPM-Kymmene Oyj | S31: FI0009005987 | T31: EUR | U31: Finland | V31: Materials | W31: 0.00129053099 | X31: 2544 | Y31: 89773.95 | Z31: 89781.31 | AA31: 0 | AB31: 0
A32: ZAE000026480 | B32: ZAE000026480 | C32: HKD | D32: Hong Kong | E32: Utilities | F32: 2150 | G32: 8.9475 | H32: 19237.09 | I32: 8.8499 | J32: 19027.29 | K32: -209.8 | R32: ZAE000026480 | S32: ZAE000026480 | T32: HKD | U32: Hong Kong | V32: Utilities | W32: -0.9874619105 | X32: 2150 | Y32: 19237.09 | Z32: 19027.29 | AA32: 0 | AB32: 0
A33: Total | F33: 51029 | H33: 1912592.82 | J33: 1919365.3 | K33: 6772.48 | R33: Grand Total | X33: 51029 | Y33: 1912592.82 | Z33: 1919365.3 | AA33: 0 | AB33: 0

Sheet Purchase
A1: =IF(P1="",IF(O1="Grand Total","Total",""),P1) ->  | B1: =IF(Q1="","",Q1) ->  | C1: =IF(R1="","",R1) ->  | D1: =IF(S1="","",S1) ->  | E1: =IF(T1="","",T1) ->  | F1: =IF(U1="","",U1) ->  | G1: =IF(OR(O1="",O1="Grand Total"),"",O1) ->  | H1: =IF(V1="","",V1) ->  | I1: =IF(W1="","",W1) ->  | J1: =IF(X1="","",X1) ->  | K1: =IF(Y1="","",ABS(Y1)) ->  | L1: =IF(Z1="","",ABS(Z1)) ->  | M1: =IF(AB1="","",ABS(AB1)) -> 
A2: =FundName & " - Equity" -> THE - Equity
A3: Purchase Report
A4: ="as at " & TEXT(EndDate,"dd mmm yyyy") -> as at 29 Oct 2021
A6: Security Description | B6: Bloomberg Ticker | C6: Local Currency | D6: Country/ Market | E6: Sector (GICS) | F6: Units | G6: Trade Date | H6: Value Date | I6: NAV Date | J6: Price Per Unit | K6: Gross Amount | L6: Net Amount | M6: Net Amount | O6: qTrnCode | P6: SP
C7: (CCY) | J7: (CCY) | K7: (CCY) | L7: (CCY) | M7: ="(" & FundCur &")" -> (USD)
O8: Row Labels | P8: Description | Q8: qStockCode | R8: StockCurrency | S8: CountryName | T8: SectorName | U8: UnitFaceValue | V8: ValueDate | W8: AccDate | X8: TranPrice | Y8: SCGrossProceed | Z8: SCNetProceed | AA8: ExchgRateSF | AB8: Sum of FCAmt
A9: Target Corporation | B9: US87612E1064 | C9: USD | D9: United States Of America | E9: Others | F9: 443 | G9: 2021-10-20 | H9: 2021-10-20 | I9: 2021-10-20 | J9: 251.83 | K9: 111560.69 | L9: 111620.99 | M9: 111620.99 | O9: 2021-10-20 | P9: Target Corporation | Q9: US87612E1064 | R9: USD | S9: United States Of America | T9: Others | U9: 443 | V9: 2021-10-20 | W9: 2021-10-20 | X9: 251.83 | Y9: -111560.69 | Z9: -111620.99 | AA9: 1 | AB9: -111620.99
A10: TE Connectivity Ltd. | B10: CH0102993182 | C10: USD | D10: United States Of America | E10: Others | F10: 790 | G10: 2021-10-20 | H10: 2021-10-20 | I10: 2021-10-20 | J10: 147.14 | K10: 116240.6 | L10: 116335.6 | M10: 116335.6 | O10: 2021-10-20 | P10: TE Connectivity Ltd. | Q10: CH0102993182 | R10: USD | S10: United States Of America | T10: Others | U10: 790 | V10: 2021-10-20 | W10: 2021-10-20 | X10: 147.14 | Y10: -116240.6 | Z10: -116335.6 | AA10: 1 | AB10: -116335.6
A11: Johnson Controls International Ord Shs | B11: IE00BY7QL619 | C11: USD | D11: United States Of America | E11: Others | F11: 1605 | G11: 2021-10-20 | H11: 2021-10-20 | I11: 2021-10-20 | J11: 73.12 | K11: 117357.6 | L11: 117534.1 | M11: 117534.1 | O11: 2021-10-20 | P11: Johnson Controls International Ord Shs | Q11: IE00BY7QL619 | R11: USD | S11: United States Of America | T11: Others | U11: 1605 | V11: 2021-10-20 | W11: 2021-10-20 | X11: 73.12 | Y11: -117357.6 | Z11: -117534.1 | AA11: 1 | AB11: -117534.1
A12: Eaton Corp. Plc | B12: IE00B8KQN827 | C12: USD | D12: United States Of America | E12: Others | F12: 705 | G12: 2021-10-20 | H12: 2021-10-20 | I12: 2021-10-20 | J12: 163.2 | K12: 115056 | L12: 115142.5 | M12: 115142.5 | O12: 2021-10-20 | P12: Eaton Corp. Plc | Q12: IE00B8KQN827 | R12: USD | S12: United States Of America | T12: Others | U12: 705 | V12: 2021-10-20 | W12: 2021-10-20 | X12: 163.2 | Y12: -115056 | Z12: -115142.5 | AA12: 1 | AB12: -115142.5
A13: Schneider Electric SE | B13: FR0000121972 | C13: EUR | D13: France | E13: Others | F13: 683 | G13: 2021-10-20 | H13: 2021-10-20 | I13: 2021-10-20 | J13: 142.78 | K13: 97518.74 | L13: 98038.9 | M13: 114237.8234 | O13: 2021-10-20 | P13: Schneider Electric SE | Q13: FR0000121972 | R13: EUR | S13: France | T13: Others | U13: 683 | V13: 2021-10-20 | W13: 2021-10-20 | X13: 142.78 | Y13: -97518.74 | Z13: -98038.9 | AA13: 0.8582 | AB13: -114237.8234
A14: ZAE000026480 | B14: ZAE000026480 | C14: HKD | D14: Hong Kong | E14: Others | F14: 21 | G14: 2021-10-21 | H14: 2021-10-21 | I14: 2021-10-21 | J14: 133.21 | K14: 2797.41 | L14: 2816.45 | M14: 191.9556446 | O14: 2021-10-21 | P14: ZAE000026480 | Q14: ZAE000026480 | R14: HKD | S14: Hong Kong | T14: Others | U14: 21 | V14: 2021-10-21 | W14: 2021-10-21 | X14: 133.21 | Y14: -2797.41 | Z14: -2816.45 | AA14: 14.6724 | AB14: -191.9556446
A15: ResMed Inc. | B15: US7611521078 | C15: USD | D15: United States Of America | E15: Others | F15: 418 | G15: 2021-10-21 | H15: 2021-10-21 | I15: 2021-10-21 | J15: 263.04 | K15: 109950.72 | L15: 109963.26 | M15: 109963.26 | O15: 2021-10-21 | P15: ResMed Inc. | Q15: US7611521078 | R15: USD | S15: United States Of America | T15: Others | U15: 418 | V15: 2021-10-21 | W15: 2021-10-21 | X15: 263.04 | Y15: -109950.72 | Z15: -109963.26 | AA15: 1 | AB15: -109963.26
A16: HK0101000591 | B16: HK0101000591 | C16: HKD | D16: Hong Kong | E16: Others | F16: 7000 | G16: 2021-10-21 | H16: 2021-10-21 | I16: 2021-10-21 | J16: 18.3 | K16: 128100 | L16: 128597.74 | M16: 16542.02984 | O16: 2021-10-21 | P16: HK0101000591 | Q16: HK0101000591 | R16: HKD | S16: Hong Kong | T16: Others | U16: 7000 | V16: 2021-10-21 | W16: 2021-10-21 | X16: 18.3 | Y16: -128100 | Z16: -128597.74 | AA16: 7.774 | AB16: -16542.02984
A17: Fujifilm Holdings Ord Shs | B17: JP3814000000 | C17: JPY | D17: Japan | E17: Others | F17: 1422 | G17: 2021-10-21 | H17: 2021-10-21 | I17: 2021-10-21 | J17: 8858 | K17: 12596076 | L17: 12614970 | M17: 110686.7597 | O17: 2021-10-21 | P17: Fujifilm Holdings Ord Shs | Q17: JP3814000000 | R17: JPY | S17: Japan | T17: Others | U17: 1422 | V17: 2021-10-21 | W17: 2021-10-21 | X17: 8858 | Y17: -12596076 | Z17: -12614970 | AA17: 113.97 | AB17: -110686.7597
A18: MTR Corporation Limited | B18: HK0066009694 | C18: HKD | D18: Hong Kong | E18: Others | F18: 9160 | G18: 2021-10-21 | H18: 2021-10-21 | I18: 2021-10-21 | J18: 42.15 | K18: 386094 | L18: 387204.86 | M18: 49807.6743 | O18: 2021-10-21 | P18: MTR Corporation Limited | Q18: HK0066009694 | R18: HKD | S18: Hong Kong | T18: Others | U18: 9160 | V18: 2021-10-21 | W18: 2021-10-21 | X18: 42.15 | Y18: -386094 | Z18: -387204.86 | AA18: 7.774 | AB18: -49807.6743
A19: Total | M19: 862062.6928 | O19: Grand Total | AB19: -862062.6928

Sheet Sale
A1: =IF(P1="",IF(O1="Grand Total","Total",""),P1) ->  | B1: =IF(Q1="","",Q1) ->  | C1: =IF(R1="","",R1) ->  | D1: =IF(S1="","",S1) ->  | E1: =IF(T1="","",T1) ->  | F1: =IF(U1="","",ABS(U1)) ->  | G1: =IF(OR(O1="",O1="Grand Total"),"",O1) ->  | H1: =IF(V1="","",V1) ->  | I1: =IF(W1="","",W1) ->  | J1: =IF(X1="","",X1) ->  | K1: =IF(Y1="","",ABS(Y1)) ->  | L1: =IF(Z1="","",ABS(Z1)) ->  | M1: =IF(AB1="","",ABS(AB1)) -> 
A2: =FundName & " - Equity" -> THE - Equity
A3: Sale Report
A4: ="as at " & TEXT(EndDate,"dd mmm yyyy") -> as at 29 Oct 2021
A6: Security Description | B6: Bloomberg Ticker | C6: Local Currency | D6: Country/ Market | E6: Sector (GICS) | F6: Units | G6: Trade Date | H6: Value Date | I6: NAV Date | J6: Price Per Unit | K6: Gross Amount | L6: Net Amount | M6: Net Amount | O6: qTrnCode | P6: SS
C7: (CCY) | J7: (CCY) | K7: (CCY) | L7: (CCY) | M7: ="(" & FundCur &")" -> (USD)
O8: Row Labels | P8: Description | Q8: qStockCode | R8: StockCurrency | S8: CountryName | T8: SectorName | U8: UnitFaceValue | V8: ValueDate | W8: AccDate | X8: TranPrice | Y8: SCGrossProceed | Z8: SCNetProceed | AA8: ExchgRateSF | AB8: Sum of FCAmt
A9: Total | O9: Grand Total
